Workbook

Sheet Help
B1: PROGRAMER
C2: UMMED TARAD (GSSS RAIMALWADA) Email:- ummedtrdedu@gmail.com
B3: Click Here ↓ (For DA Order By Fin. Dept. )
B4: Click Here
B5: Last Updated:-08-04-2025

Sheet DA For 50 Emp Withour Sur.Arear
C2: GOVT. SR. SEC. SCHOOL....................................................................................
C3: DA AREAR
C4: वित्त विभाग राजस्थान सरकार के आदेशांक-F.6(3) FD (Rules)/2017/ Jaipur, दिनांक-01-04-2025 के अनुसरण में स्थानीय कार्यालय के अधीनस्थ नियमित कार्मिकों का Jan-2025 से महंगाई भत्ता 53% से बढ़ाकर 55% किया जाकर Jan- 2025 से Mar-2025 तक नियमानुसार 2% महंगाई भत्ते का अंतर D.A. एरियर के रूप में निम्नानुसार गणना कर सम्बंधित खातों में/GPF/GPF-2004 में आहरित करने की स्वीकृति एतद द्वारा दी जाती है l
C5: S. N0. | D5: Employee Name | G5: Post | H5: Employee Cat. (After-04, Before-04) | I5: Month | J5: After Revise DA | M5: Before Revise DA | P5: Difference | S5: GPF | T5: GPF 2004 | U5: TOTAL DED. | V5: NET AMOUNT CASH PAYMENT (ARREAR) | W5: TV NUMBER | X5: TV DATE
J6: BASIC | K6: DA | L6: TOTAL | M6: BASIC | N6: DA | O6: TOTAL | P6: BASIC | Q6: DA | R6: TOTAL
K7: 55% | N7: 53%
A8: =IF($D8="","n","y") -> y | C8: 1 | D8: A | G8: Sr. Teacher | H8: After-2004 | I8: =IF(A8="n","","Jan-2025") -> Jan-2025 | J8: 47900 | K8: =IF(J8="","",ROUND(J8*$K$7,0)) -> 26345 | L8: =IF(J8="","",ROUND(J8+K8,0)) -> 74245 | M8: =IF(J8="","",J8) -> 47900 | N8: =IF(M8="","",ROUND(M8*$N$7,0)) -> 25387 | O8: =IF(M8="","",ROUND(M8+N8,0)) -> 73287 | P8: =IF(J8="","",ROUND(J8-M8,0)) -> 0 | Q8: =IF(J8="","",ROUND(K8-N8,0)) -> 958 | R8: =IF(J8="","",ROUND(P8+Q8,0)) -> 958 | S8: =IF(J8="","",IF($H8="Before-2004",Q8,0)) -> 0 | T8: =IF(J8="","",ROUND(R8-S8,0)) -> 958 | U8: =IF(J8="","",ROUND(S8+T8,0)) -> 958 | V8: =IF(J8="","",ROUND(R8-U8,0)) -> 0
I9: =IF(A8="n","","Feb-2025") -> Feb-2025 | J9: =IF($J8="","",$J8) -> 47900 | K9: =IF(J9="","",ROUND(J9*$K$7,0)) -> 26345 | L9: =IF(J9="","",ROUND(J9+K9,0)) -> 74245 | M9: 47900 | N9: =IF(M9="","",ROUND(M9*$N$7,0)) -> 25387 | O9: =IF(M9="","",ROUND(M9+N9,0)) -> 73287 | P9: =IF(J9="","",ROUND(J9-M9,0)) -> 0 | Q9: =IF(J9="","",ROUND(K9-N9,0)) -> 958 | R9: =IF(J9="","",ROUND(P9+Q9,0)) -> 958 | S9: =IF(J9="","",IF($H8="Before-2004",Q9,0)) -> 0 | T9: =IF(J9="","",ROUND(R9-S9,0)) -> 958 | U9: =IF(J9="","",ROUND(S9+T9,0)) -> 958 | V9: =IF(J9="","",ROUND(R9-U9,0)) -> 0
I10: =IF(A8="n","","Mar-2025") -> Mar-2025 | J10: =IF($J8="","",$J8) -> 47900 | K10: =IF(J10="","",ROUND(J10*$K$7,0)) -> 26345 | L10: =IF(J10="","",ROUND(J10+K10,0)) -> 74245 | M10: 47900 | N10: =IF(M10="","",ROUND(M10*$N$7,0)) -> 25387 | O10: =IF(M10="","",ROUND(M10+N10,0)) -> 73287 | P10: =IF(J10="","",ROUND(J10-M10,0)) -> 0 | Q10: =IF(J10="","",ROUND(K10-N10,0)) -> 958 | R10: =IF(J10="","",ROUND(P10+Q10,0)) -> 958 | S10: =IF(J10="","",IF($H8="Before-2004",Q10,0)) -> 0 | T10: =IF(J10="","",ROUND(R10-S10,0)) -> 958 | U10: =IF(J10="","",ROUND(S10+T10,0)) -> 958 | V10: =IF(J10="","",ROUND(R10-U10,0)) -> 0
A11: =IF($D11="","n","y") -> y | C11: 2 | D11: B | G11: Teacher | H11: Before-2004 | I11: =IF(A11="n","","Jan-2025") -> Jan-2025 | J11: 47900 | K11: =IF(J11="","",ROUND(J11*$K$7,0)) -> 26345 | L11: =IF(J11="","",ROUND(J11+K11,0)) -> 74245 | M11: 47900 | N11: =IF(M11="","",ROUND(M11*$N$7,0)) -> 25387 | O11: =IF(M11="","",ROUND(M11+N11,0)) -> 73287 | P11: =IF(J11="","",ROUND(J11-M11,0)) -> 0 | Q11: =IF(J11="","",ROUND(K11-N11,0)) -> 958 | R11: =IF(J11="","",ROUND(P11+Q11,0)) -> 958 | S11: =IF(J11="","",IF($H11="Before-2004",Q11,0)) -> 958 | T11: =IF(J11="","",ROUND(R11-S11,0)) -> 0 | U11: =IF(J11="","",ROUND(S11+T11,0)) -> 958 | V11: =IF(J11="","",ROUND(R11-U11,0)) -> 0
I12: =IF(A11="n","","Feb-2025") -> Feb-2025 | J12: =IF($J11="","",$J11) -> 47900 | K12: =IF(J12="","",ROUND(J12*$K$7,0)) -> 26345 | L12: =IF(J12="","",ROUND(J12+K12,0)) -> 74245 | M12: 47900 | N12: =IF(M12="","",ROUND(M12*$N$7,0)) -> 25387 | O12: =IF(M12="","",ROUND(M12+N12,0)) -> 73287 | P12: =IF(J12="","",ROUND(J12-M12,0)) -> 0 | Q12: =IF(J12="","",ROUND(K12-N12,0)) -> 958 | R12: =IF(J12="","",ROUND(P12+Q12,0)) -> 958 | S12: =IF(J12="","",IF($H11="Before-2004",Q12,0)) -> 958 | T12: =IF(J12="","",ROUND(R12-S12,0)) -> 0 | U12: =IF(J12="","",ROUND(S12+T12,0)) -> 958 | V12: =IF(J12="","",ROUND(R12-U12,0)) -> 0
I13: =IF(A11="n","","Mar-2025") -> Mar-2025 | J13: =IF($J11="","",$J11) -> 47900 | K13: =IF(J13="","",ROUND(J13*$K$7,0)) -> 26345 | L13: =IF(J13="","",ROUND(J13+K13,0)) -> 74245 | M13: 47900 | N13: =IF(M13="","",ROUND(M13*$N$7,0)) -> 25387 | O13: =IF(M13="","",ROUND(M13+N13,0)) -> 73287 | P13: =IF(J13="","",ROUND(J13-M13,0)) -> 0 | Q13: =IF(J13="","",ROUND(K13-N13,0)) -> 958 | R13: =IF(J13="","",ROUND(P13+Q13,0)) -> 958 | S13: =IF(J13="","",IF($H11="Before-2004",Q13,0)) -> 958 | T13: =IF(J13="","",ROUND(R13-S13,0)) -> 0 | U13: =IF(J13="","",ROUND(S13+T13,0)) -> 958 | V13: =IF(J13="","",ROUND(R13-U13,0)) -> 0
A14: =IF($D14="","n","y") -> y | C14: 3 | D14: C | G14: Teacher | H14: After-2004 | I14: =IF(A14="n","","Jan-2025") -> Jan-2025 | J14: 47900 | K14: =IF(J14="","",ROUND(J14*$K$7,0)) -> 26345 | L14: =IF(J14="","",ROUND(J14+K14,0)) -> 74245 | M14: 47900 | N14: =IF(M14="","",ROUND(M14*$N$7,0)) -> 25387 | O14: =IF(M14="","",ROUND(M14+N14,0)) -> 73287 | P14: =IF(J14="","",ROUND(J14-M14,0)) -> 0 | Q14: =IF(J14="","",ROUND(K14-N14,0)) -> 958 | R14: =IF(J14="","",ROUND(P14+Q14,0)) -> 958 | S14: =IF(J14="","",IF($H14="Before-2004",Q14,0)) -> 0 | T14: =IF(J14="","",ROUND(R14-S14,0)) -> 958 | U14: =IF(J14="","",ROUND(S14+T14,0)) -> 958 | V14: =IF(J14="","",ROUND(R14-U14,0)) -> 0
I15: =IF(A14="n","","Feb-2025") -> Feb-2025 | J15: =IF($J14="","",$J14) -> 47900 | K15: =IF(J15="","",ROUND(J15*$K$7,0)) -> 26345 | L15: =IF(J15="","",ROUND(J15+K15,0)) -> 74245 | M15: 47900 | N15: =IF(M15="","",ROUND(M15*$N$7,0)) -> 25387 | O15: =IF(M15="","",ROUND(M15+N15,0)) -> 73287 | P15: =IF(J15="","",ROUND(J15-M15,0)) -> 0 | Q15: =IF(J15="","",ROUND(K15-N15,0)) -> 958 | R15: =IF(J15="","",ROUND(P15+Q15,0)) -> 958 | S15: =IF(J15="","",IF($H14="Before-2004",Q15,0)) -> 0 | T15: =IF(J15="","",ROUND(R15-S15,0)) -> 958 | U15: =IF(J15="","",ROUND(S15+T15,0)) -> 958 | V15: =IF(J15="","",ROUND(R15-U15,0)) -> 0
I16: =IF(A14="n","","Mar-2025") -> Mar-2025 | J16: =IF($J14="","",$J14) -> 47900 | K16: =IF(J16="","",ROUND(J16*$K$7,0)) -> 26345 | L16: =IF(J16="","",ROUND(J16+K16,0)) -> 74245 | M16: 47900 | N16: =IF(M16="","",ROUND(M16*$N$7,0)) -> 25387 | O16: =IF(M16="","",ROUND(M16+N16,0)) -> 73287 | P16: =IF(J16="","",ROUND(J16-M16,0)) -> 0 | Q16: =IF(J16="","",ROUND(K16-N16,0)) -> 958 | R16: =IF(J16="","",ROUND(P16+Q16,0)) -> 958 | S16: =IF(J16="","",IF($H14="Before-2004",Q16,0)) -> 0 | T16: =IF(J16="","",ROUND(R16-S16,0)) -> 958 | U16: =IF(J16="","",ROUND(S16+T16,0)) -> 958 | V16: =IF(J16="","",ROUND(R16-U16,0)) -> 0
A17: =IF($D17="","n","y") -> y | C17: 4 | D17: d | I17: =IF(A17="n","","Jan-2025") -> Jan-2025 | J17: 47900 | K17: =IF(J17="","",ROUND(J17*$K$7,0)) -> 26345 | L17: =IF(J17="","",ROUND(J17+K17,0)) -> 74245 | M17: 47900 | N17: =IF(M17="","",ROUND(M17*$N$7,0)) -> 25387 | O17: =IF(M17="","",ROUND(M17+N17,0)) -> 73287 | P17: =IF(J17="","",ROUND(J17-M17,0)) -> 0 | Q17: =IF(J17="","",ROUND(K17-N17,0)) -> 958 | R17: =IF(J17="","",ROUND(P17+Q17,0)) -> 958 | S17: =IF(J17="","",IF($H17="Before-2004",Q17,0)) -> 0 | T17: =IF(J17="","",ROUND(R17-S17,0)) -> 958 | U17: =IF(J17="","",ROUND(S17+T17,0)) -> 958 | V17: =IF(J17="","",ROUND(R17-U17,0)) -> 0
I18: =IF(A17="n","","Feb-2025") -> Feb-2025 | J18: =IF($J17="","",$J17) -> 47900 | K18: =IF(J18="","",ROUND(J18*$K$7,0)) -> 26345 | L18: =IF(J18="","",ROUND(J18+K18,0)) -> 74245 | M18: 47900 | N18: =IF(M18="","",ROUND(M18*$N$7,0)) -> 25387 | O18: =IF(M18="","",ROUND(M18+N18,0)) -> 73287 | P18: =IF(J18="","",ROUND(J18-M18,0)) -> 0 | Q18: =IF(J18="","",ROUND(K18-N18,0)) -> 958 | R18: =IF(J18="","",ROUND(P18+Q18,0)) -> 958 | S18: =IF(J18="","",IF($H17="Before-2004",Q18,0)) -> 0 | T18: =IF(J18="","",ROUND(R18-S18,0)) -> 958 | U18: =IF(J18="","",ROUND(S18+T18,0)) -> 958 | V18: =IF(J18="","",ROUND(R18-U18,0)) -> 0
I19: =IF(A17="n","","Mar-2025") -> Mar-2025 | J19: =IF($J17="","",$J17) -> 47900 | K19: =IF(J19="","",ROUND(J19*$K$7,0)) -> 26345 | L19: =IF(J19="","",ROUND(J19+K19,0)) -> 74245 | M19: 47900 | N19: =IF(M19="","",ROUND(M19*$N$7,0)) -> 25387 | O19: =IF(M19="","",ROUND(M19+N19,0)) -> 73287 | P19: =IF(J19="","",ROUND(J19-M19,0)) -> 0 | Q19: =IF(J19="","",ROUND(K19-N19,0)) -> 958 | R19: =IF(J19="","",ROUND(P19+Q19,0)) -> 958 | S19: =IF(J19="","",IF($H17="Before-2004",Q19,0)) -> 0 | T19: =IF(J19="","",ROUND(R19-S19,0)) -> 958 | U19: =IF(J19="","",ROUND(S19+T19,0)) -> 958 | V19: =IF(J19="","",ROUND(R19-U19,0)) -> 0
A20: =IF($D20="","n","y") -> n | C20: 5 | I20: =IF(A20="n","","Jan-2025") ->  | K20: =IF(J20="","",ROUND(J20*$K$7,0)) ->  | L20: =IF(J20="","",ROUND(J20+K20,0)) ->  | N20: =IF(M20="","",ROUND(M20*$N$7,0)) ->  | O20: =IF(M20="","",ROUND(M20+N20,0)) ->  | P20: =IF(J20="","",ROUND(J20-M20,0)) ->  | Q20: =IF(J20="","",ROUND(K20-N20,0)) ->  | R20: =IF(J20="","",ROUND(P20+Q20,0)) ->  | S20: =IF(J20="","",IF($H20="Before-2004",Q20,0)) ->  | T20: =IF(J20="","",ROUND(R20-S20,0)) ->  | U20: =IF(J20="","",ROUND(S20+T20,0)) ->  | V20: =IF(J20="","",ROUND(R20-U20,0)) -> 
I21: =IF(A20="n","","Feb-2025") ->  | J21: =IF($J20="","",$J20) ->  | K21: =IF(J21="","",ROUND(J21*$K$7,0)) ->  | L21: =IF(J21="","",ROUND(J21+K21,0)) ->  | N21: =IF(M21="","",ROUND(M21*$N$7,0)) ->  | O21: =IF(M21="","",ROUND(M21+N21,0)) ->  | P21: =IF(J21="","",ROUND(J21-M21,0)) ->  | Q21: =IF(J21="","",ROUND(K21-N21,0)) ->  | R21: =IF(J21="","",ROUND(P21+Q21,0)) ->  | S21: =IF(J21="","",IF($H20="Before-2004",Q21,0)) ->  | T21: =IF(J21="","",ROUND(R21-S21,0)) ->  | U21: =IF(J21="","",ROUND(S21+T21,0)) ->  | V21: =IF(J21="","",ROUND(R21-U21,0)) -> 
I22: =IF(A20="n","","Mar-2025") ->  | J22: =IF($J20="","",$J20) ->  | K22: =IF(J22="","",ROUND(J22*$K$7,0)) ->  | L22: =IF(J22="","",ROUND(J22+K22,0)) ->  | N22: =IF(M22="","",ROUND(M22*$N$7,0)) ->  | O22: =IF(M22="","",ROUND(M22+N22,0)) ->  | P22: =IF(J22="","",ROUND(J22-M22,0)) ->  | Q22: =IF(J22="","",ROUND(K22-N22,0)) ->  | R22: =IF(J22="","",ROUND(P22+Q22,0)) ->  | S22: =IF(J22="","",IF($H20="Before-2004",Q22,0)) ->  | T22: =IF(J22="","",ROUND(R22-S22,0)) ->  | U22: =IF(J22="","",ROUND(S22+T22,0)) ->  | V22: =IF(J22="","",ROUND(R22-U22,0)) -> 
A23: =IF($D23="","n","y") -> n | C23: 6 | I23: =IF(A23="n","","Jan-2025") ->  | K23: =IF(J23="","",ROUND(J23*$K$7,0)) ->  | L23: =IF(J23="","",ROUND(J23+K23,0)) ->  | N23: =IF(M23="","",ROUND(M23*$N$7,0)) ->  | O23: =IF(M23="","",ROUND(M23+N23,0)) ->  | P23: =IF(J23="","",ROUND(J23-M23,0)) ->  | Q23: =IF(J23="","",ROUND(K23-N23,0)) ->  | R23: =IF(J23="","",ROUND(P23+Q23,0)) ->  | S23: =IF(J23="","",IF($H23="Before-2004",Q23,0)) ->  | T23: =IF(J23="","",ROUND(R23-S23,0)) ->  | U23: =IF(J23="","",ROUND(S23+T23,0)) ->  | V23: =IF(J23="","",ROUND(R23-U23,0)) -> 
I24: =IF(A23="n","","Feb-2025") ->  | J24: =IF($J23="","",$J23) ->  | K24: =IF(J24="","",ROUND(J24*$K$7,0)) ->  | L24: =IF(J24="","",ROUND(J24+K24,0)) ->  | N24: =IF(M24="","",ROUND(M24*$N$7,0)) ->  | O24: =IF(M24="","",ROUND(M24+N24,0)) ->  | P24: =IF(J24="","",ROUND(J24-M24,0)) ->  | Q24: =IF(J24="","",ROUND(K24-N24,0)) ->  | R24: =IF(J24="","",ROUND(P24+Q24,0)) ->  | S24: =IF(J24="","",IF($H23="Before-2004",Q24,0)) ->  | T24: =IF(J24="","",ROUND(R24-S24,0)) ->  | U24: =IF(J24="","",ROUND(S24+T24,0)) ->  | V24: =IF(J24="","",ROUND(R24-U24,0)) -> 
I25: =IF(A23="n","","Mar-2025") ->  | J25: =IF($J23="","",$J23) ->  | K25: =IF(J25="","",ROUND(J25*$K$7,0)) ->  | L25: =IF(J25="","",ROUND(J25+K25,0)) ->  | N25: =IF(M25="","",ROUND(M25*$N$7,0)) ->  | O25: =IF(M25="","",ROUND(M25+N25,0)) ->  | P25: =IF(J25="","",ROUND(J25-M25,0)) ->  | Q25: =IF(J25="","",ROUND(K25-N25,0)) ->  | R25: =IF(J25="","",ROUND(P25+Q25,0)) ->  | S25: =IF(J25="","",IF($H23="Before-2004",Q25,0)) ->  | T25: =IF(J25="","",ROUND(R25-S25,0)) ->  | U25: =IF(J25="","",ROUND(S25+T25,0)) ->  | V25: =IF(J25="","",ROUND(R25-U25,0)) -> 
A26: =IF($D26="","n","y") -> n | C26: 7 | I26: =IF(A26="n","","Jan-2025") ->  | K26: =IF(J26="","",ROUND(J26*$K$7,0)) ->  | L26: =IF(J26="","",ROUND(J26+K26,0)) ->  | N26: =IF(M26="","",ROUND(M26*$N$7,0)) ->  | O26: =IF(M26="","",ROUND(M26+N26,0)) ->  | P26: =IF(J26="","",ROUND(J26-M26,0)) ->  | Q26: =IF(J26="","",ROUND(K26-N26,0)) ->  | R26: =IF(J26="","",ROUND(P26+Q26,0)) ->  | S26: =IF(J26="","",IF($H26="Before-2004",Q26,0)) ->  | T26: =IF(J26="","",ROUND(R26-S26,0)) ->  | U26: =IF(J26="","",ROUND(S26+T26,0)) ->  | V26: =IF(J26="","",ROUND(R26-U26,0)) -> 
I27: =IF(A26="n","","Feb-2025") ->  | J27: =IF($J26="","",$J26) ->  | K27: =IF(J27="","",ROUND(J27*$K$7,0)) ->  | L27: =IF(J27="","",ROUND(J27+K27,0)) ->  | N27: =IF(M27="","",ROUND(M27*$N$7,0)) ->  | O27: =IF(M27="","",ROUND(M27+N27,0)) ->  | P27: =IF(J27="","",ROUND(J27-M27,0)) ->  | Q27: =IF(J27="","",ROUND(K27-N27,0)) ->  | R27: =IF(J27="","",ROUND(P27+Q27,0)) ->  | S27: =IF(J27="","",IF($H26="Before-2004",Q27,0)) ->  | T27: =IF(J27="","",ROUND(R27-S27,0)) ->  | U27: =IF(J27="","",ROUND(S27+T27,0)) ->  | V27: =IF(J27="","",ROUND(R27-U27,0)) -> 
I28: =IF(A26="n","","Mar-2025") ->  | J28: =IF($J26="","",$J26) ->  | K28: =IF(J28="","",ROUND(J28*$K$7,0)) ->  | L28: =IF(J28="","",ROUND(J28+K28,0)) ->  | N28: =IF(M28="","",ROUND(M28*$N$7,0)) ->  | O28: =IF(M28="","",ROUND(M28+N28,0)) ->  | P28: =IF(J28="","",ROUND(J28-M28,0)) ->  | Q28: =IF(J28="","",ROUND(K28-N28,0)) ->  | R28: =IF(J28="","",ROUND(P28+Q28,0)) ->  | S28: =IF(J28="","",IF($H26="Before-2004",Q28,0)) ->  | T28: =IF(J28="","",ROUND(R28-S28,0)) ->  | U28: =IF(J28="","",ROUND(S28+T28,0)) ->  | V28: =IF(J28="","",ROUND(R28-U28,0)) -> 
A29: =IF($D29="","n","y") -> n | C29: 8 | I29: =IF(A29="n","","Jan-2025") ->  | K29: =IF(J29="","",ROUND(J29*$K$7,0)) ->  | L29: =IF(J29="","",ROUND(J29+K29,0)) ->  | N29: =IF(M29="","",ROUND(M29*$N$7,0)) ->  | O29: =IF(M29="","",ROUND(M29+N29,0)) ->  | P29: =IF(J29="","",ROUND(J29-M29,0)) ->  | Q29: =IF(J29="","",ROUND(K29-N29,0)) ->  | R29: =IF(J29="","",ROUND(P29+Q29,0)) ->  | S29: =IF(J29="","",IF($H29="Before-2004",Q29,0)) ->  | T29: =IF(J29="","",ROUND(R29-S29,0)) ->  | U29: =IF(J29="","",ROUND(S29+T29,0)) ->  | V29: =IF(J29="","",ROUND(R29-U29,0)) -> 
I30: =IF(A29="n","","Feb-2025") ->  | J30: =IF($J29="","",$J29) ->  | K30: =IF(J30="","",ROUND(J30*$K$7,0)) ->  | L30: =IF(J30="","",ROUND(J30+K30,0)) ->  | N30: =IF(M30="","",ROUND(M30*$N$7,0)) ->  | O30: =IF(M30="","",ROUND(M30+N30,0)) ->  | P30: =IF(J30="","",ROUND(J30-M30,0)) ->  | Q30: =IF(J30="","",ROUND(K30-N30,0)) ->  | R30: =IF(J30="","",ROUND(P30+Q30,0)) ->  | S30: =IF(J30="","",IF($H29="Before-2004",Q30,0)) ->  | T30: =IF(J30="","",ROUND(R30-S30,0)) ->  | U30: =IF(J30="","",ROUND(S30+T30,0)) ->  | V30: =IF(J30="","",ROUND(R30-U30,0)) -> 
I31: =IF(A29="n","","Mar-2025") ->  | J31: =IF($J29="","",$J29) ->  | K31: =IF(J31="","",ROUND(J31*$K$7,0)) ->  | L31: =IF(J31="","",ROUND(J31+K31,0)) ->  | N31: =IF(M31="","",ROUND(M31*$N$7,0)) ->  | O31: =IF(M31="","",ROUND(M31+N31,0)) ->  | P31: =IF(J31="","",ROUND(J31-M31,0)) ->  | Q31: =IF(J31="","",ROUND(K31-N31,0)) ->  | R31: =IF(J31="","",ROUND(P31+Q31,0)) ->  | S31: =IF(J31="","",IF($H29="Before-2004",Q31,0)) ->  | T31: =IF(J31="","",ROUND(R31-S31,0)) ->  | U31: =IF(J31="","",ROUND(S31+T31,0)) ->  | V31: =IF(J31="","",ROUND(R31-U31,0)) -> 
A32: =IF($D32="","n","y") -> n | C32: 9 | I32: =IF(A32="n","","Jan-2025") ->  | K32: =IF(J32="","",ROUND(J32*$K$7,0)) ->  | L32: =IF(J32="","",ROUND(J32+K32,0)) ->  | N32: =IF(M32="","",ROUND(M32*$N$7,0)) ->  | O32: =IF(M32="","",ROUND(M32+N32,0)) ->  | P32: =IF(J32="","",ROUND(J32-M32,0)) ->  | Q32: =IF(J32="","",ROUND(K32-N32,0)) ->  | R32: =IF(J32="","",ROUND(P32+Q32,0)) ->  | S32: =IF(J32="","",IF($H32="Before-2004",Q32,0)) ->  | T32: =IF(J32="","",ROUND(R32-S32,0)) ->  | U32: =IF(J32="","",ROUND(S32+T32,0)) ->  | V32: =IF(J32="","",ROUND(R32-U32,0)) -> 
I33: =IF(A32="n","","Feb-2025") ->  | J33: =IF($J32="","",$J32) ->  | K33: =IF(J33="","",ROUND(J33*$K$7,0)) ->  | L33: =IF(J33="","",ROUND(J33+K33,0)) ->  | N33: =IF(M33="","",ROUND(M33*$N$7,0)) ->  | O33: =IF(M33="","",ROUND(M33+N33,0)) ->  | P33: =IF(J33="","",ROUND(J33-M33,0)) ->  | Q33: =IF(J33="","",ROUND(K33-N33,0)) ->  | R33: =IF(J33="","",ROUND(P33+Q33,0)) ->  | S33: =IF(J33="","",IF($H32="Before-2004",Q33,0)) ->  | T33: =IF(J33="","",ROUND(R33-S33,0)) ->  | U33: =IF(J33="","",ROUND(S33+T33,0)) ->  | V33: =IF(J33="","",ROUND(R33-U33,0)) -> 
I34: =IF(A32="n","","Mar-2025") ->  | J34: =IF($J32="","",$J32) ->  | K34: =IF(J34="","",ROUND(J34*$K$7,0)) ->  | L34: =IF(J34="","",ROUND(J34+K34,0)) ->  | N34: =IF(M34="","",ROUND(M34*$N$7,0)) ->  | O34: =IF(M34="","",ROUND(M34+N34,0)) ->  | P34: =IF(J34="","",ROUND(J34-M34,0)) ->  | Q34: =IF(J34="","",ROUND(K34-N34,0)) ->  | R34: =IF(J34="","",ROUND(P34+Q34,0)) ->  | S34: =IF(J34="","",IF($H32="Before-2004",Q34,0)) ->  | T34: =IF(J34="","",ROUND(R34-S34,0)) ->  | U34: =IF(J34="","",ROUND(S34+T34,0)) ->  | V34: =IF(J34="","",ROUND(R34-U34,0)) -> 
A35: =IF($D35="","n","y") -> n | C35: 10 | I35: =IF(A35="n","","Jan-2025") ->  | K35: =IF(J35="","",ROUND(J35*$K$7,0)) ->  | L35: =IF(J35="","",ROUND(J35+K35,0)) ->  | N35: =IF(M35="","",ROUND(M35*$N$7,0)) ->  | O35: =IF(M35="","",ROUND(M35+N35,0)) ->  | P35: =IF(J35="","",ROUND(J35-M35,0)) ->  | Q35: =IF(J35="","",ROUND(K35-N35,0)) ->  | R35: =IF(J35="","",ROUND(P35+Q35,0)) ->  | S35: =IF(J35="","",IF($H35="Before-2004",Q35,0)) ->  | T35: =IF(J35="","",ROUND(R35-S35,0)) ->  | U35: =IF(J35="","",ROUND(S35+T35,0)) ->  | V35: =IF(J35="","",ROUND(R35-U35,0)) -> 
I36: =IF(A35="n","","Feb-2025") ->  | J36: =IF($J35="","",$J35) ->  | K36: =IF(J36="","",ROUND(J36*$K$7,0)) ->  | L36: =IF(J36="","",ROUND(J36+K36,0)) ->  | N36: =IF(M36="","",ROUND(M36*$N$7,0)) ->  | O36: =IF(M36="","",ROUND(M36+N36,0)) ->  | P36: =IF(J36="","",ROUND(J36-M36,0)) ->  | Q36: =IF(J36="","",ROUND(K36-N36,0)) ->  | R36: =IF(J36="","",ROUND(P36+Q36,0)) ->  | S36: =IF(J36="","",IF($H35="Before-2004",Q36,0)) ->  | T36: =IF(J36="","",ROUND(R36-S36,0)) ->  | U36: =IF(J36="","",ROUND(S36+T36,0)) ->  | V36: =IF(J36="","",ROUND(R36-U36,0)) -> 
I37: =IF(A35="n","","Mar-2025") ->  | J37: =IF($J35="","",$J35) ->  | K37: =IF(J37="","",ROUND(J37*$K$7,0)) ->  | L37: =IF(J37="","",ROUND(J37+K37,0)) ->  | N37: =IF(M37="","",ROUND(M37*$N$7,0)) ->  | O37: =IF(M37="","",ROUND(M37+N37,0)) ->  | P37: =IF(J37="","",ROUND(J37-M37,0)) ->  | Q37: =IF(J37="","",ROUND(K37-N37,0)) ->  | R37: =IF(J37="","",ROUND(P37+Q37,0)) ->  | S37: =IF(J37="","",IF($H35="Before-2004",Q37,0)) ->  | T37: =IF(J37="","",ROUND(R37-S37,0)) ->  | U37: =IF(J37="","",ROUND(S37+T37,0)) ->  | V37: =IF(J37="","",ROUND(R37-U37,0)) -> 
A38: =IF($D38="","n","y") -> n | C38: 11 | I38: =IF(A38="n","","Jan-2025") ->  | K38: =IF(J38="","",ROUND(J38*$K$7,0)) ->  | L38: =IF(J38="","",ROUND(J38+K38,0)) ->  | N38: =IF(M38="","",ROUND(M38*$N$7,0)) ->  | O38: =IF(M38="","",ROUND(M38+N38,0)) ->  | P38: =IF(J38="","",ROUND(J38-M38,0)) ->  | Q38: =IF(J38="","",ROUND(K38-N38,0)) ->  | R38: =IF(J38="","",ROUND(P38+Q38,0)) ->  | S38: =IF(J38="","",IF($H38="Before-2004",Q38,0)) ->  | T38: =IF(J38="","",ROUND(R38-S38,0)) ->  | U38: =IF(J38="","",ROUND(S38+T38,0)) ->  | V38: =IF(J38="","",ROUND(R38-U38,0)) -> 
I39: =IF(A38="n","","Feb-2025") ->  | J39: =IF($J38="","",$J38) ->  | K39: =IF(J39="","",ROUND(J39*$K$7,0)) ->  | L39: =IF(J39="","",ROUND(J39+K39,0)) ->  | N39: =IF(M39="","",ROUND(M39*$N$7,0)) ->  | O39: =IF(M39="","",ROUND(M39+N39,0)) ->  | P39: =IF(J39="","",ROUND(J39-M39,0)) ->  | Q39: =IF(J39="","",ROUND(K39-N39,0)) ->  | R39: =IF(J39="","",ROUND(P39+Q39,0)) ->  | S39: =IF(J39="","",IF($H38="Before-2004",Q39,0)) ->  | T39: =IF(J39="","",ROUND(R39-S39,0)) ->  | U39: =IF(J39="","",ROUND(S39+T39,0)) ->  | V39: =IF(J39="","",ROUND(R39-U39,0)) -> 
I40: =IF(A38="n","","Mar-2025") ->  | J40: =IF($J38="","",$J38) ->  | K40: =IF(J40="","",ROUND(J40*$K$7,0)) ->  | L40: =IF(J40="","",ROUND(J40+K40,0)) ->  | M40: =IF(J40="","",J40) ->  | N40: =IF(M40="","",ROUND(M40*$N$7,0)) ->  | O40: =IF(M40="","",ROUND(M40+N40,0)) ->  | P40: =IF(J40="","",ROUND(J40-M40,0)) ->  | Q40: =IF(J40="","",ROUND(K40-N40,0)) ->  | R40: =IF(J40="","",ROUND(P40+Q40,0)) ->  | S40: =IF(J40="","",IF($H38="Before-2004",Q40,0)) ->  | T40: =IF(J40="","",ROUND(R40-S40,0)) ->  | U40: =IF(J40="","",ROUND(S40+T40,0)) ->  | V40: =IF(J40="","",ROUND(R40-U40,0)) -> 
A41: =IF($D41="","n","y") -> n | C41: 12 | I41: =IF(A41="n","","Jan-2025") ->  | K41: =IF(J41="","",ROUND(J41*$K$7,0)) ->  | L41: =IF(J41="","",ROUND(J41+K41,0)) ->  | N41: =IF(M41="","",ROUND(M41*$N$7,0)) ->  | O41: =IF(M41="","",ROUND(M41+N41,0)) ->  | P41: =IF(J41="","",ROUND(J41-M41,0)) ->  | Q41: =IF(J41="","",ROUND(K41-N41,0)) ->  | R41: =IF(J41="","",ROUND(P41+Q41,0)) ->  | S41: =IF(J41="","",IF($H41="Before-2004",Q41,0)) ->  | T41: =IF(J41="","",ROUND(R41-S41,0)) ->  | U41: =IF(J41="","",ROUND(S41+T41,0)) ->  | V41: =IF(J41="","",ROUND(R41-U41,0)) -> 
I42: =IF(A41="n","","Feb-2025") ->  | J42: =IF($J41="","",$J41) ->  | K42: =IF(J42="","",ROUND(J42*$K$7,0)) ->  | L42: =IF(J42="","",ROUND(J42+K42,0)) ->  | N42: =IF(M42="","",ROUND(M42*$N$7,0)) ->  | O42: =IF(M42="","",ROUND(M42+N42,0)) ->  | P42: =IF(J42="","",ROUND(J42-M42,0)) ->  | Q42: =IF(J42="","",ROUND(K42-N42,0)) ->  | R42: =IF(J42="","",ROUND(P42+Q42,0)) ->  | S42: =IF(J42="","",IF($H41="Before-2004",Q42,0)) ->  | T42: =IF(J42="","",ROUND(R42-S42,0)) ->  | U42: =IF(J42="","",ROUND(S42+T42,0)) ->  | V42: =IF(J42="","",ROUND(R42-U42,0)) -> 
I43: =IF(A41="n","","Mar-2025") ->  | J43: =IF($J41="","",$J41) ->  | K43: =IF(J43="","",ROUND(J43*$K$7,0)) ->  | L43: =IF(J43="","",ROUND(J43+K43,0)) ->  | N43: =IF(M43="","",ROUND(M43*$N$7,0)) ->  | O43: =IF(M43="","",ROUND(M43+N43,0)) ->  | P43: =IF(J43="","",ROUND(J43-M43,0)) ->  | Q43: =IF(J43="","",ROUND(K43-N43,0)) ->  | R43: =IF(J43="","",ROUND(P43+Q43,0)) ->  | S43: =IF(J43="","",IF($H41="Before-2004",Q43,0)) ->  | T43: =IF(J43="","",ROUND(R43-S43,0)) ->  | U43: =IF(J43="","",ROUND(S43+T43,0)) ->  | V43: =IF(J43="","",ROUND(R43-U43,0)) -> 
A44: =IF($D44="","n","y") -> n | C44: 13 | I44: =IF(A44="n","","Jan-2025") ->  | K44: =IF(J44="","",ROUND(J44*$K$7,0)) ->  | L44: =IF(J44="","",ROUND(J44+K44,0)) ->  | N44: =IF(M44="","",ROUND(M44*$N$7,0)) ->  | O44: =IF(M44="","",ROUND(M44+N44,0)) ->  | P44: =IF(J44="","",ROUND(J44-M44,0)) ->  | Q44: =IF(J44="","",ROUND(K44-N44,0)) ->  | R44: =IF(J44="","",ROUND(P44+Q44,0)) ->  | S44: =IF(J44="","",IF($H44="Before-2004",Q44,0)) ->  | T44: =IF(J44="","",ROUND(R44-S44,0)) ->  | U44: =IF(J44="","",ROUND(S44+T44,0)) ->  | V44: =IF(J44="","",ROUND(R44-U44,0)) -> 
I45: =IF(A44="n","","Feb-2025") ->  | J45: =IF($J44="","",$J44) ->  | K45: =IF(J45="","",ROUND(J45*$K$7,0)) ->  | L45: =IF(J45="","",ROUND(J45+K45,0)) ->  | N45: =IF(M45="","",ROUND(M45*$N$7,0)) ->  | O45: =IF(M45="","",ROUND(M45+N45,0)) ->  | P45: =IF(J45="","",ROUND(J45-M45,0)) ->  | Q45: =IF(J45="","",ROUND(K45-N45,0)) ->  | R45: =IF(J45="","",ROUND(P45+Q45,0)) ->  | S45: =IF(J45="","",IF($H44="Before-2004",Q45,0)) ->  | T45: =IF(J45="","",ROUND(R45-S45,0)) ->  | U45: =IF(J45="","",ROUND(S45+T45,0)) ->  | V45: =IF(J45="","",ROUND(R45-U45,0)) -> 
I46: =IF(A44="n","","Mar-2025") ->  | J46: =IF($J44="","",$J44) ->  | K46: =IF(J46="","",ROUND(J46*$K$7,0)) ->  | L46: =IF(J46="","",ROUND(J46+K46,0)) ->  | N46: =IF(M46="","",ROUND(M46*$N$7,0)) ->  | O46: =IF(M46="","",ROUND(M46+N46,0)) ->  | P46: =IF(J46="","",ROUND(J46-M46,0)) ->  | Q46: =IF(J46="","",ROUND(K46-N46,0)) ->  | R46: =IF(J46="","",ROUND(P46+Q46,0)) ->  | S46: =IF(J46="","",IF($H44="Before-2004",Q46,0)) ->  | T46: =IF(J46="","",ROUND(R46-S46,0)) ->  | U46: =IF(J46="","",ROUND(S46+T46,0)) ->  | V46: =IF(J46="","",ROUND(R46-U46,0)) -> 
A47: =IF($D47="","n","y") -> n | C47: 14 | I47: =IF(A47="n","","Jan-2025") ->  | K47: =IF(J47="","",ROUND(J47*$K$7,0)) ->  | L47: =IF(J47="","",ROUND(J47+K47,0)) ->  | N47: =IF(M47="","",ROUND(M47*$N$7,0)) ->  | O47: =IF(M47="","",ROUND(M47+N47,0)) ->  | P47: =IF(J47="","",ROUND(J47-M47,0)) ->  | Q47: =IF(J47="","",ROUND(K47-N47,0)) ->  | R47: =IF(J47="","",ROUND(P47+Q47,0)) ->  | S47: =IF(J47="","",IF($H47="Before-2004",Q47,0)) ->  | T47: =IF(J47="","",ROUND(R47-S47,0)) ->  | U47: =IF(J47="","",ROUND(S47+T47,0)) ->  | V47: =IF(J47="","",ROUND(R47-U47,0)) -> 
I48: =IF(A47="n","","Feb-2025") ->  | J48: =IF($J47="","",$J47) ->  | K48: =IF(J48="","",ROUND(J48*$K$7,0)) ->  | L48: =IF(J48="","",ROUND(J48+K48,0)) ->  | N48: =IF(M48="","",ROUND(M48*$N$7,0)) ->  | O48: =IF(M48="","",ROUND(M48+N48,0)) ->  | P48: =IF(J48="","",ROUND(J48-M48,0)) ->  | Q48: =IF(J48="","",ROUND(K48-N48,0)) ->  | R48: =IF(J48="","",ROUND(P48+Q48,0)) ->  | S48: =IF(J48="","",IF($H47="Before-2004",Q48,0)) ->  | T48: =IF(J48="","",ROUND(R48-S48,0)) ->  | U48: =IF(J48="","",ROUND(S48+T48,0)) ->  | V48: =IF(J48="","",ROUND(R48-U48,0)) -> 
I49: =IF(A47="n","","Mar-2025") ->  | J49: =IF($J47="","",$J47) ->  | K49: =IF(J49="","",ROUND(J49*$K$7,0)) ->  | L49: =IF(J49="","",ROUND(J49+K49,0)) ->  | N49: =IF(M49="","",ROUND(M49*$N$7,0)) ->  | O49: =IF(M49="","",ROUND(M49+N49,0)) ->  | P49: =IF(J49="","",ROUND(J49-M49,0)) ->  | Q49: =IF(J49="","",ROUND(K49-N49,0)) ->  | R49: =IF(J49="","",ROUND(P49+Q49,0)) ->  | S49: =IF(J49="","",IF($H47="Before-2004",Q49,0)) ->  | T49: =IF(J49="","",ROUND(R49-S49,0)) ->  | U49: =IF(J49="","",ROUND(S49+T49,0)) ->  | V49: =IF(J49="","",ROUND(R49-U49,0)) -> 
A50: =IF($D50="","n","y") -> n | C50: 15 | I50: =IF(A50="n","","Jan-2025") ->  | K50: =IF(J50="","",ROUND(J50*$K$7,0)) ->  | L50: =IF(J50="","",ROUND(J50+K50,0)) ->  | N50: =IF(M50="","",ROUND(M50*$N$7,0)) ->  | O50: =IF(M50="","",ROUND(M50+N50,0)) ->  | P50: =IF(J50="","",ROUND(J50-M50,0)) ->  | Q50: =IF(J50="","",ROUND(K50-N50,0)) ->  | R50: =IF(J50="","",ROUND(P50+Q50,0)) ->  | S50: =IF(J50="","",IF($H50="Before-2004",Q50,0)) ->  | T50: =IF(J50="","",ROUND(R50-S50,0)) ->  | U50: =IF(J50="","",ROUND(S50+T50,0)) ->  | V50: =IF(J50="","",ROUND(R50-U50,0)) -> 
I51: =IF(A50="n","","Feb-2025") ->  | J51: =IF($J50="","",$J50) ->  | K51: =IF(J51="","",ROUND(J51*$K$7,0)) ->  | L51: =IF(J51="","",ROUND(J51+K51,0)) ->  | N51: =IF(M51="","",ROUND(M51*$N$7,0)) ->  | O51: =IF(M51="","",ROUND(M51+N51,0)) ->  | P51: =IF(J51="","",ROUND(J51-M51,0)) ->  | Q51: =IF(J51="","",ROUND(K51-N51,0)) ->  | R51: =IF(J51="","",ROUND(P51+Q51,0)) ->  | S51: =IF(J51="","",IF($H50="Before-2004",Q51,0)) ->  | T51: =IF(J51="","",ROUND(R51-S51,0)) ->  | U51: =IF(J51="","",ROUND(S51+T51,0)) ->  | V51: =IF(J51="","",ROUND(R51-U51,0)) -> 
I52: =IF(A50="n","","Mar-2025") ->  | J52: =IF($J50="","",$J50) ->  | K52: =IF(J52="","",ROUND(J52*$K$7,0)) ->  | L52: =IF(J52="","",ROUND(J52+K52,0)) ->  | N52: =IF(M52="","",ROUND(M52*$N$7,0)) ->  | O52: =IF(M52="","",ROUND(M52+N52,0)) ->  | P52: =IF(J52="","",ROUND(J52-M52,0)) ->  | Q52: =IF(J52="","",ROUND(K52-N52,0)) ->  | R52: =IF(J52="","",ROUND(P52+Q52,0)) ->  | S52: =IF(J52="","",IF($H50="Before-2004",Q52,0)) ->  | T52: =IF(J52="","",ROUND(R52-S52,0)) ->  | U52: =IF(J52="","",ROUND(S52+T52,0)) ->  | V52: =IF(J52="","",ROUND(R52-U52,0)) -> 
A53: =IF($D53="","n","y") -> n | C53: 16 | I53: =IF(A53="n","","Jan-2025") ->  | K53: =IF(J53="","",ROUND(J53*$K$7,0)) ->  | L53: =IF(J53="","",ROUND(J53+K53,0)) ->  | N53: =IF(M53="","",ROUND(M53*$N$7,0)) ->  | O53: =IF(M53="","",ROUND(M53+N53,0)) ->  | P53: =IF(J53="","",ROUND(J53-M53,0)) ->  | Q53: =IF(J53="","",ROUND(K53-N53,0)) ->  | R53: =IF(J53="","",ROUND(P53+Q53,0)) ->  | S53: =IF(J53="","",IF($H53="Before-2004",Q53,0)) ->  | T53: =IF(J53="","",ROUND(R53-S53,0)) ->  | U53: =IF(J53="","",ROUND(S53+T53,0)) ->  | V53: =IF(J53="","",ROUND(R53-U53,0)) -> 
I54: =IF(A53="n","","Feb-2025") ->  | J54: =IF($J53="","",$J53) ->  | K54: =IF(J54="","",ROUND(J54*$K$7,0)) ->  | L54: =IF(J54="","",ROUND(J54+K54,0)) ->  | N54: =IF(M54="","",ROUND(M54*$N$7,0)) ->  | O54: =IF(M54="","",ROUND(M54+N54,0)) ->  | P54: =IF(J54="","",ROUND(J54-M54,0)) ->  | Q54: =IF(J54="","",ROUND(K54-N54,0)) ->  | R54: =IF(J54="","",ROUND(P54+Q54,0)) ->  | S54: =IF(J54="","",IF($H53="Before-2004",Q54,0)) ->  | T54: =IF(J54="","",ROUND(R54-S54,0)) ->  | U54: =IF(J54="","",ROUND(S54+T54,0)) ->  | V54: =IF(J54="","",ROUND(R54-U54,0)) -> 
I55: =IF(A53="n","","Mar-2025") ->  | J55: =IF($J53="","",$J53) ->  | K55: =IF(J55="","",ROUND(J55*$K$7,0)) ->  | L55: =IF(J55="","",ROUND(J55+K55,0)) ->  | N55: =IF(M55="","",ROUND(M55*$N$7,0)) ->  | O55: =IF(M55="","",ROUND(M55+N55,0)) ->  | P55: =IF(J55="","",ROUND(J55-M55,0)) ->  | Q55: =IF(J55="","",ROUND(K55-N55,0)) ->  | R55: =IF(J55="","",ROUND(P55+Q55,0)) ->  | S55: =IF(J55="","",IF($H53="Before-2004",Q55,0)) ->  | T55: =IF(J55="","",ROUND(R55-S55,0)) ->  | U55: =IF(J55="","",ROUND(S55+T55,0)) ->  | V55: =IF(J55="","",ROUND(R55-U55,0)) -> 
A56: =IF($D56="","n","y") -> n | C56: 17 | I56: =IF(A56="n","","Jan-2025") ->  | K56: =IF(J56="","",ROUND(J56*$K$7,0)) ->  | L56: =IF(J56="","",ROUND(J56+K56,0)) ->  | N56: =IF(M56="","",ROUND(M56*$N$7,0)) ->  | O56: =IF(M56="","",ROUND(M56+N56,0)) ->  | P56: =IF(J56="","",ROUND(J56-M56,0)) ->  | Q56: =IF(J56="","",ROUND(K56-N56,0)) ->  | R56: =IF(J56="","",ROUND(P56+Q56,0)) ->  | S56: =IF(J56="","",IF($H56="Before-2004",Q56,0)) ->  | T56: =IF(J56="","",ROUND(R56-S56,0)) ->  | U56: =IF(J56="","",ROUND(S56+T56,0)) ->  | V56: =IF(J56="","",ROUND(R56-U56,0)) -> 
I57: =IF(A56="n","","Feb-2025") ->  | J57: =IF($J56="","",$J56) ->  | K57: =IF(J57="","",ROUND(J57*$K$7,0)) ->  | L57: =IF(J57="","",ROUND(J57+K57,0)) ->  | N57: =IF(M57="","",ROUND(M57*$N$7,0)) ->  | O57: =IF(M57="","",ROUND(M57+N57,0)) ->  | P57: =IF(J57="","",ROUND(J57-M57,0)) ->  | Q57: =IF(J57="","",ROUND(K57-N57,0)) ->  | R57: =IF(J57="","",ROUND(P57+Q57,0)) ->  | S57: =IF(J57="","",IF($H56="Before-2004",Q57,0)) ->  | T57: =IF(J57="","",ROUND(R57-S57,0)) ->  | U57: =IF(J57="","",ROUND(S57+T57,0)) ->  | V57: =IF(J57="","",ROUND(R57-U57,0)) -> 
I58: =IF(A56="n","","Mar-2025") ->  | J58: =IF($J56="","",$J56) ->  | K58: =IF(J58="","",ROUND(J58*$K$7,0)) ->  | L58: =IF(J58="","",ROUND(J58+K58,0)) ->  | N58: =IF(M58="","",ROUND(M58*$N$7,0)) ->  | O58: =IF(M58="","",ROUND(M58+N58,0)) ->  | P58: =IF(J58="","",ROUND(J58-M58,0)) ->  | Q58: =IF(J58="","",ROUND(K58-N58,0)) ->  | R58: =IF(J58="","",ROUND(P58+Q58,0)) ->  | S58: =IF(J58="","",IF($H56="Before-2004",Q58,0)) ->  | T58: =IF(J58="","",ROUND(R58-S58,0)) ->  | U58: =IF(J58="","",ROUND(S58+T58,0)) ->  | V58: =IF(J58="","",ROUND(R58-U58,0)) -> 
A59: =IF($D59="","n","y") -> n | C59: 18 | I59: =IF(A59="n","","Jan-2025") ->  | K59: =IF(J59="","",ROUND(J59*$K$7,0)) ->  | L59: =IF(J59="","",ROUND(J59+K59,0)) ->  | N59: =IF(M59="","",ROUND(M59*$N$7,0)) ->  | O59: =IF(M59="","",ROUND(M59+N59,0)) ->  | P59: =IF(J59="","",ROUND(J59-M59,0)) ->  | Q59: =IF(J59="","",ROUND(K59-N59,0)) ->  | R59: =IF(J59="","",ROUND(P59+Q59,0)) ->  | S59: =IF(J59="","",IF($H59="Before-2004",Q59,0)) ->  | T59: =IF(J59="","",ROUND(R59-S59,0)) ->  | U59: =IF(J59="","",ROUND(S59+T59,0)) ->  | V59: =IF(J59="","",ROUND(R59-U59,0)) -> 
I60: =IF(A59="n","","Feb-2025") ->  | J60: =IF($J59="","",$J59) ->  | K60: =IF(J60="","",ROUND(J60*$K$7,0)) ->  | L60: =IF(J60="","",ROUND(J60+K60,0)) ->  | N60: =IF(M60="","",ROUND(M60*$N$7,0)) ->  | O60: =IF(M60="","",ROUND(M60+N60,0)) ->  | P60: =IF(J60="","",ROUND(J60-M60,0)) ->  | Q60: =IF(J60="","",ROUND(K60-N60,0)) ->  | R60: =IF(J60="","",ROUND(P60+Q60,0)) ->  | S60: =IF(J60="","",IF($H59="Before-2004",Q60,0)) ->  | T60: =IF(J60="","",ROUND(R60-S60,0)) ->  | U60: =IF(J60="","",ROUND(S60+T60,0)) ->  | V60: =IF(J60="","",ROUND(R60-U60,0)) -> 
I61: =IF(A59="n","","Mar-2025") ->  | J61: =IF($J59="","",$J59) ->  | K61: =IF(J61="","",ROUND(J61*$K$7,0)) ->  | L61: =IF(J61="","",ROUND(J61+K61,0)) ->  | N61: =IF(M61="","",ROUND(M61*$N$7,0)) ->  | O61: =IF(M61="","",ROUND(M61+N61,0)) ->  | P61: =IF(J61="","",ROUND(J61-M61,0)) ->  | Q61: =IF(J61="","",ROUND(K61-N61,0)) ->  | R61: =IF(J61="","",ROUND(P61+Q61,0)) ->  | S61: =IF(J61="","",IF($H59="Before-2004",Q61,0)) ->  | T61: =IF(J61="","",ROUND(R61-S61,0)) ->  | U61: =IF(J61="","",ROUND(S61+T61,0)) ->  | V61: =IF(J61="","",ROUND(R61-U61,0)) -> 
A62: =IF($D62="","n","y") -> n | C62: 19 | I62: =IF(A62="n","","Jan-2025") ->  | K62: =IF(J62="","",ROUND(J62*$K$7,0)) ->  | L62: =IF(J62="","",ROUND(J62+K62,0)) ->  | N62: =IF(M62="","",ROUND(M62*$N$7,0)) ->  | O62: =IF(M62="","",ROUND(M62+N62,0)) ->  | P62: =IF(J62="","",ROUND(J62-M62,0)) ->  | Q62: =IF(J62="","",ROUND(K62-N62,0)) ->  | R62: =IF(J62="","",ROUND(P62+Q62,0)) ->  | S62: =IF(J62="","",IF($H62="Before-2004",Q62,0)) ->  | T62: =IF(J62="","",ROUND(R62-S62,0)) ->  | U62: =IF(J62="","",ROUND(S62+T62,0)) ->  | V62: =IF(J62="","",ROUND(R62-U62,0)) -> 
I63: =IF(A62="n","","Feb-2025") ->  | J63: =IF($J62="","",$J62) ->  | K63: =IF(J63="","",ROUND(J63*$K$7,0)) ->  | L63: =IF(J63="","",ROUND(J63+K63,0)) ->  | N63: =IF(M63="","",ROUND(M63*$N$7,0)) ->  | O63: =IF(M63="","",ROUND(M63+N63,0)) ->  | P63: =IF(J63="","",ROUND(J63-M63,0)) ->  | Q63: =IF(J63="","",ROUND(K63-N63,0)) ->  | R63: =IF(J63="","",ROUND(P63+Q63,0)) ->  | S63: =IF(J63="","",IF($H62="Before-2004",Q63,0)) ->  | T63: =IF(J63="","",ROUND(R63-S63,0)) ->  | U63: =IF(J63="","",ROUND(S63+T63,0)) ->  | V63: =IF(J63="","",ROUND(R63-U63,0)) -> 
I64: =IF(A62="n","","Mar-2025") ->  | J64: =IF($J62="","",$J62) ->  | K64: =IF(J64="","",ROUND(J64*$K$7,0)) ->  | L64: =IF(J64="","",ROUND(J64+K64,0)) ->  | N64: =IF(M64="","",ROUND(M64*$N$7,0)) ->  | O64: =IF(M64="","",ROUND(M64+N64,0)) ->  | P64: =IF(J64="","",ROUND(J64-M64,0)) ->  | Q64: =IF(J64="","",ROUND(K64-N64,0)) ->  | R64: =IF(J64="","",ROUND(P64+Q64,0)) ->  | S64: =IF(J64="","",IF($H62="Before-2004",Q64,0)) ->  | T64: =IF(J64="","",ROUND(R64-S64,0)) ->  | U64: =IF(J64="","",ROUND(S64+T64,0)) ->  | V64: =IF(J64="","",ROUND(R64-U64,0)) -> 
A65: =IF($D65="","n","y") -> n | C65: 20 | I65: =IF(A65="n","","Jan-2025") ->  | K65: =IF(J65="","",ROUND(J65*$K$7,0)) ->  | L65: =IF(J65="","",ROUND(J65+K65,0)) ->  | N65: =IF(M65="","",ROUND(M65*$N$7,0)) ->  | O65: =IF(M65="","",ROUND(M65+N65,0)) ->  | P65: =IF(J65="","",ROUND(J65-M65,0)) ->  | Q65: =IF(J65="","",ROUND(K65-N65,0)) ->  | R65: =IF(J65="","",ROUND(P65+Q65,0)) ->  | S65: =IF(J65="","",IF($H65="Before-2004",Q65,0)) ->  | T65: =IF(J65="","",ROUND(R65-S65,0)) ->  | U65: =IF(J65="","",ROUND(S65+T65,0)) ->  | V65: =IF(J65="","",ROUND(R65-U65,0)) -> 
I66: =IF(A65="n","","Feb-2025") ->  | J66: =IF($J65="","",$J65) ->  | K66: =IF(J66="","",ROUND(J66*$K$7,0)) ->  | L66: =IF(J66="","",ROUND(J66+K66,0)) ->  | N66: =IF(M66="","",ROUND(M66*$N$7,0)) ->  | O66: =IF(M66="","",ROUND(M66+N66,0)) ->  | P66: =IF(J66="","",ROUND(J66-M66,0)) ->  | Q66: =IF(J66="","",ROUND(K66-N66,0)) ->  | R66: =IF(J66="","",ROUND(P66+Q66,0)) ->  | S66: =IF(J66="","",IF($H65="Before-2004",Q66,0)) ->  | T66: =IF(J66="","",ROUND(R66-S66,0)) ->  | U66: =IF(J66="","",ROUND(S66+T66,0)) ->  | V66: =IF(J66="","",ROUND(R66-U66,0)) -> 
I67: =IF(A65="n","","Mar-2025") ->  | J67: =IF($J65="","",$J65) ->  | K67: =IF(J67="","",ROUND(J67*$K$7,0)) ->  | L67: =IF(J67="","",ROUND(J67+K67,0)) ->  | N67: =IF(M67="","",ROUND(M67*$N$7,0)) ->  | O67: =IF(M67="","",ROUND(M67+N67,0)) ->  | P67: =IF(J67="","",ROUND(J67-M67,0)) ->  | Q67: =IF(J67="","",ROUND(K67-N67,0)) ->  | R67: =IF(J67="","",ROUND(P67+Q67,0)) ->  | S67: =IF(J67="","",IF($H65="Before-2004",Q67,0)) ->  | T67: =IF(J67="","",ROUND(R67-S67,0)) ->  | U67: =IF(J67="","",ROUND(S67+T67,0)) ->  | V67: =IF(J67="","",ROUND(R67-U67,0)) -> 
A68: =IF($D68="","n","y") -> n | C68: 21 | I68: =IF(A68="n","","Jan-2025") ->  | K68: =IF(J68="","",ROUND(J68*$K$7,0)) ->  | L68: =IF(J68="","",ROUND(J68+K68,0)) ->  | N68: =IF(M68="","",ROUND(M68*$N$7,0)) ->  | O68: =IF(M68="","",ROUND(M68+N68,0)) ->  | P68: =IF(J68="","",ROUND(J68-M68,0)) ->  | Q68: =IF(J68="","",ROUND(K68-N68,0)) ->  | R68: =IF(J68="","",ROUND(P68+Q68,0)) ->  | S68: =IF(J68="","",IF($H68="Before-2004",Q68,0)) ->  | T68: =IF(J68="","",ROUND(R68-S68,0)) ->  | U68: =IF(J68="","",ROUND(S68+T68,0)) ->  | V68: =IF(J68="","",ROUND(R68-U68,0)) -> 
I69: =IF(A68="n","","Feb-2025") ->  | J69: =IF($J68="","",$J68) ->  | K69: =IF(J69="","",ROUND(J69*$K$7,0)) ->  | L69: =IF(J69="","",ROUND(J69+K69,0)) ->  | N69: =IF(M69="","",ROUND(M69*$N$7,0)) ->  | O69: =IF(M69="","",ROUND(M69+N69,0)) ->  | P69: =IF(J69="","",ROUND(J69-M69,0)) ->  | Q69: =IF(J69="","",ROUND(K69-N69,0)) ->  | R69: =IF(J69="","",ROUND(P69+Q69,0)) ->  | S69: =IF(J69="","",IF($H68="Before-2004",Q69,0)) ->  | T69: =IF(J69="","",ROUND(R69-S69,0)) ->  | U69: =IF(J69="","",ROUND(S69+T69,0)) ->  | V69: =IF(J69="","",ROUND(R69-U69,0)) -> 
I70: =IF(A68="n","","Mar-2025") ->  | J70: =IF($J68="","",$J68) ->  | K70: =IF(J70="","",ROUND(J70*$K$7,0)) ->  | L70: =IF(J70="","",ROUND(J70+K70,0)) ->  | N70: =IF(M70="","",ROUND(M70*$N$7,0)) ->  | O70: =IF(M70="","",ROUND(M70+N70,0)) ->  | P70: =IF(J70="","",ROUND(J70-M70,0)) ->  | Q70: =IF(J70="","",ROUND(K70-N70,0)) ->  | R70: =IF(J70="","",ROUND(P70+Q70,0)) ->  | S70: =IF(J70="","",IF($H68="Before-2004",Q70,0)) ->  | T70: =IF(J70="","",ROUND(R70-S70,0)) ->  | U70: =IF(J70="","",ROUND(S70+T70,0)) ->  | V70: =IF(J70="","",ROUND(R70-U70,0)) -> 
A71: =IF($D71="","n","y") -> n | C71: 22 | I71: =IF(A71="n","","Jan-2025") ->  | K71: =IF(J71="","",ROUND(J71*$K$7,0)) ->  | L71: =IF(J71="","",ROUND(J71+K71,0)) ->  | N71: =IF(M71="","",ROUND(M71*$N$7,0)) ->  | O71: =IF(M71="","",ROUND(M71+N71,0)) ->  | P71: =IF(J71="","",ROUND(J71-M71,0)) ->  | Q71: =IF(J71="","",ROUND(K71-N71,0)) ->  | R71: =IF(J71="","",ROUND(P71+Q71,0)) ->  | S71: =IF(J71="","",IF($H71="Before-2004",Q71,0)) ->  | T71: =IF(J71="","",ROUND(R71-S71,0)) ->  | U71: =IF(J71="","",ROUND(S71+T71,0)) ->  | V71: =IF(J71="","",ROUND(R71-U71,0)) -> 
I72: =IF(A71="n","","Feb-2025") ->  | J72: =IF($J71="","",$J71) ->  | K72: =IF(J72="","",ROUND(J72*$K$7,0)) ->  | L72: =IF(J72="","",ROUND(J72+K72,0)) ->  | M72: =IF(J72="","",J72) ->  | N72: =IF(M72="","",ROUND(M72*$N$7,0)) ->  | O72: =IF(M72="","",ROUND(M72+N72,0)) ->  | P72: =IF(J72="","",ROUND(J72-M72,0)) ->  | Q72: =IF(J72="","",ROUND(K72-N72,0)) ->  | R72: =IF(J72="","",ROUND(P72+Q72,0)) ->  | S72: =IF(J72="","",IF($H71="Before-2004",Q72,0)) ->  | T72: =IF(J72="","",ROUND(R72-S72,0)) ->  | U72: =IF(J72="","",ROUND(S72+T72,0)) ->  | V72: =IF(J72="","",ROUND(R72-U72,0)) -> 
I73: =IF(A71="n","","Mar-2025") ->  | J73: =IF($J71="","",$J71) ->  | K73: =IF(J73="","",ROUND(J73*$K$7,0)) ->  | L73: =IF(J73="","",ROUND(J73+K73,0)) ->  | N73: =IF(M73="","",ROUND(M73*$N$7,0)) ->  | O73: =IF(M73="","",ROUND(M73+N73,0)) ->  | P73: =IF(J73="","",ROUND(J73-M73,0)) ->  | Q73: =IF(J73="","",ROUND(K73-N73,0)) ->  | R73: =IF(J73="","",ROUND(P73+Q73,0)) ->  | S73: =IF(J73="","",IF($H71="Before-2004",Q73,0)) ->  | T73: =IF(J73="","",ROUND(R73-S73,0)) ->  | U73: =IF(J73="","",ROUND(S73+T73,0)) ->  | V73: =IF(J73="","",ROUND(R73-U73,0)) -> 
A74: =IF($D74="","n","y") -> n | C74: 23 | I74: =IF(A74="n","","Jan-2025") ->  | K74: =IF(J74="","",ROUND(J74*$K$7,0)) ->  | L74: =IF(J74="","",ROUND(J74+K74,0)) ->  | N74: =IF(M74="","",ROUND(M74*$N$7,0)) ->  | O74: =IF(M74="","",ROUND(M74+N74,0)) ->  | P74: =IF(J74="","",ROUND(J74-M74,0)) ->  | Q74: =IF(J74="","",ROUND(K74-N74,0)) ->  | R74: =IF(J74="","",ROUND(P74+Q74,0)) ->  | S74: =IF(J74="","",IF($H74="Before-2004",Q74,0)) ->  | T74: =IF(J74="","",ROUND(R74-S74,0)) ->  | U74: =IF(J74="","",ROUND(S74+T74,0)) ->  | V74: =IF(J74="","",ROUND(R74-U74,0)) -> 
I75: =IF(A74="n","","Feb-2025") ->  | J75: =IF($J74="","",$J74) ->  | K75: =IF(J75="","",ROUND(J75*$K$7,0)) ->  | L75: =IF(J75="","",ROUND(J75+K75,0)) ->  | N75: =IF(M75="","",ROUND(M75*$N$7,0)) ->  | O75: =IF(M75="","",ROUND(M75+N75,0)) ->  | P75: =IF(J75="","",ROUND(J75-M75,0)) ->  | Q75: =IF(J75="","",ROUND(K75-N75,0)) ->  | R75: =IF(J75="","",ROUND(P75+Q75,0)) ->  | S75: =IF(J75="","",IF($H74="Before-2004",Q75,0)) ->  | T75: =IF(J75="","",ROUND(R75-S75,0)) ->  | U75: =IF(J75="","",ROUND(S75+T75,0)) ->  | V75: =IF(J75="","",ROUND(R75-U75,0)) -> 
I76: =IF(A74="n","","Mar-2025") ->  | J76: =IF($J74="","",$J74) ->  | K76: =IF(J76="","",ROUND(J76*$K$7,0)) ->  | L76: =IF(J76="","",ROUND(J76+K76,0)) ->  | N76: =IF(M76="","",ROUND(M76*$N$7,0)) ->  | O76: =IF(M76="","",ROUND(M76+N76,0)) ->  | P76: =IF(J76="","",ROUND(J76-M76,0)) ->  | Q76: =IF(J76="","",ROUND(K76-N76,0)) ->  | R76: =IF(J76="","",ROUND(P76+Q76,0)) ->  | S76: =IF(J76="","",IF($H74="Before-2004",Q76,0)) ->  | T76: =IF(J76="","",ROUND(R76-S76,0)) ->  | U76: =IF(J76="","",ROUND(S76+T76,0)) ->  | V76: =IF(J76="","",ROUND(R76-U76,0)) -> 
A77: =IF($D77="","n","y") -> n | C77: 24 | I77: =IF(A77="n","","Jan-2025") ->  | K77: =IF(J77="","",ROUND(J77*$K$7,0)) ->  | L77: =IF(J77="","",ROUND(J77+K77,0)) ->  | N77: =IF(M77="","",ROUND(M77*$N$7,0)) ->  | O77: =IF(M77="","",ROUND(M77+N77,0)) ->  | P77: =IF(J77="","",ROUND(J77-M77,0)) ->  | Q77: =IF(J77="","",ROUND(K77-N77,0)) ->  | R77: =IF(J77="","",ROUND(P77+Q77,0)) ->  | S77: =IF(J77="","",IF($H77="Before-2004",Q77,0)) ->  | T77: =IF(J77="","",ROUND(R77-S77,0)) ->  | U77: =IF(J77="","",ROUND(S77+T77,0)) ->  | V77: =IF(J77="","",ROUND(R77-U77,0)) -> 
I78: =IF(A77="n","","Feb-2025") ->  | J78: =IF($J77="","",$J77) ->  | K78: =IF(J78="","",ROUND(J78*$K$7,0)) ->  | L78: =IF(J78="","",ROUND(J78+K78,0)) ->  | N78: =IF(M78="","",ROUND(M78*$N$7,0)) ->  | O78: =IF(M78="","",ROUND(M78+N78,0)) ->  | P78: =IF(J78="","",ROUND(J78-M78,0)) ->  | Q78: =IF(J78="","",ROUND(K78-N78,0)) ->  | R78: =IF(J78="","",ROUND(P78+Q78,0)) ->  | S78: =IF(J78="","",IF($H77="Before-2004",Q78,0)) ->  | T78: =IF(J78="","",ROUND(R78-S78,0)) ->  | U78: =IF(J78="","",ROUND(S78+T78,0)) ->  | V78: =IF(J78="","",ROUND(R78-U78,0)) -> 
I79: =IF(A77="n","","Mar-2025") ->  | J79: =IF($J77="","",$J77) ->  | K79: =IF(J79="","",ROUND(J79*$K$7,0)) ->  | L79: =IF(J79="","",ROUND(J79+K79,0)) ->  | N79: =IF(M79="","",ROUND(M79*$N$7,0)) ->  | O79: =IF(M79="","",ROUND(M79+N79,0)) ->  | P79: =IF(J79="","",ROUND(J79-M79,0)) ->  | Q79: =IF(J79="","",ROUND(K79-N79,0)) ->  | R79: =IF(J79="","",ROUND(P79+Q79,0)) ->  | S79: =IF(J79="","",IF($H77="Before-2004",Q79,0)) ->  | T79: =IF(J79="","",ROUND(R79-S79,0)) ->  | U79: =IF(J79="","",ROUND(S79+T79,0)) ->  | V79: =IF(J79="","",ROUND(R79-U79,0)) -> 
A80: =IF($D80="","n","y") -> n | C80: 25 | I80: =IF(A80="n","","Jan-2025") ->  | K80: =IF(J80="","",ROUND(J80*$K$7,0)) ->  | L80: =IF(J80="","",ROUND(J80+K80,0)) ->  | N80: =IF(M80="","",ROUND(M80*$N$7,0)) ->  | O80: =IF(M80="","",ROUND(M80+N80,0)) ->  | P80: =IF(J80="","",ROUND(J80-M80,0)) ->  | Q80: =IF(J80="","",ROUND(K80-N80,0)) ->  | R80: =IF(J80="","",ROUND(P80+Q80,0)) ->  | S80: =IF(J80="","",IF($H80="Before-2004",Q80,0)) ->  | T80: =IF(J80="","",ROUND(R80-S80,0)) ->  | U80: =IF(J80="","",ROUND(S80+T80,0)) ->  | V80: =IF(J80="","",ROUND(R80-U80,0)) -> 
I81: =IF(A80="n","","Feb-2025") ->  | J81: =IF($J80="","",$J80) ->  | K81: =IF(J81="","",ROUND(J81*$K$7,0)) ->  | L81: =IF(J81="","",ROUND(J81+K81,0)) ->  | N81: =IF(M81="","",ROUND(M81*$N$7,0)) ->  | O81: =IF(M81="","",ROUND(M81+N81,0)) ->  | P81: =IF(J81="","",ROUND(J81-M81,0)) ->  | Q81: =IF(J81="","",ROUND(K81-N81,0)) ->  | R81: =IF(J81="","",ROUND(P81+Q81,0)) ->  | S81: =IF(J81="","",IF($H80="Before-2004",Q81,0)) ->  | T81: =IF(J81="","",ROUND(R81-S81,0)) ->  | U81: =IF(J81="","",ROUND(S81+T81,0)) ->  | V81: =IF(J81="","",ROUND(R81-U81,0)) -> 
I82: =IF(A80="n","","Mar-2025") ->  | J82: =IF($J80="","",$J80) ->  | K82: =IF(J82="","",ROUND(J82*$K$7,0)) ->  | L82: =IF(J82="","",ROUND(J82+K82,0)) ->  | N82: =IF(M82="","",ROUND(M82*$N$7,0)) ->  | O82: =IF(M82="","",ROUND(M82+N82,0)) ->  | P82: =IF(J82="","",ROUND(J82-M82,0)) ->  | Q82: =IF(J82="","",ROUND(K82-N82,0)) ->  | R82: =IF(J82="","",ROUND(P82+Q82,0)) ->  | S82: =IF(J82="","",IF($H80="Before-2004",Q82,0)) ->  | T82: =IF(J82="","",ROUND(R82-S82,0)) ->  | U82: =IF(J82="","",ROUND(S82+T82,0)) ->  | V82: =IF(J82="","",ROUND(R82-U82,0)) -> 
A83: =IF($D83="","n","y") -> n | C83: 26 | I83: =IF(A83="n","","Jan-2025") ->  | K83: =IF(J83="","",ROUND(J83*$K$7,0)) ->  | L83: =IF(J83="","",ROUND(J83+K83,0)) ->  | N83: =IF(M83="","",ROUND(M83*$N$7,0)) ->  | O83: =IF(M83="","",ROUND(M83+N83,0)) ->  | P83: =IF(J83="","",ROUND(J83-M83,0)) ->  | Q83: =IF(J83="","",ROUND(K83-N83,0)) ->  | R83: =IF(J83="","",ROUND(P83+Q83,0)) ->  | S83: =IF(J83="","",IF($H83="Before-2004",Q83,0)) ->  | T83: =IF(J83="","",ROUND(R83-S83,0)) ->  | U83: =IF(J83="","",ROUND(S83+T83,0)) ->  | V83: =IF(J83="","",ROUND(R83-U83,0)) -> 
I84: =IF(A83="n","","Feb-2025") ->  | J84: =IF($J83="","",$J83) ->  | K84: =IF(J84="","",ROUND(J84*$K$7,0)) ->  | L84: =IF(J84="","",ROUND(J84+K84,0)) ->  | N84: =IF(M84="","",ROUND(M84*$N$7,0)) ->  | O84: =IF(M84="","",ROUND(M84+N84,0)) ->  | P84: =IF(J84="","",ROUND(J84-M84,0)) ->  | Q84: =IF(J84="","",ROUND(K84-N84,0)) ->  | R84: =IF(J84="","",ROUND(P84+Q84,0)) ->  | S84: =IF(J84="","",IF($H83="Before-2004",Q84,0)) ->  | T84: =IF(J84="","",ROUND(R84-S84,0)) ->  | U84: =IF(J84="","",ROUND(S84+T84,0)) ->  | V84: =IF(J84="","",ROUND(R84-U84,0)) -> 
I85: =IF(A83="n","","Mar-2025") ->  | J85: =IF($J83="","",$J83) ->  | K85: =IF(J85="","",ROUND(J85*$K$7,0)) ->  | L85: =IF(J85="","",ROUND(J85+K85,0)) ->  | N85: =IF(M85="","",ROUND(M85*$N$7,0)) ->  | O85: =IF(M85="","",ROUND(M85+N85,0)) ->  | P85: =IF(J85="","",ROUND(J85-M85,0)) ->  | Q85: =IF(J85="","",ROUND(K85-N85,0)) ->  | R85: =IF(J85="","",ROUND(P85+Q85,0)) ->  | S85: =IF(J85="","",IF($H83="Before-2004",Q85,0)) ->  | T85: =IF(J85="","",ROUND(R85-S85,0)) ->  | U85: =IF(J85="","",ROUND(S85+T85,0)) ->  | V85: =IF(J85="","",ROUND(R85-U85,0)) -> 
A86: =IF($D86="","n","y") -> n | C86: 27 | I86: =IF(A86="n","","Jan-2025") ->  | K86: =IF(J86="","",ROUND(J86*$K$7,0)) ->  | L86: =IF(J86="","",ROUND(J86+K86,0)) ->  | N86: =IF(M86="","",ROUND(M86*$N$7,0)) ->  | O86: =IF(M86="","",ROUND(M86+N86,0)) ->  | P86: =IF(J86="","",ROUND(J86-M86,0)) ->  | Q86: =IF(J86="","",ROUND(K86-N86,0)) ->  | R86: =IF(J86="","",ROUND(P86+Q86,0)) ->  | S86: =IF(J86="","",IF($H86="Before-2004",Q86,0)) ->  | T86: =IF(J86="","",ROUND(R86-S86,0)) ->  | U86: =IF(J86="","",ROUND(S86+T86,0)) ->  | V86: =IF(J86="","",ROUND(R86-U86,0)) -> 
I87: =IF(A86="n","","Feb-2025") ->  | J87: =IF($J86="","",$J86) ->  | K87: =IF(J87="","",ROUND(J87*$K$7,0)) ->  | L87: =IF(J87="","",ROUND(J87+K87,0)) ->  | N87: =IF(M87="","",ROUND(M87*$N$7,0)) ->  | O87: =IF(M87="","",ROUND(M87+N87,0)) ->  | P87: =IF(J87="","",ROUND(J87-M87,0)) ->  | Q87: =IF(J87="","",ROUND(K87-N87,0)) ->  | R87: =IF(J87="","",ROUND(P87+Q87,0)) ->  | S87: =IF(J87="","",IF($H86="Before-2004",Q87,0)) ->  | T87: =IF(J87="","",ROUND(R87-S87,0)) ->  | U87: =IF(J87="","",ROUND(S87+T87,0)) ->  | V87: =IF(J87="","",ROUND(R87-U87,0)) -> 
I88: =IF(A86="n","","Mar-2025") ->  | J88: =IF($J86="","",$J86) ->  | K88: =IF(J88="","",ROUND(J88*$K$7,0)) ->  | L88: =IF(J88="","",ROUND(J88+K88,0)) ->  | N88: =IF(M88="","",ROUND(M88*$N$7,0)) ->  | O88: =IF(M88="","",ROUND(M88+N88,0)) ->  | P88: =IF(J88="","",ROUND(J88-M88,0)) ->  | Q88: =IF(J88="","",ROUND(K88-N88,0)) ->  | R88: =IF(J88="","",ROUND(P88+Q88,0)) ->  | S88: =IF(J88="","",IF($H86="Before-2004",Q88,0)) ->  | T88: =IF(J88="","",ROUND(R88-S88,0)) ->  | U88: =IF(J88="","",ROUND(S88+T88,0)) ->  | V88: =IF(J88="","",ROUND(R88-U88,0)) -> 
A89: =IF($D89="","n","y") -> n | C89: 28 | I89: =IF(A89="n","","Jan-2025") ->  | K89: =IF(J89="","",ROUND(J89*$K$7,0)) ->  | L89: =IF(J89="","",ROUND(J89+K89,0)) ->  | N89: =IF(M89="","",ROUND(M89*$N$7,0)) ->  | O89: =IF(M89="","",ROUND(M89+N89,0)) ->  | P89: =IF(J89="","",ROUND(J89-M89,0)) ->  | Q89: =IF(J89="","",ROUND(K89-N89,0)) ->  | R89: =IF(J89="","",ROUND(P89+Q89,0)) ->  | S89: =IF(J89="","",IF($H89="Before-2004",Q89,0)) ->  | T89: =IF(J89="","",ROUND(R89-S89,0)) ->  | U89: =IF(J89="","",ROUND(S89+T89,0)) ->  | V89: =IF(J89="","",ROUND(R89-U89,0)) -> 
I90: =IF(A89="n","","Feb-2025") ->  | J90: =IF($J89="","",$J89) ->  | K90: =IF(J90="","",ROUND(J90*$K$7,0)) ->  | L90: =IF(J90="","",ROUND(J90+K90,0)) ->  | N90: =IF(M90="","",ROUND(M90*$N$7,0)) ->  | O90: =IF(M90="","",ROUND(M90+N90,0)) ->  | P90: =IF(J90="","",ROUND(J90-M90,0)) ->  | Q90: =IF(J90="","",ROUND(K90-N90,0)) ->  | R90: =IF(J90="","",ROUND(P90+Q90,0)) ->  | S90: =IF(J90="","",IF($H89="Before-2004",Q90,0)) ->  | T90: =IF(J90="","",ROUND(R90-S90,0)) ->  | U90: =IF(J90="","",ROUND(S90+T90,0)) ->  | V90: =IF(J90="","",ROUND(R90-U90,0)) -> 
I91: =IF(A89="n","","Mar-2025") ->  | J91: =IF($J89="","",$J89) ->  | K91: =IF(J91="","",ROUND(J91*$K$7,0)) ->  | L91: =IF(J91="","",ROUND(J91+K91,0)) ->  | N91: =IF(M91="","",ROUND(M91*$N$7,0)) ->  | O91: =IF(M91="","",ROUND(M91+N91,0)) ->  | P91: =IF(J91="","",ROUND(J91-M91,0)) ->  | Q91: =IF(J91="","",ROUND(K91-N91,0)) ->  | R91: =IF(J91="","",ROUND(P91+Q91,0)) ->  | S91: =IF(J91="","",IF($H89="Before-2004",Q91,0)) ->  | T91: =IF(J91="","",ROUND(R91-S91,0)) ->  | U91: =IF(J91="","",ROUND(S91+T91,0)) ->  | V91: =IF(J91="","",ROUND(R91-U91,0)) -> 
A92: =IF($D92="","n","y") -> n | C92: 29 | I92: =IF(A92="n","","Jan-2025") ->  | K92: =IF(J92="","",ROUND(J92*$K$7,0)) ->  | L92: =IF(J92="","",ROUND(J92+K92,0)) ->  | N92: =IF(M92="","",ROUND(M92*$N$7,0)) ->  | O92: =IF(M92="","",ROUND(M92+N92,0)) ->  | P92: =IF(J92="","",ROUND(J92-M92,0)) ->  | Q92: =IF(J92="","",ROUND(K92-N92,0)) ->  | R92: =IF(J92="","",ROUND(P92+Q92,0)) ->  | S92: =IF(J92="","",IF($H92="Before-2004",Q92,0)) ->  | T92: =IF(J92="","",ROUND(R92-S92,0)) ->  | U92: =IF(J92="","",ROUND(S92+T92,0)) ->  | V92: =IF(J92="","",ROUND(R92-U92,0)) -> 
I93: =IF(A92="n","","Feb-2025") ->  | J93: =IF($J92="","",$J92) ->  | K93: =IF(J93="","",ROUND(J93*$K$7,0)) ->  | L93: =IF(J93="","",ROUND(J93+K93,0)) ->  | N93: =IF(M93="","",ROUND(M93*$N$7,0)) ->  | O93: =IF(M93="","",ROUND(M93+N93,0)) ->  | P93: =IF(J93="","",ROUND(J93-M93,0)) ->  | Q93: =IF(J93="","",ROUND(K93-N93,0)) ->  | R93: =IF(J93="","",ROUND(P93+Q93,0)) ->  | S93: =IF(J93="","",IF($H92="Before-2004",Q93,0)) ->  | T93: =IF(J93="","",ROUND(R93-S93,0)) ->  | U93: =IF(J93="","",ROUND(S93+T93,0)) ->  | V93: =IF(J93="","",ROUND(R93-U93,0)) -> 
I94: =IF(A92="n","","Mar-2025") ->  | J94: =IF($J92="","",$J92) ->  | K94: =IF(J94="","",ROUND(J94*$K$7,0)) ->  | L94: =IF(J94="","",ROUND(J94+K94,0)) ->  | N94: =IF(M94="","",ROUND(M94*$N$7,0)) ->  | O94: =IF(M94="","",ROUND(M94+N94,0)) ->  | P94: =IF(J94="","",ROUND(J94-M94,0)) ->  | Q94: =IF(J94="","",ROUND(K94-N94,0)) ->  | R94: =IF(J94="","",ROUND(P94+Q94,0)) ->  | S94: =IF(J94="","",IF($H92="Before-2004",Q94,0)) ->  | T94: =IF(J94="","",ROUND(R94-S94,0)) ->  | U94: =IF(J94="","",ROUND(S94+T94,0)) ->  | V94: =IF(J94="","",ROUND(R94-U94,0)) -> 
A95: =IF($D95="","n","y") -> n | C95: 30 | I95: =IF(A95="n","","Jan-2025") ->  | K95: =IF(J95="","",ROUND(J95*$K$7,0)) ->  | L95: =IF(J95="","",ROUND(J95+K95,0)) ->  | N95: =IF(M95="","",ROUND(M95*$N$7,0)) ->  | O95: =IF(M95="","",ROUND(M95+N95,0)) ->  | P95: =IF(J95="","",ROUND(J95-M95,0)) ->  | Q95: =IF(J95="","",ROUND(K95-N95,0)) ->  | R95: =IF(J95="","",ROUND(P95+Q95,0)) ->  | S95: =IF(J95="","",IF($H95="Before-2004",Q95,0)) ->  | T95: =IF(J95="","",ROUND(R95-S95,0)) ->  | U95: =IF(J95="","",ROUND(S95+T95,0)) ->  | V95: =IF(J95="","",ROUND(R95-U95,0)) -> 
I96: =IF(A95="n","","Feb-2025") ->  | J96: =IF($J95="","",$J95) ->  | K96: =IF(J96="","",ROUND(J96*$K$7,0)) ->  | L96: =IF(J96="","",ROUND(J96+K96,0)) ->  | N96: =IF(M96="","",ROUND(M96*$N$7,0)) ->  | O96: =IF(M96="","",ROUND(M96+N96,0)) ->  | P96: =IF(J96="","",ROUND(J96-M96,0)) ->  | Q96: =IF(J96="","",ROUND(K96-N96,0)) ->  | R96: =IF(J96="","",ROUND(P96+Q96,0)) ->  | S96: =IF(J96="","",IF($H95="Before-2004",Q96,0)) ->  | T96: =IF(J96="","",ROUND(R96-S96,0)) ->  | U96: =IF(J96="","",ROUND(S96+T96,0)) ->  | V96: =IF(J96="","",ROUND(R96-U96,0)) -> 
I97: =IF(A95="n","","Mar-2025") ->  | J97: =IF($J95="","",$J95) ->  | K97: =IF(J97="","",ROUND(J97*$K$7,0)) ->  | L97: =IF(J97="","",ROUND(J97+K97,0)) ->  | N97: =IF(M97="","",ROUND(M97*$N$7,0)) ->  | O97: =IF(M97="","",ROUND(M97+N97,0)) ->  | P97: =IF(J97="","",ROUND(J97-M97,0)) ->  | Q97: =IF(J97="","",ROUND(K97-N97,0)) ->  | R97: =IF(J97="","",ROUND(P97+Q97,0)) ->  | S97: =IF(J97="","",IF($H95="Before-2004",Q97,0)) ->  | T97: =IF(J97="","",ROUND(R97-S97,0)) ->  | U97: =IF(J97="","",ROUND(S97+T97,0)) ->  | V97: =IF(J97="","",ROUND(R97-U97,0)) -> 
A98: =IF($D98="","n","y") -> n | C98: 31 | I98: =IF(A98="n","","Jan-2025") ->  | K98: =IF(J98="","",ROUND(J98*$K$7,0)) ->  | L98: =IF(J98="","",ROUND(J98+K98,0)) ->  | N98: =IF(M98="","",ROUND(M98*$N$7,0)) ->  | O98: =IF(M98="","",ROUND(M98+N98,0)) ->  | P98: =IF(J98="","",ROUND(J98-M98,0)) ->  | Q98: =IF(J98="","",ROUND(K98-N98,0)) ->  | R98: =IF(J98="","",ROUND(P98+Q98,0)) ->  | S98: =IF(J98="","",IF($H98="Before-2004",Q98,0)) ->  | T98: =IF(J98="","",ROUND(R98-S98,0)) ->  | U98: =IF(J98="","",ROUND(S98+T98,0)) ->  | V98: =IF(J98="","",ROUND(R98-U98,0)) -> 
I99: =IF(A98="n","","Feb-2025") ->  | J99: =IF($J98="","",$J98) ->  | K99: =IF(J99="","",ROUND(J99*$K$7,0)) ->  | L99: =IF(J99="","",ROUND(J99+K99,0)) ->  | N99: =IF(M99="","",ROUND(M99*$N$7,0)) ->  | O99: =IF(M99="","",ROUND(M99+N99,0)) ->  | P99: =IF(J99="","",ROUND(J99-M99,0)) ->  | Q99: =IF(J99="","",ROUND(K99-N99,0)) ->  | R99: =IF(J99="","",ROUND(P99+Q99,0)) ->  | S99: =IF(J99="","",IF($H98="Before-2004",Q99,0)) ->  | T99: =IF(J99="","",ROUND(R99-S99,0)) ->  | U99: =IF(J99="","",ROUND(S99+T99,0)) ->  | V99: =IF(J99="","",ROUND(R99-U99,0)) -> 
I100: =IF(A98="n","","Mar-2025") ->  | J100: =IF($J98="","",$J98) ->  | K100: =IF(J100="","",ROUND(J100*$K$7,0)) ->  | L100: =IF(J100="","",ROUND(J100+K100,0)) ->  | N100: =IF(M100="","",ROUND(M100*$N$7,0)) ->  | O100: =IF(M100="","",ROUND(M100+N100,0)) ->  | P100: =IF(J100="","",ROUND(J100-M100,0)) ->  | Q100: =IF(J100="","",ROUND(K100-N100,0)) ->  | R100: =IF(J100="","",ROUND(P100+Q100,0)) ->  | S100: =IF(J100="","",IF($H98="Before-2004",Q100,0)) ->  | T100: =IF(J100="","",ROUND(R100-S100,0)) ->  | U100: =IF(J100="","",ROUND(S100+T100,0)) ->  | V100: =IF(J100="","",ROUND(R100-U100,0)) -> 
A101: =IF($D101="","n","y") -> n | C101: 32 | I101: =IF(A101="n","","Jan-2025") ->  | K101: =IF(J101="","",ROUND(J101*$K$7,0)) ->  | L101: =IF(J101="","",ROUND(J101+K101,0)) ->  | N101: =IF(M101="","",ROUND(M101*$N$7,0)) ->  | O101: =IF(M101="","",ROUND(M101+N101,0)) ->  | P101: =IF(J101="","",ROUND(J101-M101,0)) ->  | Q101: =IF(J101="","",ROUND(K101-N101,0)) ->  | R101: =IF(J101="","",ROUND(P101+Q101,0)) ->  | S101: =IF(J101="","",IF($H101="Before-2004",Q101,0)) ->  | T101: =IF(J101="","",ROUND(R101-S101,0)) ->  | U101: =IF(J101="","",ROUND(S101+T101,0)) ->  | V101: =IF(J101="","",ROUND(R101-U101,0)) -> 
I102: =IF(A101="n","","Feb-2025") ->  | J102: =IF($J101="","",$J101) ->  | K102: =IF(J102="","",ROUND(J102*$K$7,0)) ->  | L102: =IF(J102="","",ROUND(J102+K102,0)) ->  | N102: =IF(M102="","",ROUND(M102*$N$7,0)) ->  | O102: =IF(M102="","",ROUND(M102+N102,0)) ->  | P102: =IF(J102="","",ROUND(J102-M102,0)) ->  | Q102: =IF(J102="","",ROUND(K102-N102,0)) ->  | R102: =IF(J102="","",ROUND(P102+Q102,0)) ->  | S102: =IF(J102="","",IF($H101="Before-2004",Q102,0)) ->  | T102: =IF(J102="","",ROUND(R102-S102,0)) ->  | U102: =IF(J102="","",ROUND(S102+T102,0)) ->  | V102: =IF(J102="","",ROUND(R102-U102,0)) -> 
I103: =IF(A101="n","","Mar-2025") ->  | J103: =IF($J101="","",$J101) ->  | K103: =IF(J103="","",ROUND(J103*$K$7,0)) ->  | L103: =IF(J103="","",ROUND(J103+K103,0)) ->  | N103: =IF(M103="","",ROUND(M103*$N$7,0)) ->  | O103: =IF(M103="","",ROUND(M103+N103,0)) ->  | P103: =IF(J103="","",ROUND(J103-M103,0)) ->  | Q103: =IF(J103="","",ROUND(K103-N103,0)) ->  | R103: =IF(J103="","",ROUND(P103+Q103,0)) ->  | S103: =IF(J103="","",IF($H101="Before-2004",Q103,0)) ->  | T103: =IF(J103="","",ROUND(R103-S103,0)) ->  | U103: =IF(J103="","",ROUND(S103+T103,0)) ->  | V103: =IF(J103="","",ROUND(R103-U103,0)) -> 
A104: =IF($D104="","n","y") -> n | C104: 33 | I104: =IF(A104="n","","Jan-2025") ->  | K104: =IF(J104="","",ROUND(J104*$K$7,0)) ->  | L104: =IF(J104="","",ROUND(J104+K104,0)) ->  | M104: =IF(J104="","",J104) ->  | N104: =IF(M104="","",ROUND(M104*$N$7,0)) ->  | O104: =IF(M104="","",ROUND(M104+N104,0)) ->  | P104: =IF(J104="","",ROUND(J104-M104,0)) ->  | Q104: =IF(J104="","",ROUND(K104-N104,0)) ->  | R104: =IF(J104="","",ROUND(P104+Q104,0)) ->  | S104: =IF(J104="","",IF($H104="Before-2004",Q104,0)) ->  | T104: =IF(J104="","",ROUND(R104-S104,0)) ->  | U104: =IF(J104="","",ROUND(S104+T104,0)) ->  | V104: =IF(J104="","",ROUND(R104-U104,0)) -> 
I105: =IF(A104="n","","Feb-2025") ->  | J105: =IF($J104="","",$J104) ->  | K105: =IF(J105="","",ROUND(J105*$K$7,0)) ->  | L105: =IF(J105="","",ROUND(J105+K105,0)) ->  | N105: =IF(M105="","",ROUND(M105*$N$7,0)) ->  | O105: =IF(M105="","",ROUND(M105+N105,0)) ->  | P105: =IF(J105="","",ROUND(J105-M105,0)) ->  | Q105: =IF(J105="","",ROUND(K105-N105,0)) ->  | R105: =IF(J105="","",ROUND(P105+Q105,0)) ->  | S105: =IF(J105="","",IF($H104="Before-2004",Q105,0)) ->  | T105: =IF(J105="","",ROUND(R105-S105,0)) ->  | U105: =IF(J105="","",ROUND(S105+T105,0)) ->  | V105: =IF(J105="","",ROUND(R105-U105,0)) -> 
I106: =IF(A104="n","","Mar-2025") ->  | J106: =IF($J104="","",$J104) ->  | K106: =IF(J106="","",ROUND(J106*$K$7,0)) ->  | L106: =IF(J106="","",ROUND(J106+K106,0)) ->  | N106: =IF(M106="","",ROUND(M106*$N$7,0)) ->  | O106: =IF(M106="","",ROUND(M106+N106,0)) ->  | P106: =IF(J106="","",ROUND(J106-M106,0)) ->  | Q106: =IF(J106="","",ROUND(K106-N106,0)) ->  | R106: =IF(J106="","",ROUND(P106+Q106,0)) ->  | S106: =IF(J106="","",IF($H104="Before-2004",Q106,0)) ->  | T106: =IF(J106="","",ROUND(R106-S106,0)) ->  | U106: =IF(J106="","",ROUND(S106+T106,0)) ->  | V106: =IF(J106="","",ROUND(R106-U106,0)) -> 
A107: =IF($D107="","n","y") -> n | C107: 34 | I107: =IF(A107="n","","Jan-2025") ->  | K107: =IF(J107="","",ROUND(J107*$K$7,0)) ->  | L107: =IF(J107="","",ROUND(J107+K107,0)) ->  | N107: =IF(M107="","",ROUND(M107*$N$7,0)) ->  | O107: =IF(M107="","",ROUND(M107+N107,0)) ->  | P107: =IF(J107="","",ROUND(J107-M107,0)) ->  | Q107: =IF(J107="","",ROUND(K107-N107,0)) ->  | R107: =IF(J107="","",ROUND(P107+Q107,0)) ->  | S107: =IF(J107="","",IF($H107="Before-2004",Q107,0)) ->  | T107: =IF(J107="","",ROUND(R107-S107,0)) ->  | U107: =IF(J107="","",ROUND(S107+T107,0)) ->  | V107: =IF(J107="","",ROUND(R107-U107,0)) -> 
I108: =IF(A107="n","","Feb-2025") ->  | J108: =IF($J107="","",$J107) ->  | K108: =IF(J108="","",ROUND(J108*$K$7,0)) ->  | L108: =IF(J108="","",ROUND(J108+K108,0)) ->  | N108: =IF(M108="","",ROUND(M108*$N$7,0)) ->  | O108: =IF(M108="","",ROUND(M108+N108,0)) ->  | P108: =IF(J108="","",ROUND(J108-M108,0)) ->  | Q108: =IF(J108="","",ROUND(K108-N108,0)) ->  | R108: =IF(J108="","",ROUND(P108+Q108,0)) ->  | S108: =IF(J108="","",IF($H107="Before-2004",Q108,0)) ->  | T108: =IF(J108="","",ROUND(R108-S108,0)) ->  | U108: =IF(J108="","",ROUND(S108+T108,0)) ->  | V108: =IF(J108="","",ROUND(R108-U108,0)) -> 
I109: =IF(A107="n","","Mar-2025") ->  | J109: =IF($J107="","",$J107) ->  | K109: =IF(J109="","",ROUND(J109*$K$7,0)) ->  | L109: =IF(J109="","",ROUND(J109+K109,0)) ->  | N109: =IF(M109="","",ROUND(M109*$N$7,0)) ->  | O109: =IF(M109="","",ROUND(M109+N109,0)) ->  | P109: =IF(J109="","",ROUND(J109-M109,0)) ->  | Q109: =IF(J109="","",ROUND(K109-N109,0)) ->  | R109: =IF(J109="","",ROUND(P109+Q109,0)) ->  | S109: =IF(J109="","",IF($H107="Before-2004",Q109,0)) ->  | T109: =IF(J109="","",ROUND(R109-S109,0)) ->  | U109: =IF(J109="","",ROUND(S109+T109,0)) ->  | V109: =IF(J109="","",ROUND(R109-U109,0)) -> 
A110: =IF($D110="","n","y") -> n | C110: 35 | I110: =IF(A110="n","","Jan-2025") ->  | K110: =IF(J110="","",ROUND(J110*$K$7,0)) ->  | L110: =IF(J110="","",ROUND(J110+K110,0)) ->  | N110: =IF(M110="","",ROUND(M110*$N$7,0)) ->  | O110: =IF(M110="","",ROUND(M110+N110,0)) ->  | P110: =IF(J110="","",ROUND(J110-M110,0)) ->  | Q110: =IF(J110="","",ROUND(K110-N110,0)) ->  | R110: =IF(J110="","",ROUND(P110+Q110,0)) ->  | S110: =IF(J110="","",IF($H110="Before-2004",Q110,0)) ->  | T110: =IF(J110="","",ROUND(R110-S110,0)) ->  | U110: =IF(J110="","",ROUND(S110+T110,0)) ->  | V110: =IF(J110="","",ROUND(R110-U110,0)) -> 
I111: =IF(A110="n","","Feb-2025") ->  | J111: =IF($J110="","",$J110) ->  | K111: =IF(J111="","",ROUND(J111*$K$7,0)) ->  | L111: =IF(J111="","",ROUND(J111+K111,0)) ->  | N111: =IF(M111="","",ROUND(M111*$N$7,0)) ->  | O111: =IF(M111="","",ROUND(M111+N111,0)) ->  | P111: =IF(J111="","",ROUND(J111-M111,0)) ->  | Q111: =IF(J111="","",ROUND(K111-N111,0)) ->  | R111: =IF(J111="","",ROUND(P111+Q111,0)) ->  | S111: =IF(J111="","",IF($H110="Before-2004",Q111,0)) ->  | T111: =IF(J111="","",ROUND(R111-S111,0)) ->  | U111: =IF(J111="","",ROUND(S111+T111,0)) ->  | V111: =IF(J111="","",ROUND(R111-U111,0)) -> 
I112: =IF(A110="n","","Mar-2025") ->  | J112: =IF($J110="","",$J110) ->  | K112: =IF(J112="","",ROUND(J112*$K$7,0)) ->  | L112: =IF(J112="","",ROUND(J112+K112,0)) ->  | N112: =IF(M112="","",ROUND(M112*$N$7,0)) ->  | O112: =IF(M112="","",ROUND(M112+N112,0)) ->  | P112: =IF(J112="","",ROUND(J112-M112,0)) ->  | Q112: =IF(J112="","",ROUND(K112-N112,0)) ->  | R112: =IF(J112="","",ROUND(P112+Q112,0)) ->  | S112: =IF(J112="","",IF($H110="Before-2004",Q112,0)) ->  | T112: =IF(J112="","",ROUND(R112-S112,0)) ->  | U112: =IF(J112="","",ROUND(S112+T112,0)) ->  | V112: =IF(J112="","",ROUND(R112-U112,0)) -> 
A113: =IF($D113="","n","y") -> n | C113: 36 | I113: =IF(A113="n","","Jan-2025") ->  | K113: =IF(J113="","",ROUND(J113*$K$7,0)) ->  | L113: =IF(J113="","",ROUND(J113+K113,0)) ->  | N113: =IF(M113="","",ROUND(M113*$N$7,0)) ->  | O113: =IF(M113="","",ROUND(M113+N113,0)) ->  | P113: =IF(J113="","",ROUND(J113-M113,0)) ->  | Q113: =IF(J113="","",ROUND(K113-N113,0)) ->  | R113: =IF(J113="","",ROUND(P113+Q113,0)) ->  | S113: =IF(J113="","",IF($H113="Before-2004",Q113,0)) ->  | T113: =IF(J113="","",ROUND(R113-S113,0)) ->  | U113: =IF(J113="","",ROUND(S113+T113,0)) ->  | V113: =IF(J113="","",ROUND(R113-U113,0)) -> 
I114: =IF(A113="n","","Feb-2025") ->  | J114: =IF($J113="","",$J113) ->  | K114: =IF(J114="","",ROUND(J114*$K$7,0)) ->  | L114: =IF(J114="","",ROUND(J114+K114,0)) ->  | N114: =IF(M114="","",ROUND(M114*$N$7,0)) ->  | O114: =IF(M114="","",ROUND(M114+N114,0)) ->  | P114: =IF(J114="","",ROUND(J114-M114,0)) ->  | Q114: =IF(J114="","",ROUND(K114-N114,0)) ->  | R114: =IF(J114="","",ROUND(P114+Q114,0)) ->  | S114: =IF(J114="","",IF($H113="Before-2004",Q114,0)) ->  | T114: =IF(J114="","",ROUND(R114-S114,0)) ->  | U114: =IF(J114="","",ROUND(S114+T114,0)) ->  | V114: =IF(J114="","",ROUND(R114-U114,0)) -> 
I115: =IF(A113="n","","Mar-2025") ->  | J115: =IF($J113="","",$J113) ->  | K115: =IF(J115="","",ROUND(J115*$K$7,0)) ->  | L115: =IF(J115="","",ROUND(J115+K115,0)) ->  | N115: =IF(M115="","",ROUND(M115*$N$7,0)) ->  | O115: =IF(M115="","",ROUND(M115+N115,0)) ->  | P115: =IF(J115="","",ROUND(J115-M115,0)) ->  | Q115: =IF(J115="","",ROUND(K115-N115,0)) ->  | R115: =IF(J115="","",ROUND(P115+Q115,0)) ->  | S115: =IF(J115="","",IF($H113="Before-2004",Q115,0)) ->  | T115: =IF(J115="","",ROUND(R115-S115,0)) ->  | U115: =IF(J115="","",ROUND(S115+T115,0)) ->  | V115: =IF(J115="","",ROUND(R115-U115,0)) -> 
A116: =IF($D116="","n","y") -> n | C116: 37 | I116: =IF(A116="n","","Jan-2025") ->  | K116: =IF(J116="","",ROUND(J116*$K$7,0)) ->  | L116: =IF(J116="","",ROUND(J116+K116,0)) ->  | N116: =IF(M116="","",ROUND(M116*$N$7,0)) ->  | O116: =IF(M116="","",ROUND(M116+N116,0)) ->  | P116: =IF(J116="","",ROUND(J116-M116,0)) ->  | Q116: =IF(J116="","",ROUND(K116-N116,0)) ->  | R116: =IF(J116="","",ROUND(P116+Q116,0)) ->  | S116: =IF(J116="","",IF($H116="Before-2004",Q116,0)) ->  | T116: =IF(J116="","",ROUND(R116-S116,0)) ->  | U116: =IF(J116="","",ROUND(S116+T116,0)) ->  | V116: =IF(J116="","",ROUND(R116-U116,0)) -> 
I117: =IF(A116="n","","Feb-2025") ->  | J117: =IF($J116="","",$J116) ->  | K117: =IF(J117="","",ROUND(J117*$K$7,0)) ->  | L117: =IF(J117="","",ROUND(J117+K117,0)) ->  | N117: =IF(M117="","",ROUND(M117*$N$7,0)) ->  | O117: =IF(M117="","",ROUND(M117+N117,0)) ->  | P117: =IF(J117="","",ROUND(J117-M117,0)) ->  | Q117: =IF(J117="","",ROUND(K117-N117,0)) ->  | R117: =IF(J117="","",ROUND(P117+Q117,0)) ->  | S117: =IF(J117="","",IF($H116="Before-2004",Q117,0)) ->  | T117: =IF(J117="","",ROUND(R117-S117,0)) ->  | U117: =IF(J117="","",ROUND(S117+T117,0)) ->  | V117: =IF(J117="","",ROUND(R117-U117,0)) -> 
I118: =IF(A116="n","","Mar-2025") ->  | J118: =IF($J116="","",$J116) ->  | K118: =IF(J118="","",ROUND(J118*$K$7,0)) ->  | L118: =IF(J118="","",ROUND(J118+K118,0)) ->  | N118: =IF(M118="","",ROUND(M118*$N$7,0)) ->  | O118: =IF(M118="","",ROUND(M118+N118,0)) ->  | P118: =IF(J118="","",ROUND(J118-M118,0)) ->  | Q118: =IF(J118="","",ROUND(K118-N118,0)) ->  | R118: =IF(J118="","",ROUND(P118+Q118,0)) ->  | S118: =IF(J118="","",IF($H116="Before-2004",Q118,0)) ->  | T118: =IF(J118="","",ROUND(R118-S118,0)) ->  | U118: =IF(J118="","",ROUND(S118+T118,0)) ->  | V118: =IF(J118="","",ROUND(R118-U118,0)) -> 
A119: =IF($D119="","n","y") -> n | C119: 38 | I119: =IF(A119="n","","Jan-2025") ->  | K119: =IF(J119="","",ROUND(J119*$K$7,0)) ->  | L119: =IF(J119="","",ROUND(J119+K119,0)) ->  | N119: =IF(M119="","",ROUND(M119*$N$7,0)) ->  | O119: =IF(M119="","",ROUND(M119+N119,0)) ->  | P119: =IF(J119="","",ROUND(J119-M119,0)) ->  | Q119: =IF(J119="","",ROUND(K119-N119,0)) ->  | R119: =IF(J119="","",ROUND(P119+Q119,0)) ->  | S119: =IF(J119="","",IF($H119="Before-2004",Q119,0)) ->  | T119: =IF(J119="","",ROUND(R119-S119,0)) ->  | U119: =IF(J119="","",ROUND(S119+T119,0)) ->  | V119: =IF(J119="","",ROUND(R119-U119,0)) -> 
I120: =IF(A119="n","","Feb-2025") ->  | J120: =IF($J119="","",$J119) ->  | K120: =IF(J120="","",ROUND(J120*$K$7,0)) ->  | L120: =IF(J120="","",ROUND(J120+K120,0)) ->  | N120: =IF(M120="","",ROUND(M120*$N$7,0)) ->  | O120: =IF(M120="","",ROUND(M120+N120,0)) ->  | P120: =IF(J120="","",ROUND(J120-M120,0)) ->  | Q120: =IF(J120="","",ROUND(K120-N120,0)) ->  | R120: =IF(J120="","",ROUND(P120+Q120,0)) ->  | S120: =IF(J120="","",IF($H119="Before-2004",Q120,0)) ->  | T120: =IF(J120="","",ROUND(R120-S120,0)) ->  | U120: =IF(J120="","",ROUND(S120+T120,0)) ->  | V120: =IF(J120="","",ROUND(R120-U120,0)) -> 
I121: =IF(A119="n","","Mar-2025") ->  | J121: =IF($J119="","",$J119) ->  | K121: =IF(J121="","",ROUND(J121*$K$7,0)) ->  | L121: =IF(J121="","",ROUND(J121+K121,0)) ->  | N121: =IF(M121="","",ROUND(M121*$N$7,0)) ->  | O121: =IF(M121="","",ROUND(M121+N121,0)) ->  | P121: =IF(J121="","",ROUND(J121-M121,0)) ->  | Q121: =IF(J121="","",ROUND(K121-N121,0)) ->  | R121: =IF(J121="","",ROUND(P121+Q121,0)) ->  | S121: =IF(J121="","",IF($H119="Before-2004",Q121,0)) ->  | T121: =IF(J121="","",ROUND(R121-S121,0)) ->  | U121: =IF(J121="","",ROUND(S121+T121,0)) ->  | V121: =IF(J121="","",ROUND(R121-U121,0)) -> 
A122: =IF($D122="","n","y") -> n | C122: 39 | I122: =IF(A122="n","","Jan-2025") ->  | K122: =IF(J122="","",ROUND(J122*$K$7,0)) ->  | L122: =IF(J122="","",ROUND(J122+K122,0)) ->  | N122: =IF(M122="","",ROUND(M122*$N$7,0)) ->  | O122: =IF(M122="","",ROUND(M122+N122,0)) ->  | P122: =IF(J122="","",ROUND(J122-M122,0)) ->  | Q122: =IF(J122="","",ROUND(K122-N122,0)) ->  | R122: =IF(J122="","",ROUND(P122+Q122,0)) ->  | S122: =IF(J122="","",IF($H122="Before-2004",Q122,0)) ->  | T122: =IF(J122="","",ROUND(R122-S122,0)) ->  | U122: =IF(J122="","",ROUND(S122+T122,0)) ->  | V122: =IF(J122="","",ROUND(R122-U122,0)) -> 
I123: =IF(A122="n","","Feb-2025") ->  | J123: =IF($J122="","",$J122) ->  | K123: =IF(J123="","",ROUND(J123*$K$7,0)) ->  | L123: =IF(J123="","",ROUND(J123+K123,0)) ->  | N123: =IF(M123="","",ROUND(M123*$N$7,0)) ->  | O123: =IF(M123="","",ROUND(M123+N123,0)) ->  | P123: =IF(J123="","",ROUND(J123-M123,0)) ->  | Q123: =IF(J123="","",ROUND(K123-N123,0)) ->  | R123: =IF(J123="","",ROUND(P123+Q123,0)) ->  | S123: =IF(J123="","",IF($H122="Before-2004",Q123,0)) ->  | T123: =IF(J123="","",ROUND(R123-S123,0)) ->  | U123: =IF(J123="","",ROUND(S123+T123,0)) ->  | V123: =IF(J123="","",ROUND(R123-U123,0)) -> 
I124: =IF(A122="n","","Mar-2025") ->  | J124: =IF($J122="","",$J122) ->  | K124: =IF(J124="","",ROUND(J124*$K$7,0)) ->  | L124: =IF(J124="","",ROUND(J124+K124,0)) ->  | N124: =IF(M124="","",ROUND(M124*$N$7,0)) ->  | O124: =IF(M124="","",ROUND(M124+N124,0)) ->  | P124: =IF(J124="","",ROUND(J124-M124,0)) ->  | Q124: =IF(J124="","",ROUND(K124-N124,0)) ->  | R124: =IF(J124="","",ROUND(P124+Q124,0)) ->  | S124: =IF(J124="","",IF($H122="Before-2004",Q124,0)) ->  | T124: =IF(J124="","",ROUND(R124-S124,0)) ->  | U124: =IF(J124="","",ROUND(S124+T124,0)) ->  | V124: =IF(J124="","",ROUND(R124-U124,0)) -> 
A125: =IF($D125="","n","y") -> n | C125: 40 | I125: =IF(A125="n","","Jan-2025") ->  | K125: =IF(J125="","",ROUND(J125*$K$7,0)) ->  | L125: =IF(J125="","",ROUND(J125+K125,0)) ->  | N125: =IF(M125="","",ROUND(M125*$N$7,0)) ->  | O125: =IF(M125="","",ROUND(M125+N125,0)) ->  | P125: =IF(J125="","",ROUND(J125-M125,0)) ->  | Q125: =IF(J125="","",ROUND(K125-N125,0)) ->  | R125: =IF(J125="","",ROUND(P125+Q125,0)) ->  | S125: =IF(J125="","",IF($H125="Before-2004",Q125,0)) ->  | T125: =IF(J125="","",ROUND(R125-S125,0)) ->  | U125: =IF(J125="","",ROUND(S125+T125,0)) ->  | V125: =IF(J125="","",ROUND(R125-U125,0)) -> 
I126: =IF(A125="n","","Feb-2025") ->  | J126: =IF($J125="","",$J125) ->  | K126: =IF(J126="","",ROUND(J126*$K$7,0)) ->  | L126: =IF(J126="","",ROUND(J126+K126,0)) ->  | N126: =IF(M126="","",ROUND(M126*$N$7,0)) ->  | O126: =IF(M126="","",ROUND(M126+N126,0)) ->  | P126: =IF(J126="","",ROUND(J126-M126,0)) ->  | Q126: =IF(J126="","",ROUND(K126-N126,0)) ->  | R126: =IF(J126="","",ROUND(P126+Q126,0)) ->  | S126: =IF(J126="","",IF($H125="Before-2004",Q126,0)) ->  | T126: =IF(J126="","",ROUND(R126-S126,0)) ->  | U126: =IF(J126="","",ROUND(S126+T126,0)) ->  | V126: =IF(J126="","",ROUND(R126-U126,0)) -> 
I127: =IF(A125="n","","Mar-2025") ->  | J127: =IF($J125="","",$J125) ->  | K127: =IF(J127="","",ROUND(J127*$K$7,0)) ->  | L127: =IF(J127="","",ROUND(J127+K127,0)) ->  | N127: =IF(M127="","",ROUND(M127*$N$7,0)) ->  | O127: =IF(M127="","",ROUND(M127+N127,0)) ->  | P127: =IF(J127="","",ROUND(J127-M127,0)) ->  | Q127: =IF(J127="","",ROUND(K127-N127,0)) ->  | R127: =IF(J127="","",ROUND(P127+Q127,0)) ->  | S127: =IF(J127="","",IF($H125="Before-2004",Q127,0)) ->  | T127: =IF(J127="","",ROUND(R127-S127,0)) ->  | U127: =IF(J127="","",ROUND(S127+T127,0)) ->  | V127: =IF(J127="","",ROUND(R127-U127,0)) -> 
A128: =IF($D128="","n","y") -> n | C128: 41 | I128: =IF(A128="n","","Jan-2025") ->  | K128: =IF(J128="","",ROUND(J128*$K$7,0)) ->  | L128: =IF(J128="","",ROUND(J128+K128,0)) ->  | N128: =IF(M128="","",ROUND(M128*$N$7,0)) ->  | O128: =IF(M128="","",ROUND(M128+N128,0)) ->  | P128: =IF(J128="","",ROUND(J128-M128,0)) ->  | Q128: =IF(J128="","",ROUND(K128-N128,0)) ->  | R128: =IF(J128="","",ROUND(P128+Q128,0)) ->  | S128: =IF(J128="","",IF($H128="Before-2004",Q128,0)) ->  | T128: =IF(J128="","",ROUND(R128-S128,0)) ->  | U128: =IF(J128="","",ROUND(S128+T128,0)) ->  | V128: =IF(J128="","",ROUND(R128-U128,0)) -> 
I129: =IF(A128="n","","Feb-2025") ->  | J129: =IF($J128="","",$J128) ->  | K129: =IF(J129="","",ROUND(J129*$K$7,0)) ->  | L129: =IF(J129="","",ROUND(J129+K129,0)) ->  | N129: =IF(M129="","",ROUND(M129*$N$7,0)) ->  | O129: =IF(M129="","",ROUND(M129+N129,0)) ->  | P129: =IF(J129="","",ROUND(J129-M129,0)) ->  | Q129: =IF(J129="","",ROUND(K129-N129,0)) ->  | R129: =IF(J129="","",ROUND(P129+Q129,0)) ->  | S129: =IF(J129="","",IF($H128="Before-2004",Q129,0)) ->  | T129: =IF(J129="","",ROUND(R129-S129,0)) ->  | U129: =IF(J129="","",ROUND(S129+T129,0)) ->  | V129: =IF(J129="","",ROUND(R129-U129,0)) -> 
I130: =IF(A128="n","","Mar-2025") ->  | J130: =IF($J128="","",$J128) ->  | K130: =IF(J130="","",ROUND(J130*$K$7,0)) ->  | L130: =IF(J130="","",ROUND(J130+K130,0)) ->  | N130: =IF(M130="","",ROUND(M130*$N$7,0)) ->  | O130: =IF(M130="","",ROUND(M130+N130,0)) ->  | P130: =IF(J130="","",ROUND(J130-M130,0)) ->  | Q130: =IF(J130="","",ROUND(K130-N130,0)) ->  | R130: =IF(J130="","",ROUND(P130+Q130,0)) ->  | S130: =IF(J130="","",IF($H128="Before-2004",Q130,0)) ->  | T130: =IF(J130="","",ROUND(R130-S130,0)) ->  | U130: =IF(J130="","",ROUND(S130+T130,0)) ->  | V130: =IF(J130="","",ROUND(R130-U130,0)) -> 
A131: =IF($D131="","n","y") -> n | C131: 42 | I131: =IF(A131="n","","Jan-2025") ->  | K131: =IF(J131="","",ROUND(J131*$K$7,0)) ->  | L131: =IF(J131="","",ROUND(J131+K131,0)) ->  | N131: =IF(M131="","",ROUND(M131*$N$7,0)) ->  | O131: =IF(M131="","",ROUND(M131+N131,0)) ->  | P131: =IF(J131="","",ROUND(J131-M131,0)) ->  | Q131: =IF(J131="","",ROUND(K131-N131,0)) ->  | R131: =IF(J131="","",ROUND(P131+Q131,0)) ->  | S131: =IF(J131="","",IF($H131="Before-2004",Q131,0)) ->  | T131: =IF(J131="","",ROUND(R131-S131,0)) ->  | U131: =IF(J131="","",ROUND(S131+T131,0)) ->  | V131: =IF(J131="","",ROUND(R131-U131,0)) -> 
I132: =IF(A131="n","","Feb-2025") ->  | J132: =IF($J131="","",$J131) ->  | K132: =IF(J132="","",ROUND(J132*$K$7,0)) ->  | L132: =IF(J132="","",ROUND(J132+K132,0)) ->  | N132: =IF(M132="","",ROUND(M132*$N$7,0)) ->  | O132: =IF(M132="","",ROUND(M132+N132,0)) ->  | P132: =IF(J132="","",ROUND(J132-M132,0)) ->  | Q132: =IF(J132="","",ROUND(K132-N132,0)) ->  | R132: =IF(J132="","",ROUND(P132+Q132,0)) ->  | S132: =IF(J132="","",IF($H131="Before-2004",Q132,0)) ->  | T132: =IF(J132="","",ROUND(R132-S132,0)) ->  | U132: =IF(J132="","",ROUND(S132+T132,0)) ->  | V132: =IF(J132="","",ROUND(R132-U132,0)) -> 
I133: =IF(A131="n","","Mar-2025") ->  | J133: =IF($J131="","",$J131) ->  | K133: =IF(J133="","",ROUND(J133*$K$7,0)) ->  | L133: =IF(J133="","",ROUND(J133+K133,0)) ->  | N133: =IF(M133="","",ROUND(M133*$N$7,0)) ->  | O133: =IF(M133="","",ROUND(M133+N133,0)) ->  | P133: =IF(J133="","",ROUND(J133-M133,0)) ->  | Q133: =IF(J133="","",ROUND(K133-N133,0)) ->  | R133: =IF(J133="","",ROUND(P133+Q133,0)) ->  | S133: =IF(J133="","",IF($H131="Before-2004",Q133,0)) ->  | T133: =IF(J133="","",ROUND(R133-S133,0)) ->  | U133: =IF(J133="","",ROUND(S133+T133,0)) ->  | V133: =IF(J133="","",ROUND(R133-U133,0)) -> 
A134: =IF($D134="","n","y") -> n | C134: 43 | I134: =IF(A134="n","","Jan-2025") ->  | K134: =IF(J134="","",ROUND(J134*$K$7,0)) ->  | L134: =IF(J134="","",ROUND(J134+K134,0)) ->  | N134: =IF(M134="","",ROUND(M134*$N$7,0)) ->  | O134: =IF(M134="","",ROUND(M134+N134,0)) ->  | P134: =IF(J134="","",ROUND(J134-M134,0)) ->  | Q134: =IF(J134="","",ROUND(K134-N134,0)) ->  | R134: =IF(J134="","",ROUND(P134+Q134,0)) ->  | S134: =IF(J134="","",IF($H134="Before-2004",Q134,0)) ->  | T134: =IF(J134="","",ROUND(R134-S134,0)) ->  | U134: =IF(J134="","",ROUND(S134+T134,0)) ->  | V134: =IF(J134="","",ROUND(R134-U134,0)) -> 
I135: =IF(A134="n","","Feb-2025") ->  | J135: =IF($J134="","",$J134) ->  | K135: =IF(J135="","",ROUND(J135*$K$7,0)) ->  | L135: =IF(J135="","",ROUND(J135+K135,0)) ->  | N135: =IF(M135="","",ROUND(M135*$N$7,0)) ->  | O135: =IF(M135="","",ROUND(M135+N135,0)) ->  | P135: =IF(J135="","",ROUND(J135-M135,0)) ->  | Q135: =IF(J135="","",ROUND(K135-N135,0)) ->  | R135: =IF(J135="","",ROUND(P135+Q135,0)) ->  | S135: =IF(J135="","",IF($H134="Before-2004",Q135,0)) ->  | T135: =IF(J135="","",ROUND(R135-S135,0)) ->  | U135: =IF(J135="","",ROUND(S135+T135,0)) ->  | V135: =IF(J135="","",ROUND(R135-U135,0)) -> 
I136: =IF(A134="n","","Mar-2025") ->  | J136: =IF($J134="","",$J134) ->  | K136: =IF(J136="","",ROUND(J136*$K$7,0)) ->  | L136: =IF(J136="","",ROUND(J136+K136,0)) ->  | M136: =IF(J136="","",J136) ->  | N136: =IF(M136="","",ROUND(M136*$N$7,0)) ->  | O136: =IF(M136="","",ROUND(M136+N136,0)) ->  | P136: =IF(J136="","",ROUND(J136-M136,0)) ->  | Q136: =IF(J136="","",ROUND(K136-N136,0)) ->  | R136: =IF(J136="","",ROUND(P136+Q136,0)) ->  | S136: =IF(J136="","",IF($H134="Before-2004",Q136,0)) ->  | T136: =IF(J136="","",ROUND(R136-S136,0)) ->  | U136: =IF(J136="","",ROUND(S136+T136,0)) ->  | V136: =IF(J136="","",ROUND(R136-U136,0)) -> 
A137: =IF($D137="","n","y") -> n | C137: 44 | I137: =IF(A137="n","","Jan-2025") ->  | K137: =IF(J137="","",ROUND(J137*$K$7,0)) ->  | L137: =IF(J137="","",ROUND(J137+K137,0)) ->  | N137: =IF(M137="","",ROUND(M137*$N$7,0)) ->  | O137: =IF(M137="","",ROUND(M137+N137,0)) ->  | P137: =IF(J137="","",ROUND(J137-M137,0)) ->  | Q137: =IF(J137="","",ROUND(K137-N137,0)) ->  | R137: =IF(J137="","",ROUND(P137+Q137,0)) ->  | S137: =IF(J137="","",IF($H137="Before-2004",Q137,0)) ->  | T137: =IF(J137="","",ROUND(R137-S137,0)) ->  | U137: =IF(J137="","",ROUND(S137+T137,0)) ->  | V137: =IF(J137="","",ROUND(R137-U137,0)) -> 
I138: =IF(A137="n","","Feb-2025") ->  | J138: =IF($J137="","",$J137) ->  | K138: =IF(J138="","",ROUND(J138*$K$7,0)) ->  | L138: =IF(J138="","",ROUND(J138+K138,0)) ->  | N138: =IF(M138="","",ROUND(M138*$N$7,0)) ->  | O138: =IF(M138="","",ROUND(M138+N138,0)) ->  | P138: =IF(J138="","",ROUND(J138-M138,0)) ->  | Q138: =IF(J138="","",ROUND(K138-N138,0)) ->  | R138: =IF(J138="","",ROUND(P138+Q138,0)) ->  | S138: =IF(J138="","",IF($H137="Before-2004",Q138,0)) ->  | T138: =IF(J138="","",ROUND(R138-S138,0)) ->  | U138: =IF(J138="","",ROUND(S138+T138,0)) ->  | V138: =IF(J138="","",ROUND(R138-U138,0)) -> 
I139: =IF(A137="n","","Mar-2025") ->  | J139: =IF($J137="","",$J137) ->  | K139: =IF(J139="","",ROUND(J139*$K$7,0)) ->  | L139: =IF(J139="","",ROUND(J139+K139,0)) ->  | N139: =IF(M139="","",ROUND(M139*$N$7,0)) ->  | O139: =IF(M139="","",ROUND(M139+N139,0)) ->  | P139: =IF(J139="","",ROUND(J139-M139,0)) ->  | Q139: =IF(J139="","",ROUND(K139-N139,0)) ->  | R139: =IF(J139="","",ROUND(P139+Q139,0)) ->  | S139: =IF(J139="","",IF($H137="Before-2004",Q139,0)) ->  | T139: =IF(J139="","",ROUND(R139-S139,0)) ->  | U139: =IF(J139="","",ROUND(S139+T139,0)) ->  | V139: =IF(J139="","",ROUND(R139-U139,0)) -> 
A140: =IF($D140="","n","y") -> n | C140: 45 | I140: =IF(A140="n","","Jan-2025") ->  | K140: =IF(J140="","",ROUND(J140*$K$7,0)) ->  | L140: =IF(J140="","",ROUND(J140+K140,0)) ->  | N140: =IF(M140="","",ROUND(M140*$N$7,0)) ->  | O140: =IF(M140="","",ROUND(M140+N140,0)) ->  | P140: =IF(J140="","",ROUND(J140-M140,0)) ->  | Q140: =IF(J140="","",ROUND(K140-N140,0)) ->  | R140: =IF(J140="","",ROUND(P140+Q140,0)) ->  | S140: =IF(J140="","",IF($H140="Before-2004",Q140,0)) ->  | T140: =IF(J140="","",ROUND(R140-S140,0)) ->  | U140: =IF(J140="","",ROUND(S140+T140,0)) ->  | V140: =IF(J140="","",ROUND(R140-U140,0)) -> 
I141: =IF(A140="n","","Feb-2025") ->  | J141: =IF($J140="","",$J140) ->  | K141: =IF(J141="","",ROUND(J141*$K$7,0)) ->  | L141: =IF(J141="","",ROUND(J141+K141,0)) ->  | N141: =IF(M141="","",ROUND(M141*$N$7,0)) ->  | O141: =IF(M141="","",ROUND(M141+N141,0)) ->  | P141: =IF(J141="","",ROUND(J141-M141,0)) ->  | Q141: =IF(J141="","",ROUND(K141-N141,0)) ->  | R141: =IF(J141="","",ROUND(P141+Q141,0)) ->  | S141: =IF(J141="","",IF($H140="Before-2004",Q141,0)) ->  | T141: =IF(J141="","",ROUND(R141-S141,0)) ->  | U141: =IF(J141="","",ROUND(S141+T141,0)) ->  | V141: =IF(J141="","",ROUND(R141-U141,0)) -> 
I142: =IF(A140="n","","Mar-2025") ->  | J142: =IF($J140="","",$J140) ->  | K142: =IF(J142="","",ROUND(J142*$K$7,0)) ->  | L142: =IF(J142="","",ROUND(J142+K142,0)) ->  | N142: =IF(M142="","",ROUND(M142*$N$7,0)) ->  | O142: =IF(M142="","",ROUND(M142+N142,0)) ->  | P142: =IF(J142="","",ROUND(J142-M142,0)) ->  | Q142: =IF(J142="","",ROUND(K142-N142,0)) ->  | R142: =IF(J142="","",ROUND(P142+Q142,0)) ->  | S142: =IF(J142="","",IF($H140="Before-2004",Q142,0)) ->  | T142: =IF(J142="","",ROUND(R142-S142,0)) ->  | U142: =IF(J142="","",ROUND(S142+T142,0)) ->  | V142: =IF(J142="","",ROUND(R142-U142,0)) -> 
A143: =IF($D143="","n","y") -> n | C143: 46 | I143: =IF(A143="n","","Jan-2025") ->  | K143: =IF(J143="","",ROUND(J143*$K$7,0)) ->  | L143: =IF(J143="","",ROUND(J143+K143,0)) ->  | N143: =IF(M143="","",ROUND(M143*$N$7,0)) ->  | O143: =IF(M143="","",ROUND(M143+N143,0)) ->  | P143: =IF(J143="","",ROUND(J143-M143,0)) ->  | Q143: =IF(J143="","",ROUND(K143-N143,0)) ->  | R143: =IF(J143="","",ROUND(P143+Q143,0)) ->  | S143: =IF(J143="","",IF($H143="Before-2004",Q143,0)) ->  | T143: =IF(J143="","",ROUND(R143-S143,0)) ->  | U143: =IF(J143="","",ROUND(S143+T143,0)) ->  | V143: =IF(J143="","",ROUND(R143-U143,0)) -> 
I144: =IF(A143="n","","Feb-2025") ->  | J144: =IF($J143="","",$J143) ->  | K144: =IF(J144="","",ROUND(J144*$K$7,0)) ->  | L144: =IF(J144="","",ROUND(J144+K144,0)) ->  | N144: =IF(M144="","",ROUND(M144*$N$7,0)) ->  | O144: =IF(M144="","",ROUND(M144+N144,0)) ->  | P144: =IF(J144="","",ROUND(J144-M144,0)) ->  | Q144: =IF(J144="","",ROUND(K144-N144,0)) ->  | R144: =IF(J144="","",ROUND(P144+Q144,0)) ->  | S144: =IF(J144="","",IF($H143="Before-2004",Q144,0)) ->  | T144: =IF(J144="","",ROUND(R144-S144,0)) ->  | U144: =IF(J144="","",ROUND(S144+T144,0)) ->  | V144: =IF(J144="","",ROUND(R144-U144,0)) -> 
I145: =IF(A143="n","","Mar-2025") ->  | J145: =IF($J143="","",$J143) ->  | K145: =IF(J145="","",ROUND(J145*$K$7,0)) ->  | L145: =IF(J145="","",ROUND(J145+K145,0)) ->  | N145: =IF(M145="","",ROUND(M145*$N$7,0)) ->  | O145: =IF(M145="","",ROUND(M145+N145,0)) ->  | P145: =IF(J145="","",ROUND(J145-M145,0)) ->  | Q145: =IF(J145="","",ROUND(K145-N145,0)) ->  | R145: =IF(J145="","",ROUND(P145+Q145,0)) ->  | S145: =IF(J145="","",IF($H143="Before-2004",Q145,0)) ->  | T145: =IF(J145="","",ROUND(R145-S145,0)) ->  | U145: =IF(J145="","",ROUND(S145+T145,0)) ->  | V145: =IF(J145="","",ROUND(R145-U145,0)) -> 
A146: =IF($D146="","n","y") -> n | C146: 47 | I146: =IF(A146="n","","Jan-2025") ->  | K146: =IF(J146="","",ROUND(J146*$K$7,0)) ->  | L146: =IF(J146="","",ROUND(J146+K146,0)) ->  | N146: =IF(M146="","",ROUND(M146*$N$7,0)) ->  | O146: =IF(M146="","",ROUND(M146+N146,0)) ->  | P146: =IF(J146="","",ROUND(J146-M146,0)) ->  | Q146: =IF(J146="","",ROUND(K146-N146,0)) ->  | R146: =IF(J146="","",ROUND(P146+Q146,0)) ->  | S146: =IF(J146="","",IF($H146="Before-2004",Q146,0)) ->  | T146: =IF(J146="","",ROUND(R146-S146,0)) ->  | U146: =IF(J146="","",ROUND(S146+T146,0)) ->  | V146: =IF(J146="","",ROUND(R146-U146,0)) -> 
I147: =IF(A146="n","","Feb-2025") ->  | J147: =IF($J146="","",$J146) ->  | K147: =IF(J147="","",ROUND(J147*$K$7,0)) ->  | L147: =IF(J147="","",ROUND(J147+K147,0)) ->  | N147: =IF(M147="","",ROUND(M147*$N$7,0)) ->  | O147: =IF(M147="","",ROUND(M147+N147,0)) ->  | P147: =IF(J147="","",ROUND(J147-M147,0)) ->  | Q147: =IF(J147="","",ROUND(K147-N147,0)) ->  | R147: =IF(J147="","",ROUND(P147+Q147,0)) ->  | S147: =IF(J147="","",IF($H146="Before-2004",Q147,0)) ->  | T147: =IF(J147="","",ROUND(R147-S147,0)) ->  | U147: =IF(J147="","",ROUND(S147+T147,0)) ->  | V147: =IF(J147="","",ROUND(R147-U147,0)) -> 
I148: =IF(A146="n","","Mar-2025") ->  | J148: =IF($J146="","",$J146) ->  | K148: =IF(J148="","",ROUND(J148*$K$7,0)) ->  | L148: =IF(J148="","",ROUND(J148+K148,0)) ->  | N148: =IF(M148="","",ROUND(M148*$N$7,0)) ->  | O148: =IF(M148="","",ROUND(M148+N148,0)) ->  | P148: =IF(J148="","",ROUND(J148-M148,0)) ->  | Q148: =IF(J148="","",ROUND(K148-N148,0)) ->  | R148: =IF(J148="","",ROUND(P148+Q148,0)) ->  | S148: =IF(J148="","",IF($H146="Before-2004",Q148,0)) ->  | T148: =IF(J148="","",ROUND(R148-S148,0)) ->  | U148: =IF(J148="","",ROUND(S148+T148,0)) ->  | V148: =IF(J148="","",ROUND(R148-U148,0)) -> 
A149: =IF($D149="","n","y") -> n | C149: 48 | I149: =IF(A149="n","","Jan-2025") ->  | K149: =IF(J149="","",ROUND(J149*$K$7,0)) ->  | L149: =IF(J149="","",ROUND(J149+K149,0)) ->  | N149: =IF(M149="","",ROUND(M149*$N$7,0)) ->  | O149: =IF(M149="","",ROUND(M149+N149,0)) ->  | P149: =IF(J149="","",ROUND(J149-M149,0)) ->  | Q149: =IF(J149="","",ROUND(K149-N149,0)) ->  | R149: =IF(J149="","",ROUND(P149+Q149,0)) ->  | S149: =IF(J149="","",IF($H149="Before-2004",Q149,0)) ->  | T149: =IF(J149="","",ROUND(R149-S149,0)) ->  | U149: =IF(J149="","",ROUND(S149+T149,0)) ->  | V149: =IF(J149="","",ROUND(R149-U149,0)) -> 
I150: =IF(A149="n","","Feb-2025") ->  | J150: =IF($J149="","",$J149) ->  | K150: =IF(J150="","",ROUND(J150*$K$7,0)) ->  | L150: =IF(J150="","",ROUND(J150+K150,0)) ->  | N150: =IF(M150="","",ROUND(M150*$N$7,0)) ->  | O150: =IF(M150="","",ROUND(M150+N150,0)) ->  | P150: =IF(J150="","",ROUND(J150-M150,0)) ->  | Q150: =IF(J150="","",ROUND(K150-N150,0)) ->  | R150: =IF(J150="","",ROUND(P150+Q150,0)) ->  | S150: =IF(J150="","",IF($H149="Before-2004",Q150,0)) ->  | T150: =IF(J150="","",ROUND(R150-S150,0)) ->  | U150: =IF(J150="","",ROUND(S150+T150,0)) ->  | V150: =IF(J150="","",ROUND(R150-U150,0)) -> 
I151: =IF(A149="n","","Mar-2025") ->  | J151: =IF($J149="","",$J149) ->  | K151: =IF(J151="","",ROUND(J151*$K$7,0)) ->  | L151: =IF(J151="","",ROUND(J151+K151,0)) ->  | N151: =IF(M151="","",ROUND(M151*$N$7,0)) ->  | O151: =IF(M151="","",ROUND(M151+N151,0)) ->  | P151: =IF(J151="","",ROUND(J151-M151,0)) ->  | Q151: =IF(J151="","",ROUND(K151-N151,0)) ->  | R151: =IF(J151="","",ROUND(P151+Q151,0)) ->  | S151: =IF(J151="","",IF($H149="Before-2004",Q151,0)) ->  | T151: =IF(J151="","",ROUND(R151-S151,0)) ->  | U151: =IF(J151="","",ROUND(S151+T151,0)) ->  | V151: =IF(J151="","",ROUND(R151-U151,0)) -> 
A152: =IF($D152="","n","y") -> n | C152: 49 | I152: =IF(A152="n","","Jan-2025") ->  | K152: =IF(J152="","",ROUND(J152*$K$7,0)) ->  | L152: =IF(J152="","",ROUND(J152+K152,0)) ->  | N152: =IF(M152="","",ROUND(M152*$N$7,0)) ->  | O152: =IF(M152="","",ROUND(M152+N152,0)) ->  | P152: =IF(J152="","",ROUND(J152-M152,0)) ->  | Q152: =IF(J152="","",ROUND(K152-N152,0)) ->  | R152: =IF(J152="","",ROUND(P152+Q152,0)) ->  | S152: =IF(J152="","",IF($H152="Before-2004",Q152,0)) ->  | T152: =IF(J152="","",ROUND(R152-S152,0)) ->  | U152: =IF(J152="","",ROUND(S152+T152,0)) ->  | V152: =IF(J152="","",ROUND(R152-U152,0)) -> 
I153: =IF(A152="n","","Feb-2025") ->  | J153: =IF($J152="","",$J152) ->  | K153: =IF(J153="","",ROUND(J153*$K$7,0)) ->  | L153: =IF(J153="","",ROUND(J153+K153,0)) ->  | N153: =IF(M153="","",ROUND(M153*$N$7,0)) ->  | O153: =IF(M153="","",ROUND(M153+N153,0)) ->  | P153: =IF(J153="","",ROUND(J153-M153,0)) ->  | Q153: =IF(J153="","",ROUND(K153-N153,0)) ->  | R153: =IF(J153="","",ROUND(P153+Q153,0)) ->  | S153: =IF(J153="","",IF($H152="Before-2004",Q153,0)) ->  | T153: =IF(J153="","",ROUND(R153-S153,0)) ->  | U153: =IF(J153="","",ROUND(S153+T153,0)) ->  | V153: =IF(J153="","",ROUND(R153-U153,0)) -> 
I154: =IF(A152="n","","Mar-2025") ->  | J154: =IF($J152="","",$J152) ->  | K154: =IF(J154="","",ROUND(J154*$K$7,0)) ->  | L154: =IF(J154="","",ROUND(J154+K154,0)) ->  | N154: =IF(M154="","",ROUND(M154*$N$7,0)) ->  | O154: =IF(M154="","",ROUND(M154+N154,0)) ->  | P154: =IF(J154="","",ROUND(J154-M154,0)) ->  | Q154: =IF(J154="","",ROUND(K154-N154,0)) ->  | R154: =IF(J154="","",ROUND(P154+Q154,0)) ->  | S154: =IF(J154="","",IF($H152="Before-2004",Q154,0)) ->  | T154: =IF(J154="","",ROUND(R154-S154,0)) ->  | U154: =IF(J154="","",ROUND(S154+T154,0)) ->  | V154: =IF(J154="","",ROUND(R154-U154,0)) -> 
A155: =IF($D155="","n","y") -> n | C155: 50 | I155: =IF(A155="n","","Jan-2025") ->  | K155: =IF(J155="","",ROUND(J155*$K$7,0)) ->  | L155: =IF(J155="","",ROUND(J155+K155,0)) ->  | N155: =IF(M155="","",ROUND(M155*$N$7,0)) ->  | O155: =IF(M155="","",ROUND(M155+N155,0)) ->  | P155: =IF(J155="","",ROUND(J155-M155,0)) ->  | Q155: =IF(J155="","",ROUND(K155-N155,0)) ->  | R155: =IF(J155="","",ROUND(P155+Q155,0)) ->  | S155: =IF(J155="","",IF($H155="Before-2004",Q155,0)) ->  | T155: =IF(J155="","",ROUND(R155-S155,0)) ->  | U155: =IF(J155="","",ROUND(S155+T155,0)) ->  | V155: =IF(J155="","",ROUND(R155-U155,0)) -> 
I156: =IF(A155="n","","Feb-2025") ->  | J156: =IF($J155="","",$J155) ->  | K156: =IF(J156="","",ROUND(J156*$K$7,0)) ->  | L156: =IF(J156="","",ROUND(J156+K156,0)) ->  | N156: =IF(M156="","",ROUND(M156*$N$7,0)) ->  | O156: =IF(M156="","",ROUND(M156+N156,0)) ->  | P156: =IF(J156="","",ROUND(J156-M156,0)) ->  | Q156: =IF(J156="","",ROUND(K156-N156,0)) ->  | R156: =IF(J156="","",ROUND(P156+Q156,0)) ->  | S156: =IF(J156="","",IF($H155="Before-2004",Q156,0)) ->  | T156: =IF(J156="","",ROUND(R156-S156,0)) ->  | U156: =IF(J156="","",ROUND(S156+T156,0)) ->  | V156: =IF(J156="","",ROUND(R156-U156,0)) -> 
I157: =IF(A155="n","","Mar-2025") ->  | J157: =IF($J155="","",$J155) ->  | K157: =IF(J157="","",ROUND(J157*$K$7,0)) ->  | L157: =IF(J157="","",ROUND(J157+K157,0)) ->  | N157: =IF(M157="","",ROUND(M157*$N$7,0)) ->  | O157: =IF(M157="","",ROUND(M157+N157,0)) ->  | P157: =IF(J157="","",ROUND(J157-M157,0)) ->  | Q157: =IF(J157="","",ROUND(K157-N157,0)) ->  | R157: =IF(J157="","",ROUND(P157+Q157,0)) ->  | S157: =IF(J157="","",IF($H155="Before-2004",Q157,0)) ->  | T157: =IF(J157="","",ROUND(R157-S157,0)) ->  | U157: =IF(J157="","",ROUND(S157+T157,0)) ->  | V157: =IF(J157="","",ROUND(R157-U157,0)) -> 
C158: Total | J158: =SUM(J8:J157) -> 574800 | K158: =SUM(K8:K157) -> 316140 | L158: =SUM(L8:L157) -> 890940 | M158: =SUM(M8:M157) -> 574800 | N158: =SUM(N8:N157) -> 304644 | O158: =SUM(O8:O157) -> 879444 | P158: =SUM(P8:P157) -> 0 | Q158: =SUM(Q8:Q157) -> 11496 | R158: =SUM(R8:R157) -> 11496 | S158: =SUM(S8:S157) -> 2874 | T158: =SUM(T8:T157) -> 8622 | U158: =SUM(U8:U157) -> 11496 | V158: =SUM(V8:V157) -> 0
C159: Total Allowances And Deuctions Summry | R159: Amount in words :-
C160: 1- | D160: Allowances (Difference) | J160: Basic | N160: =P158 -> 0 | R160: …………………………………………………………….. …………………………………………………………
C161: 2- | J161: D.A. | N161: =Q158 -> 11496
J162: Total Allowances | N162: =R158 -> 11496 | R162: हस्ताक्षर डीडीओ मय मुहर
C163: 1- | D163: Deductions | J163: GPF | N163: =S158 -> 2874
C164: 2- | J164: GPF-2004 | N164: =T158 -> 8622
J165: Total Deductions | N165: =U158 -> 11496
C166: NET AMOUNT TO BE PAY | N166: =ROUND(N162-N165,0) -> 0

Sheet DA For 20 Emp With Sur.Arear
C2: GOVT. SR. SEC. SCHOOL....................................................................................
C3: DA AREAR
C4: वित्त विभाग राजस्थान सरकार के आदेशांक-F.6(3) FD (Rules)/2017/ Jaipur, दिनांक-01-04-2025 के अनुसरण में स्थानीय कार्यालय के अधीनस्थ नियमित कार्मिकों का Jan-2025 से महंगाई भत्ता 53% से बढ़ाकर 55% किया जाकर Jan- 2025 से Mar-2025 तक नियमानुसार 2% महंगाई भत्ते का अंतर D.A. एरियर के रूप में निम्नानुसार गणना कर सम्बंधित खातों में/GPF/GPF-2004 में आहरित करने की स्वीकृति एतद द्वारा दी जाती है l
C5: S. N0. | D5: Employee Name | G5: Post | H5: Employee Cat. (After-04, Before-04) | I5: Month | J5: After Revise DA | M5: Before Revise DA | P5: Difference | S5: GPF | T5: GPF 2004 | U5: TOTAL DED. | V5: NET AMOUNT CASH PAYMENT (ARREAR) | W5: TV NUMBER | X5: TV DATE
J6: BASIC | K6: DA | L6: TOTAL | M6: BASIC | N6: DA | O6: TOTAL | P6: BASIC | Q6: DA | R6: TOTAL
K7: 55% | N7: 53%
A8: =IF(D8="","n","y") -> y | C8: 1 | D8: A | G8: Sr. Teacher | H8: After-2004 | I8: =IF(A8="n","","Jan-2025") -> Jan-2025 | J8: 47900 | K8: =IF(J8="","",ROUND(J8*$K$7,0)) -> 26345 | L8: =IF(J8="","",ROUND(J8+K8,0)) -> 74245 | M8: =IF(J8="","",J8) -> 47900 | N8: =IF(M8="","",ROUND(M8*$N$7,0)) -> 25387 | O8: =IF(M8="","",ROUND(M8+N8,0)) -> 73287 | P8: =IF(J8="","",ROUND(J8-M8,0)) -> 0 | Q8: =IF(J8="","",ROUND(K8-N8,0)) -> 958 | R8: =IF(J8="","",ROUND(P8+Q8,0)) -> 958 | S8: =IF(J8="","",IF($H8="Before-2004",Q8,0)) -> 0 | T8: =IF(J8="","",ROUND(R8-S8,0)) -> 958 | U8: =IF(J8="","",ROUND(S8+T8,0)) -> 958 | V8: =IF(J8="","",ROUND(R8-U8,0)) -> 0
I9: =IF(A8="n","","Feb-2025") -> Feb-2025 | J9: =IF($J8="","",$J8) -> 47900 | K9: =IF(J9="","",ROUND(J9*$K$7,0)) -> 26345 | L9: =IF(J9="","",ROUND(J9+K9,0)) -> 74245 | M9: =IF(J9="","",J9) -> 47900 | N9: =IF(M9="","",ROUND(M9*$N$7,0)) -> 25387 | O9: =IF(M9="","",ROUND(M9+N9,0)) -> 73287 | P9: =IF(J9="","",ROUND(J9-M9,0)) -> 0 | Q9: =IF(J9="","",ROUND(K9-N9,0)) -> 958 | R9: =IF(J9="","",ROUND(P9+Q9,0)) -> 958 | S9: =IF(J9="","",IF($H8="Before-2004",Q9,0)) -> 0 | T9: =IF(J9="","",ROUND(R9-S9,0)) -> 958 | U9: =IF(J9="","",ROUND(S9+T9,0)) -> 958 | V9: =IF(J9="","",ROUND(R9-U9,0)) -> 0
I10: =IF(A8="n","","Mar-2025") -> Mar-2025 | J10: =IF($J8="","",$J8) -> 47900 | K10: =IF(J10="","",ROUND(J10*$K$7,0)) -> 26345 | L10: =IF(J10="","",ROUND(J10+K10,0)) -> 74245 | M10: =IF(J10="","",J10) -> 47900 | N10: =IF(M10="","",ROUND(M10*$N$7,0)) -> 25387 | O10: =IF(M10="","",ROUND(M10+N10,0)) -> 73287 | P10: =IF(J10="","",ROUND(J10-M10,0)) -> 0 | Q10: =IF(J10="","",ROUND(K10-N10,0)) -> 958 | R10: =IF(J10="","",ROUND(P10+Q10,0)) -> 958 | S10: =IF(J10="","",IF($H8="Before-2004",Q10,0)) -> 0 | T10: =IF(J10="","",ROUND(R10-S10,0)) -> 958 | U10: =IF(J10="","",ROUND(S10+T10,0)) -> 958 | V10: =IF(J10="","",ROUND(R10-U10,0)) -> 0
G11: =IF(AND(A8="n",D8=""),"","Surrender Ar.→") -> Surrender Ar.→ | H11: Yes | I11: Jan-2025 | J11: =IF(OR($H11="",$H11="no"),"",IF($I11=$I8,ROUND(J8/2,0),IF($I11=$I9,ROUND(J9/2,0),IF($I11=$I10,ROUND(J10/2,0))))) -> 23950 | K11: =IF(OR($H11="",$H11="no"),"",IF($I11=$I8,ROUND(K8/2,0),IF($I11=$I9,ROUND(K9/2,0),IF($I11=$I10,ROUND(K10/2,0))))) -> 13173 | L11: =IF(OR($H11="",$H11="no"),"",ROUND(J11+K11,0)) -> 37123 | M11: =IF(OR($H11="",$H11="no"),"",IF($I11=$I8,ROUND(M8/2,0),IF($I11=$I9,ROUND(M9/2,0),IF($I11=$I10,ROUND(M10/2,0))))) -> 23950 | N11: =IF(OR($H11="",$H11="no"),"",IF($I11=$I8,ROUND(N8/2,0),IF($I11=$I9,ROUND(N9/2,0),IF($I11=$I10,ROUND(N10/2,0))))) -> 12694 | O11: =IF(OR($H11="",$H11="no"),"",ROUND(M11+N11,0)) -> 36644 | P11: =IF(OR($H11="",$H11="no"),"",ROUND(J11-M11,0)) -> 0 | Q11: =IF(OR($H11="",$H11="no"),"",ROUND(K11-N11,0)) -> 479 | R11: =IF(OR($H11="",$H11="no"),"",ROUND(P11+Q11,0)) -> 479 | S11: =IF(OR($H11="",$H11="no"),"",0) -> 0 | T11: =IF(OR($H11="",$H11="no"),"",0) -> 0 | U11: =IF(OR($H11="",$H11="no"),"",ROUND(S11+T11,0)) -> 0 | V11: =IF(OR($H11="",$H11="no"),"",ROUND(R11-U11,0)) -> 479
A12: =IF(D12="","n","y") -> y | C12: 2 | D12: B | G12: Teacher | H12: Before-2004 | I12: =IF(A12="n","","Jan-2025") -> Jan-2025 | J12: 47900 | K12: =IF(J12="","",ROUND(J12*$K$7,0)) -> 26345 | L12: =IF(J12="","",ROUND(J12+K12,0)) -> 74245 | M12: =IF(J12="","",J12) -> 47900 | N12: =IF(M12="","",ROUND(M12*$N$7,0)) -> 25387 | O12: =IF(M12="","",ROUND(M12+N12,0)) -> 73287 | P12: =IF(J12="","",ROUND(J12-M12,0)) -> 0 | Q12: =IF(J12="","",ROUND(K12-N12,0)) -> 958 | R12: =IF(J12="","",ROUND(P12+Q12,0)) -> 958 | S12: =IF(J12="","",IF($H12="Before-2004",Q12,0)) -> 958 | T12: =IF(J12="","",ROUND(R12-S12,0)) -> 0 | U12: =IF(J12="","",ROUND(S12+T12,0)) -> 958 | V12: =IF(J12="","",ROUND(R12-U12,0)) -> 0
I13: =IF(A12="n","","Feb-2025") -> Feb-2025 | J13: =IF($J12="","",$J12) -> 47900 | K13: =IF(J13="","",ROUND(J13*$K$7,0)) -> 26345 | L13: =IF(J13="","",ROUND(J13+K13,0)) -> 74245 | M13: =IF(J13="","",J13) -> 47900 | N13: =IF(M13="","",ROUND(M13*$N$7,0)) -> 25387 | O13: =IF(M13="","",ROUND(M13+N13,0)) -> 73287 | P13: =IF(J13="","",ROUND(J13-M13,0)) -> 0 | Q13: =IF(J13="","",ROUND(K13-N13,0)) -> 958 | R13: =IF(J13="","",ROUND(P13+Q13,0)) -> 958 | S13: =IF(J13="","",IF($H12="Before-2004",Q13,0)) -> 958 | T13: =IF(J13="","",ROUND(R13-S13,0)) -> 0 | U13: =IF(J13="","",ROUND(S13+T13,0)) -> 958 | V13: =IF(J13="","",ROUND(R13-U13,0)) -> 0
I14: =IF(A12="n","","Mar-2025") -> Mar-2025 | J14: =IF($J12="","",$J12) -> 47900 | K14: =IF(J14="","",ROUND(J14*$K$7,0)) -> 26345 | L14: =IF(J14="","",ROUND(J14+K14,0)) -> 74245 | M14: =IF(J14="","",J14) -> 47900 | N14: =IF(M14="","",ROUND(M14*$N$7,0)) -> 25387 | O14: =IF(M14="","",ROUND(M14+N14,0)) -> 73287 | P14: =IF(J14="","",ROUND(J14-M14,0)) -> 0 | Q14: =IF(J14="","",ROUND(K14-N14,0)) -> 958 | R14: =IF(J14="","",ROUND(P14+Q14,0)) -> 958 | S14: =IF(J14="","",IF($H12="Before-2004",Q14,0)) -> 958 | T14: =IF(J14="","",ROUND(R14-S14,0)) -> 0 | U14: =IF(J14="","",ROUND(S14+T14,0)) -> 958 | V14: =IF(J14="","",ROUND(R14-U14,0)) -> 0
G15: =IF(AND(A12="n",D12=""),"","Surrender Ar.→") -> Surrender Ar.→ | H15: No | I15: Jan-2025 | J15: =IF(OR($H15="",$H15="no"),"",IF($I15=$I12,ROUND(J12/2,0),IF($I15=$I13,ROUND(J13/2,0),IF($I15=$I14,ROUND(J14/2,0))))) ->  | K15: =IF(OR($H15="",$H15="no"),"",IF($I15=$I12,ROUND(K12/2,0),IF($I15=$I13,ROUND(K13/2,0),IF($I15=$I14,ROUND(K14/2,0))))) ->  | L15: =IF(OR($H15="",$H15="no"),"",ROUND(J15+K15,0)) ->  | M15: =IF(OR($H15="",$H15="no"),"",IF($I15=$I12,ROUND(M12/2,0),IF($I15=$I13,ROUND(M13/2,0),IF($I15=$I14,ROUND(M14/2,0))))) ->  | N15: =IF(OR($H15="",$H15="no"),"",IF($I15=$I12,ROUND(N12/2,0),IF($I15=$I13,ROUND(N13/2,0),IF($I15=$I14,ROUND(N14/2,0))))) ->  | O15: =IF(OR($H15="",$H15="no"),"",ROUND(M15+N15,0)) ->  | P15: =IF(OR($H15="",$H15="no"),"",ROUND(J15-M15,0)) ->  | Q15: =IF(OR($H15="",$H15="no"),"",ROUND(K15-N15,0)) ->  | R15: =IF(OR($H15="",$H15="no"),"",ROUND(P15+Q15,0)) ->  | S15: =IF(OR($H15="",$H15="no"),"",0) ->  | T15: =IF(OR($H15="",$H15="no"),"",0) ->  | U15: =IF(OR($H15="",$H15="no"),"",ROUND(S15+T15,0)) ->  | V15: =IF(OR($H15="",$H15="no"),"",ROUND(R15-U15,0)) -> 
A16: =IF(D16="","n","y") -> n | C16: 3 | I16: =IF(A16="n","","Jan-2025") ->  | K16: =IF(J16="","",ROUND(J16*$K$7,0)) ->  | L16: =IF(J16="","",ROUND(J16+K16,0)) ->  | M16: =IF(J16="","",J16) ->  | N16: =IF(M16="","",ROUND(M16*$N$7,0)) ->  | O16: =IF(M16="","",ROUND(M16+N16,0)) ->  | P16: =IF(J16="","",ROUND(J16-M16,0)) ->  | Q16: =IF(J16="","",ROUND(K16-N16,0)) ->  | R16: =IF(J16="","",ROUND(P16+Q16,0)) ->  | S16: =IF(J16="","",IF($H16="Before-2004",Q16,0)) ->  | T16: =IF(J16="","",ROUND(R16-S16,0)) ->  | U16: =IF(J16="","",ROUND(S16+T16,0)) ->  | V16: =IF(J16="","",ROUND(R16-U16,0)) -> 
I17: =IF(A16="n","","Feb-2025") ->  | J17: =IF($J16="","",$J16) ->  | K17: =IF(J17="","",ROUND(J17*$K$7,0)) ->  | L17: =IF(J17="","",ROUND(J17+K17,0)) ->  | M17: =IF(J17="","",J17) ->  | N17: =IF(M17="","",ROUND(M17*$N$7,0)) ->  | O17: =IF(M17="","",ROUND(M17+N17,0)) ->  | P17: =IF(J17="","",ROUND(J17-M17,0)) ->  | Q17: =IF(J17="","",ROUND(K17-N17,0)) ->  | R17: =IF(J17="","",ROUND(P17+Q17,0)) ->  | S17: =IF(J17="","",IF($H16="Before-2004",Q17,0)) ->  | T17: =IF(J17="","",ROUND(R17-S17,0)) ->  | U17: =IF(J17="","",ROUND(S17+T17,0)) ->  | V17: =IF(J17="","",ROUND(R17-U17,0)) -> 
I18: =IF(A16="n","","Mar-2025") ->  | J18: =IF($J16="","",$J16) ->  | K18: =IF(J18="","",ROUND(J18*$K$7,0)) ->  | L18: =IF(J18="","",ROUND(J18+K18,0)) ->  | M18: =IF(J18="","",J18) ->  | N18: =IF(M18="","",ROUND(M18*$N$7,0)) ->  | O18: =IF(M18="","",ROUND(M18+N18,0)) ->  | P18: =IF(J18="","",ROUND(J18-M18,0)) ->  | Q18: =IF(J18="","",ROUND(K18-N18,0)) ->  | R18: =IF(J18="","",ROUND(P18+Q18,0)) ->  | S18: =IF(J18="","",IF($H16="Before-2004",Q18,0)) ->  | T18: =IF(J18="","",ROUND(R18-S18,0)) ->  | U18: =IF(J18="","",ROUND(S18+T18,0)) ->  | V18: =IF(J18="","",ROUND(R18-U18,0)) -> 
G19: =IF(AND(A16="n",D16=""),"","Surrender Ar.→") ->  | H19: No | I19: Jan-2025 | J19: =IF(OR($H19="",$H19="no"),"",IF($I19=$I16,ROUND(J16/2,0),IF($I19=$I17,ROUND(J17/2,0),IF($I19=$I18,ROUND(J18/2,0))))) ->  | K19: =IF(OR($H19="",$H19="no"),"",IF($I19=$I16,ROUND(K16/2,0),IF($I19=$I17,ROUND(K17/2,0),IF($I19=$I18,ROUND(K18/2,0))))) ->  | L19: =IF(OR($H19="",$H19="no"),"",ROUND(J19+K19,0)) ->  | M19: =IF(OR($H19="",$H19="no"),"",IF($I19=$I16,ROUND(M16/2,0),IF($I19=$I17,ROUND(M17/2,0),IF($I19=$I18,ROUND(M18/2,0))))) ->  | N19: =IF(OR($H19="",$H19="no"),"",IF($I19=$I16,ROUND(N16/2,0),IF($I19=$I17,ROUND(N17/2,0),IF($I19=$I18,ROUND(N18/2,0))))) ->  | O19: =IF(OR($H19="",$H19="no"),"",ROUND(M19+N19,0)) ->  | P19: =IF(OR($H19="",$H19="no"),"",ROUND(J19-M19,0)) ->  | Q19: =IF(OR($H19="",$H19="no"),"",ROUND(K19-N19,0)) ->  | R19: =IF(OR($H19="",$H19="no"),"",ROUND(P19+Q19,0)) ->  | S19: =IF(OR($H19="",$H19="no"),"",0) ->  | T19: =IF(OR($H19="",$H19="no"),"",0) ->  | U19: =IF(OR($H19="",$H19="no"),"",ROUND(S19+T19,0)) ->  | V19: =IF(OR($H19="",$H19="no"),"",ROUND(R19-U19,0)) -> 
A20: =IF(D20="","n","y") -> n | C20: 4 | I20: =IF(A20="n","","Jan-2025") ->  | K20: =IF(J20="","",ROUND(J20*$K$7,0)) ->  | L20: =IF(J20="","",ROUND(J20+K20,0)) ->  | M20: =IF(J20="","",J20) ->  | N20: =IF(M20="","",ROUND(M20*$N$7,0)) ->  | O20: =IF(M20="","",ROUND(M20+N20,0)) ->  | P20: =IF(J20="","",ROUND(J20-M20,0)) ->  | Q20: =IF(J20="","",ROUND(K20-N20,0)) ->  | R20: =IF(J20="","",ROUND(P20+Q20,0)) ->  | S20: =IF(J20="","",IF($H20="Before-2004",Q20,0)) ->  | T20: =IF(J20="","",ROUND(R20-S20,0)) ->  | U20: =IF(J20="","",ROUND(S20+T20,0)) ->  | V20: =IF(J20="","",ROUND(R20-U20,0)) -> 
I21: =IF(A20="n","","Feb-2025") ->  | J21: =IF($J20="","",$J20) ->  | K21: =IF(J21="","",ROUND(J21*$K$7,0)) ->  | L21: =IF(J21="","",ROUND(J21+K21,0)) ->  | M21: =IF(J21="","",J21) ->  | N21: =IF(M21="","",ROUND(M21*$N$7,0)) ->  | O21: =IF(M21="","",ROUND(M21+N21,0)) ->  | P21: =IF(J21="","",ROUND(J21-M21,0)) ->  | Q21: =IF(J21="","",ROUND(K21-N21,0)) ->  | R21: =IF(J21="","",ROUND(P21+Q21,0)) ->  | S21: =IF(J21="","",IF($H20="Before-2004",Q21,0)) ->  | T21: =IF(J21="","",ROUND(R21-S21,0)) ->  | U21: =IF(J21="","",ROUND(S21+T21,0)) ->  | V21: =IF(J21="","",ROUND(R21-U21,0)) -> 
I22: =IF(A20="n","","Mar-2025") ->  | J22: =IF($J20="","",$J20) ->  | K22: =IF(J22="","",ROUND(J22*$K$7,0)) ->  | L22: =IF(J22="","",ROUND(J22+K22,0)) ->  | M22: =IF(J22="","",J22) ->  | N22: =IF(M22="","",ROUND(M22*$N$7,0)) ->  | O22: =IF(M22="","",ROUND(M22+N22,0)) ->  | P22: =IF(J22="","",ROUND(J22-M22,0)) ->  | Q22: =IF(J22="","",ROUND(K22-N22,0)) ->  | R22: =IF(J22="","",ROUND(P22+Q22,0)) ->  | S22: =IF(J22="","",IF($H20="Before-2004",Q22,0)) ->  | T22: =IF(J22="","",ROUND(R22-S22,0)) ->  | U22: =IF(J22="","",ROUND(S22+T22,0)) ->  | V22: =IF(J22="","",ROUND(R22-U22,0)) -> 
G23: =IF(AND(A20="n",D20=""),"","Surrender Ar.→") ->  | H23: No | I23: Jan-2025 | J23: =IF(OR($H23="",$H23="no"),"",IF($I23=$I20,ROUND(J20/2,0),IF($I23=$I21,ROUND(J21/2,0),IF($I23=$I22,ROUND(J22/2,0))))) ->  | K23: =IF(OR($H23="",$H23="no"),"",IF($I23=$I20,ROUND(K20/2,0),IF($I23=$I21,ROUND(K21/2,0),IF($I23=$I22,ROUND(K22/2,0))))) ->  | L23: =IF(OR($H23="",$H23="no"),"",ROUND(J23+K23,0)) ->  | M23: =IF(OR($H23="",$H23="no"),"",IF($I23=$I20,ROUND(M20/2,0),IF($I23=$I21,ROUND(M21/2,0),IF($I23=$I22,ROUND(M22/2,0))))) ->  | N23: =IF(OR($H23="",$H23="no"),"",IF($I23=$I20,ROUND(N20/2,0),IF($I23=$I21,ROUND(N21/2,0),IF($I23=$I22,ROUND(N22/2,0))))) ->  | O23: =IF(OR($H23="",$H23="no"),"",ROUND(M23+N23,0)) ->  | P23: =IF(OR($H23="",$H23="no"),"",ROUND(J23-M23,0)) ->  | Q23: =IF(OR($H23="",$H23="no"),"",ROUND(K23-N23,0)) ->  | R23: =IF(OR($H23="",$H23="no"),"",ROUND(P23+Q23,0)) ->  | S23: =IF(OR($H23="",$H23="no"),"",0) ->  | T23: =IF(OR($H23="",$H23="no"),"",0) ->  | U23: =IF(OR($H23="",$H23="no"),"",ROUND(S23+T23,0)) ->  | V23: =IF(OR($H23="",$H23="no"),"",ROUND(R23-U23,0)) -> 
A24: =IF(D24="","n","y") -> n | C24: 5 | I24: =IF(A24="n","","Jan-2025") ->  | K24: =IF(J24="","",ROUND(J24*$K$7,0)) ->  | L24: =IF(J24="","",ROUND(J24+K24,0)) ->  | M24: =IF(J24="","",J24) ->  | N24: =IF(M24="","",ROUND(M24*$N$7,0)) ->  | O24: =IF(M24="","",ROUND(M24+N24,0)) ->  | P24: =IF(J24="","",ROUND(J24-M24,0)) ->  | Q24: =IF(J24="","",ROUND(K24-N24,0)) ->  | R24: =IF(J24="","",ROUND(P24+Q24,0)) ->  | S24: =IF(J24="","",IF($H24="Before-2004",Q24,0)) ->  | T24: =IF(J24="","",ROUND(R24-S24,0)) ->  | U24: =IF(J24="","",ROUND(S24+T24,0)) ->  | V24: =IF(J24="","",ROUND(R24-U24,0)) -> 
I25: =IF(A24="n","","Feb-2025") ->  | J25: =IF($J24="","",$J24) ->  | K25: =IF(J25="","",ROUND(J25*$K$7,0)) ->  | L25: =IF(J25="","",ROUND(J25+K25,0)) ->  | M25: =IF(J25="","",J25) ->  | N25: =IF(M25="","",ROUND(M25*$N$7,0)) ->  | O25: =IF(M25="","",ROUND(M25+N25,0)) ->  | P25: =IF(J25="","",ROUND(J25-M25,0)) ->  | Q25: =IF(J25="","",ROUND(K25-N25,0)) ->  | R25: =IF(J25="","",ROUND(P25+Q25,0)) ->  | S25: =IF(J25="","",IF($H24="Before-2004",Q25,0)) ->  | T25: =IF(J25="","",ROUND(R25-S25,0)) ->  | U25: =IF(J25="","",ROUND(S25+T25,0)) ->  | V25: =IF(J25="","",ROUND(R25-U25,0)) -> 
I26: =IF(A24="n","","Mar-2025") ->  | J26: =IF($J24="","",$J24) ->  | K26: =IF(J26="","",ROUND(J26*$K$7,0)) ->  | L26: =IF(J26="","",ROUND(J26+K26,0)) ->  | M26: =IF(J26="","",J26) ->  | N26: =IF(M26="","",ROUND(M26*$N$7,0)) ->  | O26: =IF(M26="","",ROUND(M26+N26,0)) ->  | P26: =IF(J26="","",ROUND(J26-M26,0)) ->  | Q26: =IF(J26="","",ROUND(K26-N26,0)) ->  | R26: =IF(J26="","",ROUND(P26+Q26,0)) ->  | S26: =IF(J26="","",IF($H24="Before-2004",Q26,0)) ->  | T26: =IF(J26="","",ROUND(R26-S26,0)) ->  | U26: =IF(J26="","",ROUND(S26+T26,0)) ->  | V26: =IF(J26="","",ROUND(R26-U26,0)) -> 
G27: =IF(AND(A24="n",D24=""),"","Surrender Ar.→") ->  | H27: No | I27: Jan-2025 | J27: =IF(OR($H27="",$H27="no"),"",IF($I27=$I24,ROUND(J24/2,0),IF($I27=$I25,ROUND(J25/2,0),IF($I27=$I26,ROUND(J26/2,0))))) ->  | K27: =IF(OR($H27="",$H27="no"),"",IF($I27=$I24,ROUND(K24/2,0),IF($I27=$I25,ROUND(K25/2,0),IF($I27=$I26,ROUND(K26/2,0))))) ->  | L27: =IF(OR($H27="",$H27="no"),"",ROUND(J27+K27,0)) ->  | M27: =IF(OR($H27="",$H27="no"),"",IF($I27=$I24,ROUND(M24/2,0),IF($I27=$I25,ROUND(M25/2,0),IF($I27=$I26,ROUND(M26/2,0))))) ->  | N27: =IF(OR($H27="",$H27="no"),"",IF($I27=$I24,ROUND(N24/2,0),IF($I27=$I25,ROUND(N25/2,0),IF($I27=$I26,ROUND(N26/2,0))))) ->  | O27: =IF(OR($H27="",$H27="no"),"",ROUND(M27+N27,0)) ->  | P27: =IF(OR($H27="",$H27="no"),"",ROUND(J27-M27,0)) ->  | Q27: =IF(OR($H27="",$H27="no"),"",ROUND(K27-N27,0)) ->  | R27: =IF(OR($H27="",$H27="no"),"",ROUND(P27+Q27,0)) ->  | S27: =IF(OR($H27="",$H27="no"),"",0) ->  | T27: =IF(OR($H27="",$H27="no"),"",0) ->  | U27: =IF(OR($H27="",$H27="no"),"",ROUND(S27+T27,0)) ->  | V27: =IF(OR($H27="",$H27="no"),"",ROUND(R27-U27,0)) -> 
A28: =IF(D28="","n","y") -> n | C28: 6 | I28: =IF(A28="n","","Jan-2025") ->  | K28: =IF(J28="","",ROUND(J28*$K$7,0)) ->  | L28: =IF(J28="","",ROUND(J28+K28,0)) ->  | M28: =IF(J28="","",J28) ->  | N28: =IF(M28="","",ROUND(M28*$N$7,0)) ->  | O28: =IF(M28="","",ROUND(M28+N28,0)) ->  | P28: =IF(J28="","",ROUND(J28-M28,0)) ->  | Q28: =IF(J28="","",ROUND(K28-N28,0)) ->  | R28: =IF(J28="","",ROUND(P28+Q28,0)) ->  | S28: =IF(J28="","",IF($H28="Before-2004",Q28,0)) ->  | T28: =IF(J28="","",ROUND(R28-S28,0)) ->  | U28: =IF(J28="","",ROUND(S28+T28,0)) ->  | V28: =IF(J28="","",ROUND(R28-U28,0)) -> 
I29: =IF(A28="n","","Feb-2025") ->  | J29: =IF($J28="","",$J28) ->  | K29: =IF(J29="","",ROUND(J29*$K$7,0)) ->  | L29: =IF(J29="","",ROUND(J29+K29,0)) ->  | M29: =IF(J29="","",J29) ->  | N29: =IF(M29="","",ROUND(M29*$N$7,0)) ->  | O29: =IF(M29="","",ROUND(M29+N29,0)) ->  | P29: =IF(J29="","",ROUND(J29-M29,0)) ->  | Q29: =IF(J29="","",ROUND(K29-N29,0)) ->  | R29: =IF(J29="","",ROUND(P29+Q29,0)) ->  | S29: =IF(J29="","",IF($H28="Before-2004",Q29,0)) ->  | T29: =IF(J29="","",ROUND(R29-S29,0)) ->  | U29: =IF(J29="","",ROUND(S29+T29,0)) ->  | V29: =IF(J29="","",ROUND(R29-U29,0)) -> 
I30: =IF(A28="n","","Mar-2025") ->  | J30: =IF($J28="","",$J28) ->  | K30: =IF(J30="","",ROUND(J30*$K$7,0)) ->  | L30: =IF(J30="","",ROUND(J30+K30,0)) ->  | M30: =IF(J30="","",J30) ->  | N30: =IF(M30="","",ROUND(M30*$N$7,0)) ->  | O30: =IF(M30="","",ROUND(M30+N30,0)) ->  | P30: =IF(J30="","",ROUND(J30-M30,0)) ->  | Q30: =IF(J30="","",ROUND(K30-N30,0)) ->  | R30: =IF(J30="","",ROUND(P30+Q30,0)) ->  | S30: =IF(J30="","",IF($H28="Before-2004",Q30,0)) ->  | T30: =IF(J30="","",ROUND(R30-S30,0)) ->  | U30: =IF(J30="","",ROUND(S30+T30,0)) ->  | V30: =IF(J30="","",ROUND(R30-U30,0)) -> 
G31: =IF(AND(A28="n",D28=""),"","Surrender Ar.→") ->  | H31: No | I31: Jan-2025 | J31: =IF(OR($H31="",$H31="no"),"",IF($I31=$I28,ROUND(J28/2,0),IF($I31=$I29,ROUND(J29/2,0),IF($I31=$I30,ROUND(J30/2,0))))) ->  | K31: =IF(OR($H31="",$H31="no"),"",IF($I31=$I28,ROUND(K28/2,0),IF($I31=$I29,ROUND(K29/2,0),IF($I31=$I30,ROUND(K30/2,0))))) ->  | L31: =IF(OR($H31="",$H31="no"),"",ROUND(J31+K31,0)) ->  | M31: =IF(OR($H31="",$H31="no"),"",IF($I31=$I28,ROUND(M28/2,0),IF($I31=$I29,ROUND(M29/2,0),IF($I31=$I30,ROUND(M30/2,0))))) ->  | N31: =IF(OR($H31="",$H31="no"),"",IF($I31=$I28,ROUND(N28/2,0),IF($I31=$I29,ROUND(N29/2,0),IF($I31=$I30,ROUND(N30/2,0))))) ->  | O31: =IF(OR($H31="",$H31="no"),"",ROUND(M31+N31,0)) ->  | P31: =IF(OR($H31="",$H31="no"),"",ROUND(J31-M31,0)) ->  | Q31: =IF(OR($H31="",$H31="no"),"",ROUND(K31-N31,0)) ->  | R31: =IF(OR($H31="",$H31="no"),"",ROUND(P31+Q31,0)) ->  | S31: =IF(OR($H31="",$H31="no"),"",0) ->  | T31: =IF(OR($H31="",$H31="no"),"",0) ->  | U31: =IF(OR($H31="",$H31="no"),"",ROUND(S31+T31,0)) ->  | V31: =IF(OR($H31="",$H31="no"),"",ROUND(R31-U31,0)) -> 
A32: =IF(D32="","n","y") -> n | C32: 7 | I32: =IF(A32="n","","Jan-2025") ->  | K32: =IF(J32="","",ROUND(J32*$K$7,0)) ->  | L32: =IF(J32="","",ROUND(J32+K32,0)) ->  | M32: =IF(J32="","",J32) ->  | N32: =IF(M32="","",ROUND(M32*$N$7,0)) ->  | O32: =IF(M32="","",ROUND(M32+N32,0)) ->  | P32: =IF(J32="","",ROUND(J32-M32,0)) ->  | Q32: =IF(J32="","",ROUND(K32-N32,0)) ->  | R32: =IF(J32="","",ROUND(P32+Q32,0)) ->  | S32: =IF(J32="","",IF($H32="Before-2004",Q32,0)) ->  | T32: =IF(J32="","",ROUND(R32-S32,0)) ->  | U32: =IF(J32="","",ROUND(S32+T32,0)) ->  | V32: =IF(J32="","",ROUND(R32-U32,0)) -> 
I33: =IF(A32="n","","Feb-2025") ->  | J33: =IF($J32="","",$J32) ->  | K33: =IF(J33="","",ROUND(J33*$K$7,0)) ->  | L33: =IF(J33="","",ROUND(J33+K33,0)) ->  | M33: =IF(J33="","",J33) ->  | N33: =IF(M33="","",ROUND(M33*$N$7,0)) ->  | O33: =IF(M33="","",ROUND(M33+N33,0)) ->  | P33: =IF(J33="","",ROUND(J33-M33,0)) ->  | Q33: =IF(J33="","",ROUND(K33-N33,0)) ->  | R33: =IF(J33="","",ROUND(P33+Q33,0)) ->  | S33: =IF(J33="","",IF($H32="Before-2004",Q33,0)) ->  | T33: =IF(J33="","",ROUND(R33-S33,0)) ->  | U33: =IF(J33="","",ROUND(S33+T33,0)) ->  | V33: =IF(J33="","",ROUND(R33-U33,0)) -> 
I34: =IF(A32="n","","Mar-2025") ->  | J34: =IF($J32="","",$J32) ->  | K34: =IF(J34="","",ROUND(J34*$K$7,0)) ->  | L34: =IF(J34="","",ROUND(J34+K34,0)) ->  | M34: =IF(J34="","",J34) ->  | N34: =IF(M34="","",ROUND(M34*$N$7,0)) ->  | O34: =IF(M34="","",ROUND(M34+N34,0)) ->  | P34: =IF(J34="","",ROUND(J34-M34,0)) ->  | Q34: =IF(J34="","",ROUND(K34-N34,0)) ->  | R34: =IF(J34="","",ROUND(P34+Q34,0)) ->  | S34: =IF(J34="","",IF($H32="Before-2004",Q34,0)) ->  | T34: =IF(J34="","",ROUND(R34-S34,0)) ->  | U34: =IF(J34="","",ROUND(S34+T34,0)) ->  | V34: =IF(J34="","",ROUND(R34-U34,0)) -> 
G35: =IF(AND(A32="n",D32=""),"","Surrender Ar.→") ->  | H35: No | I35: Jan-2025 | J35: =IF(OR($H35="",$H35="no"),"",IF($I35=$I32,ROUND(J32/2,0),IF($I35=$I33,ROUND(J33/2,0),IF($I35=$I34,ROUND(J34/2,0))))) ->  | K35: =IF(OR($H35="",$H35="no"),"",IF($I35=$I32,ROUND(K32/2,0),IF($I35=$I33,ROUND(K33/2,0),IF($I35=$I34,ROUND(K34/2,0))))) ->  | L35: =IF(OR($H35="",$H35="no"),"",ROUND(J35+K35,0)) ->  | M35: =IF(OR($H35="",$H35="no"),"",IF($I35=$I32,ROUND(M32/2,0),IF($I35=$I33,ROUND(M33/2,0),IF($I35=$I34,ROUND(M34/2,0))))) ->  | N35: =IF(OR($H35="",$H35="no"),"",IF($I35=$I32,ROUND(N32/2,0),IF($I35=$I33,ROUND(N33/2,0),IF($I35=$I34,ROUND(N34/2,0))))) ->  | O35: =IF(OR($H35="",$H35="no"),"",ROUND(M35+N35,0)) ->  | P35: =IF(OR($H35="",$H35="no"),"",ROUND(J35-M35,0)) ->  | Q35: =IF(OR($H35="",$H35="no"),"",ROUND(K35-N35,0)) ->  | R35: =IF(OR($H35="",$H35="no"),"",ROUND(P35+Q35,0)) ->  | S35: =IF(OR($H35="",$H35="no"),"",0) ->  | T35: =IF(OR($H35="",$H35="no"),"",0) ->  | U35: =IF(OR($H35="",$H35="no"),"",ROUND(S35+T35,0)) ->  | V35: =IF(OR($H35="",$H35="no"),"",ROUND(R35-U35,0)) -> 
A36: =IF(D36="","n","y") -> n | C36: 8 | I36: =IF(A36="n","","Jan-2025") ->  | K36: =IF(J36="","",ROUND(J36*$K$7,0)) ->  | L36: =IF(J36="","",ROUND(J36+K36,0)) ->  | M36: =IF(J36="","",J36) ->  | N36: =IF(M36="","",ROUND(M36*$N$7,0)) ->  | O36: =IF(M36="","",ROUND(M36+N36,0)) ->  | P36: =IF(J36="","",ROUND(J36-M36,0)) ->  | Q36: =IF(J36="","",ROUND(K36-N36,0)) ->  | R36: =IF(J36="","",ROUND(P36+Q36,0)) ->  | S36: =IF(J36="","",IF($H36="Before-2004",Q36,0)) ->  | T36: =IF(J36="","",ROUND(R36-S36,0)) ->  | U36: =IF(J36="","",ROUND(S36+T36,0)) ->  | V36: =IF(J36="","",ROUND(R36-U36,0)) -> 
I37: =IF(A36="n","","Feb-2025") ->  | J37: =IF($J36="","",$J36) ->  | K37: =IF(J37="","",ROUND(J37*$K$7,0)) ->  | L37: =IF(J37="","",ROUND(J37+K37,0)) ->  | M37: =IF(J37="","",J37) ->  | N37: =IF(M37="","",ROUND(M37*$N$7,0)) ->  | O37: =IF(M37="","",ROUND(M37+N37,0)) ->  | P37: =IF(J37="","",ROUND(J37-M37,0)) ->  | Q37: =IF(J37="","",ROUND(K37-N37,0)) ->  | R37: =IF(J37="","",ROUND(P37+Q37,0)) ->  | S37: =IF(J37="","",IF($H36="Before-2004",Q37,0)) ->  | T37: =IF(J37="","",ROUND(R37-S37,0)) ->  | U37: =IF(J37="","",ROUND(S37+T37,0)) ->  | V37: =IF(J37="","",ROUND(R37-U37,0)) -> 
I38: =IF(A36="n","","Mar-2025") ->  | J38: =IF($J36="","",$J36) ->  | K38: =IF(J38="","",ROUND(J38*$K$7,0)) ->  | L38: =IF(J38="","",ROUND(J38+K38,0)) ->  | M38: =IF(J38="","",J38) ->  | N38: =IF(M38="","",ROUND(M38*$N$7,0)) ->  | O38: =IF(M38="","",ROUND(M38+N38,0)) ->  | P38: =IF(J38="","",ROUND(J38-M38,0)) ->  | Q38: =IF(J38="","",ROUND(K38-N38,0)) ->  | R38: =IF(J38="","",ROUND(P38+Q38,0)) ->  | S38: =IF(J38="","",IF($H36="Before-2004",Q38,0)) ->  | T38: =IF(J38="","",ROUND(R38-S38,0)) ->  | U38: =IF(J38="","",ROUND(S38+T38,0)) ->  | V38: =IF(J38="","",ROUND(R38-U38,0)) -> 
G39: =IF(AND(A36="n",D36=""),"","Surrender Ar.→") ->  | H39: No | I39: Jan-2025 | J39: =IF(OR($H39="",$H39="no"),"",IF($I39=$I36,ROUND(J36/2,0),IF($I39=$I37,ROUND(J37/2,0),IF($I39=$I38,ROUND(J38/2,0))))) ->  | K39: =IF(OR($H39="",$H39="no"),"",IF($I39=$I36,ROUND(K36/2,0),IF($I39=$I37,ROUND(K37/2,0),IF($I39=$I38,ROUND(K38/2,0))))) ->  | L39: =IF(OR($H39="",$H39="no"),"",ROUND(J39+K39,0)) ->  | M39: =IF(OR($H39="",$H39="no"),"",IF($I39=$I36,ROUND(M36/2,0),IF($I39=$I37,ROUND(M37/2,0),IF($I39=$I38,ROUND(M38/2,0))))) ->  | N39: =IF(OR($H39="",$H39="no"),"",IF($I39=$I36,ROUND(N36/2,0),IF($I39=$I37,ROUND(N37/2,0),IF($I39=$I38,ROUND(N38/2,0))))) ->  | O39: =IF(OR($H39="",$H39="no"),"",ROUND(M39+N39,0)) ->  | P39: =IF(OR($H39="",$H39="no"),"",ROUND(J39-M39,0)) ->  | Q39: =IF(OR($H39="",$H39="no"),"",ROUND(K39-N39,0)) ->  | R39: =IF(OR($H39="",$H39="no"),"",ROUND(P39+Q39,0)) ->  | S39: =IF(OR($H39="",$H39="no"),"",0) ->  | T39: =IF(OR($H39="",$H39="no"),"",0) ->  | U39: =IF(OR($H39="",$H39="no"),"",ROUND(S39+T39,0)) ->  | V39: =IF(OR($H39="",$H39="no"),"",ROUND(R39-U39,0)) -> 
A40: =IF(D40="","n","y") -> n | C40: 9 | I40: =IF(A40="n","","Jan-2025") ->  | K40: =IF(J40="","",ROUND(J40*$K$7,0)) ->  | L40: =IF(J40="","",ROUND(J40+K40,0)) ->  | M40: =IF(J40="","",J40) ->  | N40: =IF(M40="","",ROUND(M40*$N$7,0)) ->  | O40: =IF(M40="","",ROUND(M40+N40,0)) ->  | P40: =IF(J40="","",ROUND(J40-M40,0)) ->  | Q40: =IF(J40="","",ROUND(K40-N40,0)) ->  | R40: =IF(J40="","",ROUND(P40+Q40,0)) ->  | S40: =IF(J40="","",IF($H40="Before-2004",Q40,0)) ->  | T40: =IF(J40="","",ROUND(R40-S40,0)) ->  | U40: =IF(J40="","",ROUND(S40+T40,0)) ->  | V40: =IF(J40="","",ROUND(R40-U40,0)) -> 
I41: =IF(A40="n","","Feb-2025") ->  | J41: =IF($J40="","",$J40) ->  | K41: =IF(J41="","",ROUND(J41*$K$7,0)) ->  | L41: =IF(J41="","",ROUND(J41+K41,0)) ->  | M41: =IF(J41="","",J41) ->  | N41: =IF(M41="","",ROUND(M41*$N$7,0)) ->  | O41: =IF(M41="","",ROUND(M41+N41,0)) ->  | P41: =IF(J41="","",ROUND(J41-M41,0)) ->  | Q41: =IF(J41="","",ROUND(K41-N41,0)) ->  | R41: =IF(J41="","",ROUND(P41+Q41,0)) ->  | S41: =IF(J41="","",IF($H40="Before-2004",Q41,0)) ->  | T41: =IF(J41="","",ROUND(R41-S41,0)) ->  | U41: =IF(J41="","",ROUND(S41+T41,0)) ->  | V41: =IF(J41="","",ROUND(R41-U41,0)) -> 
I42: =IF(A40="n","","Mar-2025") ->  | J42: =IF($J40="","",$J40) ->  | K42: =IF(J42="","",ROUND(J42*$K$7,0)) ->  | L42: =IF(J42="","",ROUND(J42+K42,0)) ->  | M42: =IF(J42="","",J42) ->  | N42: =IF(M42="","",ROUND(M42*$N$7,0)) ->  | O42: =IF(M42="","",ROUND(M42+N42,0)) ->  | P42: =IF(J42="","",ROUND(J42-M42,0)) ->  | Q42: =IF(J42="","",ROUND(K42-N42,0)) ->  | R42: =IF(J42="","",ROUND(P42+Q42,0)) ->  | S42: =IF(J42="","",IF($H40="Before-2004",Q42,0)) ->  | T42: =IF(J42="","",ROUND(R42-S42,0)) ->  | U42: =IF(J42="","",ROUND(S42+T42,0)) ->  | V42: =IF(J42="","",ROUND(R42-U42,0)) -> 
G43: =IF(AND(A40="n",D40=""),"","Surrender Ar.→") ->  | H43: No | I43: Jan-2025 | J43: =IF(OR($H43="",$H43="no"),"",IF($I43=$I40,ROUND(J40/2,0),IF($I43=$I41,ROUND(J41/2,0),IF($I43=$I42,ROUND(J42/2,0))))) ->  | K43: =IF(OR($H43="",$H43="no"),"",IF($I43=$I40,ROUND(K40/2,0),IF($I43=$I41,ROUND(K41/2,0),IF($I43=$I42,ROUND(K42/2,0))))) ->  | L43: =IF(OR($H43="",$H43="no"),"",ROUND(J43+K43,0)) ->  | M43: =IF(OR($H43="",$H43="no"),"",IF($I43=$I40,ROUND(M40/2,0),IF($I43=$I41,ROUND(M41/2,0),IF($I43=$I42,ROUND(M42/2,0))))) ->  | N43: =IF(OR($H43="",$H43="no"),"",IF($I43=$I40,ROUND(N40/2,0),IF($I43=$I41,ROUND(N41/2,0),IF($I43=$I42,ROUND(N42/2,0))))) ->  | O43: =IF(OR($H43="",$H43="no"),"",ROUND(M43+N43,0)) ->  | P43: =IF(OR($H43="",$H43="no"),"",ROUND(J43-M43,0)) ->  | Q43: =IF(OR($H43="",$H43="no"),"",ROUND(K43-N43,0)) ->  | R43: =IF(OR($H43="",$H43="no"),"",ROUND(P43+Q43,0)) ->  | S43: =IF(OR($H43="",$H43="no"),"",0) ->  | T43: =IF(OR($H43="",$H43="no"),"",0) ->  | U43: =IF(OR($H43="",$H43="no"),"",ROUND(S43+T43,0)) ->  | V43: =IF(OR($H43="",$H43="no"),"",ROUND(R43-U43,0)) -> 
A44: =IF(D44="","n","y") -> n | C44: 10 | I44: =IF(A44="n","","Jan-2025") ->  | K44: =IF(J44="","",ROUND(J44*$K$7,0)) ->  | L44: =IF(J44="","",ROUND(J44+K44,0)) ->  | M44: =IF(J44="","",J44) ->  | N44: =IF(M44="","",ROUND(M44*$N$7,0)) ->  | O44: =IF(M44="","",ROUND(M44+N44,0)) ->  | P44: =IF(J44="","",ROUND(J44-M44,0)) ->  | Q44: =IF(J44="","",ROUND(K44-N44,0)) ->  | R44: =IF(J44="","",ROUND(P44+Q44,0)) ->  | S44: =IF(J44="","",IF($H44="Before-2004",Q44,0)) ->  | T44: =IF(J44="","",ROUND(R44-S44,0)) ->  | U44: =IF(J44="","",ROUND(S44+T44,0)) ->  | V44: =IF(J44="","",ROUND(R44-U44,0)) -> 
I45: =IF(A44="n","","Feb-2025") ->  | J45: =IF($J44="","",$J44) ->  | K45: =IF(J45="","",ROUND(J45*$K$7,0)) ->  | L45: =IF(J45="","",ROUND(J45+K45,0)) ->  | M45: =IF(J45="","",J45) ->  | N45: =IF(M45="","",ROUND(M45*$N$7,0)) ->  | O45: =IF(M45="","",ROUND(M45+N45,0)) ->  | P45: =IF(J45="","",ROUND(J45-M45,0)) ->  | Q45: =IF(J45="","",ROUND(K45-N45,0)) ->  | R45: =IF(J45="","",ROUND(P45+Q45,0)) ->  | S45: =IF(J45="","",IF($H44="Before-2004",Q45,0)) ->  | T45: =IF(J45="","",ROUND(R45-S45,0)) ->  | U45: =IF(J45="","",ROUND(S45+T45,0)) ->  | V45: =IF(J45="","",ROUND(R45-U45,0)) -> 
I46: =IF(A44="n","","Mar-2025") ->  | J46: =IF($J44="","",$J44) ->  | K46: =IF(J46="","",ROUND(J46*$K$7,0)) ->  | L46: =IF(J46="","",ROUND(J46+K46,0)) ->  | M46: =IF(J46="","",J46) ->  | N46: =IF(M46="","",ROUND(M46*$N$7,0)) ->  | O46: =IF(M46="","",ROUND(M46+N46,0)) ->  | P46: =IF(J46="","",ROUND(J46-M46,0)) ->  | Q46: =IF(J46="","",ROUND(K46-N46,0)) ->  | R46: =IF(J46="","",ROUND(P46+Q46,0)) ->  | S46: =IF(J46="","",IF($H44="Before-2004",Q46,0)) ->  | T46: =IF(J46="","",ROUND(R46-S46,0)) ->  | U46: =IF(J46="","",ROUND(S46+T46,0)) ->  | V46: =IF(J46="","",ROUND(R46-U46,0)) -> 
G47: =IF(AND(A44="n",D44=""),"","Surrender Ar.→") ->  | H47: No | I47: Jan-2025 | J47: =IF(OR($H47="",$H47="no"),"",IF($I47=$I44,ROUND(J44/2,0),IF($I47=$I45,ROUND(J45/2,0),IF($I47=$I46,ROUND(J46/2,0))))) ->  | K47: =IF(OR($H47="",$H47="no"),"",IF($I47=$I44,ROUND(K44/2,0),IF($I47=$I45,ROUND(K45/2,0),IF($I47=$I46,ROUND(K46/2,0))))) ->  | L47: =IF(OR($H47="",$H47="no"),"",ROUND(J47+K47,0)) ->  | M47: =IF(OR($H47="",$H47="no"),"",IF($I47=$I44,ROUND(M44/2,0),IF($I47=$I45,ROUND(M45/2,0),IF($I47=$I46,ROUND(M46/2,0))))) ->  | N47: =IF(OR($H47="",$H47="no"),"",IF($I47=$I44,ROUND(N44/2,0),IF($I47=$I45,ROUND(N45/2,0),IF($I47=$I46,ROUND(N46/2,0))))) ->  | O47: =IF(OR($H47="",$H47="no"),"",ROUND(M47+N47,0)) ->  | P47: =IF(OR($H47="",$H47="no"),"",ROUND(J47-M47,0)) ->  | Q47: =IF(OR($H47="",$H47="no"),"",ROUND(K47-N47,0)) ->  | R47: =IF(OR($H47="",$H47="no"),"",ROUND(P47+Q47,0)) ->  | S47: =IF(OR($H47="",$H47="no"),"",0) ->  | T47: =IF(OR($H47="",$H47="no"),"",0) ->  | U47: =IF(OR($H47="",$H47="no"),"",ROUND(S47+T47,0)) ->  | V47: =IF(OR($H47="",$H47="no"),"",ROUND(R47-U47,0)) -> 
A48: =IF(D48="","n","y") -> n | C48: 11 | I48: =IF(A48="n","","Jan-2025") ->  | K48: =IF(J48="","",ROUND(J48*$K$7,0)) ->  | L48: =IF(J48="","",ROUND(J48+K48,0)) ->  | M48: =IF(J48="","",J48) ->  | N48: =IF(M48="","",ROUND(M48*$N$7,0)) ->  | O48: =IF(M48="","",ROUND(M48+N48,0)) ->  | P48: =IF(J48="","",ROUND(J48-M48,0)) ->  | Q48: =IF(J48="","",ROUND(K48-N48,0)) ->  | R48: =IF(J48="","",ROUND(P48+Q48,0)) ->  | S48: =IF(J48="","",IF($H48="Before-2004",Q48,0)) ->  | T48: =IF(J48="","",ROUND(R48-S48,0)) ->  | U48: =IF(J48="","",ROUND(S48+T48,0)) ->  | V48: =IF(J48="","",ROUND(R48-U48,0)) -> 
I49: =IF(A48="n","","Feb-2025") ->  | J49: =IF($J48="","",$J48) ->  | K49: =IF(J49="","",ROUND(J49*$K$7,0)) ->  | L49: =IF(J49="","",ROUND(J49+K49,0)) ->  | M49: =IF(J49="","",J49) ->  | N49: =IF(M49="","",ROUND(M49*$N$7,0)) ->  | O49: =IF(M49="","",ROUND(M49+N49,0)) ->  | P49: =IF(J49="","",ROUND(J49-M49,0)) ->  | Q49: =IF(J49="","",ROUND(K49-N49,0)) ->  | R49: =IF(J49="","",ROUND(P49+Q49,0)) ->  | S49: =IF(J49="","",IF($H48="Before-2004",Q49,0)) ->  | T49: =IF(J49="","",ROUND(R49-S49,0)) ->  | U49: =IF(J49="","",ROUND(S49+T49,0)) ->  | V49: =IF(J49="","",ROUND(R49-U49,0)) -> 
I50: =IF(A48="n","","Mar-2025") ->  | J50: =IF($J48="","",$J48) ->  | K50: =IF(J50="","",ROUND(J50*$K$7,0)) ->  | L50: =IF(J50="","",ROUND(J50+K50,0)) ->  | M50: =IF(J50="","",J50) ->  | N50: =IF(M50="","",ROUND(M50*$N$7,0)) ->  | O50: =IF(M50="","",ROUND(M50+N50,0)) ->  | P50: =IF(J50="","",ROUND(J50-M50,0)) ->  | Q50: =IF(J50="","",ROUND(K50-N50,0)) ->  | R50: =IF(J50="","",ROUND(P50+Q50,0)) ->  | S50: =IF(J50="","",IF($H48="Before-2004",Q50,0)) ->  | T50: =IF(J50="","",ROUND(R50-S50,0)) ->  | U50: =IF(J50="","",ROUND(S50+T50,0)) ->  | V50: =IF(J50="","",ROUND(R50-U50,0)) -> 
G51: =IF(AND(A48="n",D48=""),"","Surrender Ar.→") ->  | H51: No | I51: Jan-2025 | J51: =IF(OR($H51="",$H51="no"),"",IF($I51=$I48,ROUND(J48/2,0),IF($I51=$I49,ROUND(J49/2,0),IF($I51=$I50,ROUND(J50/2,0))))) ->  | K51: =IF(OR($H51="",$H51="no"),"",IF($I51=$I48,ROUND(K48/2,0),IF($I51=$I49,ROUND(K49/2,0),IF($I51=$I50,ROUND(K50/2,0))))) ->  | L51: =IF(OR($H51="",$H51="no"),"",ROUND(J51+K51,0)) ->  | M51: =IF(OR($H51="",$H51="no"),"",IF($I51=$I48,ROUND(M48/2,0),IF($I51=$I49,ROUND(M49/2,0),IF($I51=$I50,ROUND(M50/2,0))))) ->  | N51: =IF(OR($H51="",$H51="no"),"",IF($I51=$I48,ROUND(N48/2,0),IF($I51=$I49,ROUND(N49/2,0),IF($I51=$I50,ROUND(N50/2,0))))) ->  | O51: =IF(OR($H51="",$H51="no"),"",ROUND(M51+N51,0)) ->  | P51: =IF(OR($H51="",$H51="no"),"",ROUND(J51-M51,0)) ->  | Q51: =IF(OR($H51="",$H51="no"),"",ROUND(K51-N51,0)) ->  | R51: =IF(OR($H51="",$H51="no"),"",ROUND(P51+Q51,0)) ->  | S51: =IF(OR($H51="",$H51="no"),"",0) ->  | T51: =IF(OR($H51="",$H51="no"),"",0) ->  | U51: =IF(OR($H51="",$H51="no"),"",ROUND(S51+T51,0)) ->  | V51: =IF(OR($H51="",$H51="no"),"",ROUND(R51-U51,0)) -> 
A52: =IF(D52="","n","y") -> n | C52: 12 | I52: =IF(A52="n","","Jan-2025") ->  | K52: =IF(J52="","",ROUND(J52*$K$7,0)) ->  | L52: =IF(J52="","",ROUND(J52+K52,0)) ->  | M52: =IF(J52="","",J52) ->  | N52: =IF(M52="","",ROUND(M52*$N$7,0)) ->  | O52: =IF(M52="","",ROUND(M52+N52,0)) ->  | P52: =IF(J52="","",ROUND(J52-M52,0)) ->  | Q52: =IF(J52="","",ROUND(K52-N52,0)) ->  | R52: =IF(J52="","",ROUND(P52+Q52,0)) ->  | S52: =IF(J52="","",IF($H52="Before-2004",Q52,0)) ->  | T52: =IF(J52="","",ROUND(R52-S52,0)) ->  | U52: =IF(J52="","",ROUND(S52+T52,0)) ->  | V52: =IF(J52="","",ROUND(R52-U52,0)) -> 
I53: =IF(A52="n","","Feb-2025") ->  | J53: =IF($J52="","",$J52) ->  | K53: =IF(J53="","",ROUND(J53*$K$7,0)) ->  | L53: =IF(J53="","",ROUND(J53+K53,0)) ->  | M53: =IF(J53="","",J53) ->  | N53: =IF(M53="","",ROUND(M53*$N$7,0)) ->  | O53: =IF(M53="","",ROUND(M53+N53,0)) ->  | P53: =IF(J53="","",ROUND(J53-M53,0)) ->  | Q53: =IF(J53="","",ROUND(K53-N53,0)) ->  | R53: =IF(J53="","",ROUND(P53+Q53,0)) ->  | S53: =IF(J53="","",IF($H52="Before-2004",Q53,0)) ->  | T53: =IF(J53="","",ROUND(R53-S53,0)) ->  | U53: =IF(J53="","",ROUND(S53+T53,0)) ->  | V53: =IF(J53="","",ROUND(R53-U53,0)) -> 
I54: =IF(A52="n","","Mar-2025") ->  | J54: =IF($J52="","",$J52) ->  | K54: =IF(J54="","",ROUND(J54*$K$7,0)) ->  | L54: =IF(J54="","",ROUND(J54+K54,0)) ->  | M54: =IF(J54="","",J54) ->  | N54: =IF(M54="","",ROUND(M54*$N$7,0)) ->  | O54: =IF(M54="","",ROUND(M54+N54,0)) ->  | P54: =IF(J54="","",ROUND(J54-M54,0)) ->  | Q54: =IF(J54="","",ROUND(K54-N54,0)) ->  | R54: =IF(J54="","",ROUND(P54+Q54,0)) ->  | S54: =IF(J54="","",IF($H52="Before-2004",Q54,0)) ->  | T54: =IF(J54="","",ROUND(R54-S54,0)) ->  | U54: =IF(J54="","",ROUND(S54+T54,0)) ->  | V54: =IF(J54="","",ROUND(R54-U54,0)) -> 
G55: =IF(AND(A52="n",D52=""),"","Surrender Ar.→") ->  | H55: No | I55: Jan-2025 | J55: =IF(OR($H55="",$H55="no"),"",IF($I55=$I52,ROUND(J52/2,0),IF($I55=$I53,ROUND(J53/2,0),IF($I55=$I54,ROUND(J54/2,0))))) ->  | K55: =IF(OR($H55="",$H55="no"),"",IF($I55=$I52,ROUND(K52/2,0),IF($I55=$I53,ROUND(K53/2,0),IF($I55=$I54,ROUND(K54/2,0))))) ->  | L55: =IF(OR($H55="",$H55="no"),"",ROUND(J55+K55,0)) ->  | M55: =IF(OR($H55="",$H55="no"),"",IF($I55=$I52,ROUND(M52/2,0),IF($I55=$I53,ROUND(M53/2,0),IF($I55=$I54,ROUND(M54/2,0))))) ->  | N55: =IF(OR($H55="",$H55="no"),"",IF($I55=$I52,ROUND(N52/2,0),IF($I55=$I53,ROUND(N53/2,0),IF($I55=$I54,ROUND(N54/2,0))))) ->  | O55: =IF(OR($H55="",$H55="no"),"",ROUND(M55+N55,0)) ->  | P55: =IF(OR($H55="",$H55="no"),"",ROUND(J55-M55,0)) ->  | Q55: =IF(OR($H55="",$H55="no"),"",ROUND(K55-N55,0)) ->  | R55: =IF(OR($H55="",$H55="no"),"",ROUND(P55+Q55,0)) ->  | S55: =IF(OR($H55="",$H55="no"),"",0) ->  | T55: =IF(OR($H55="",$H55="no"),"",0) ->  | U55: =IF(OR($H55="",$H55="no"),"",ROUND(S55+T55,0)) ->  | V55: =IF(OR($H55="",$H55="no"),"",ROUND(R55-U55,0)) -> 
A56: =IF(D56="","n","y") -> n | C56: 13 | I56: =IF(A56="n","","Jan-2025") ->  | K56: =IF(J56="","",ROUND(J56*$K$7,0)) ->  | L56: =IF(J56="","",ROUND(J56+K56,0)) ->  | M56: =IF(J56="","",J56) ->  | N56: =IF(M56="","",ROUND(M56*$N$7,0)) ->  | O56: =IF(M56="","",ROUND(M56+N56,0)) ->  | P56: =IF(J56="","",ROUND(J56-M56,0)) ->  | Q56: =IF(J56="","",ROUND(K56-N56,0)) ->  | R56: =IF(J56="","",ROUND(P56+Q56,0)) ->  | S56: =IF(J56="","",IF($H56="Before-2004",Q56,0)) ->  | T56: =IF(J56="","",ROUND(R56-S56,0)) ->  | U56: =IF(J56="","",ROUND(S56+T56,0)) ->  | V56: =IF(J56="","",ROUND(R56-U56,0)) -> 
I57: =IF(A56="n","","Feb-2025") ->  | J57: =IF($J56="","",$J56) ->  | K57: =IF(J57="","",ROUND(J57*$K$7,0)) ->  | L57: =IF(J57="","",ROUND(J57+K57,0)) ->  | M57: =IF(J57="","",J57) ->  | N57: =IF(M57="","",ROUND(M57*$N$7,0)) ->  | O57: =IF(M57="","",ROUND(M57+N57,0)) ->  | P57: =IF(J57="","",ROUND(J57-M57,0)) ->  | Q57: =IF(J57="","",ROUND(K57-N57,0)) ->  | R57: =IF(J57="","",ROUND(P57+Q57,0)) ->  | S57: =IF(J57="","",IF($H56="Before-2004",Q57,0)) ->  | T57: =IF(J57="","",ROUND(R57-S57,0)) ->  | U57: =IF(J57="","",ROUND(S57+T57,0)) ->  | V57: =IF(J57="","",ROUND(R57-U57,0)) -> 
I58: =IF(A56="n","","Mar-2025") ->  | J58: =IF($J56="","",$J56) ->  | K58: =IF(J58="","",ROUND(J58*$K$7,0)) ->  | L58: =IF(J58="","",ROUND(J58+K58,0)) ->  | M58: =IF(J58="","",J58) ->  | N58: =IF(M58="","",ROUND(M58*$N$7,0)) ->  | O58: =IF(M58="","",ROUND(M58+N58,0)) ->  | P58: =IF(J58="","",ROUND(J58-M58,0)) ->  | Q58: =IF(J58="","",ROUND(K58-N58,0)) ->  | R58: =IF(J58="","",ROUND(P58+Q58,0)) ->  | S58: =IF(J58="","",IF($H56="Before-2004",Q58,0)) ->  | T58: =IF(J58="","",ROUND(R58-S58,0)) ->  | U58: =IF(J58="","",ROUND(S58+T58,0)) ->  | V58: =IF(J58="","",ROUND(R58-U58,0)) -> 
G59: =IF(AND(A56="n",D56=""),"","Surrender Ar.→") ->  | H59: No | I59: Jan-2025 | J59: =IF(OR($H59="",$H59="no"),"",IF($I59=$I56,ROUND(J56/2,0),IF($I59=$I57,ROUND(J57/2,0),IF($I59=$I58,ROUND(J58/2,0))))) ->  | K59: =IF(OR($H59="",$H59="no"),"",IF($I59=$I56,ROUND(K56/2,0),IF($I59=$I57,ROUND(K57/2,0),IF($I59=$I58,ROUND(K58/2,0))))) ->  | L59: =IF(OR($H59="",$H59="no"),"",ROUND(J59+K59,0)) ->  | M59: =IF(OR($H59="",$H59="no"),"",IF($I59=$I56,ROUND(M56/2,0),IF($I59=$I57,ROUND(M57/2,0),IF($I59=$I58,ROUND(M58/2,0))))) ->  | N59: =IF(OR($H59="",$H59="no"),"",IF($I59=$I56,ROUND(N56/2,0),IF($I59=$I57,ROUND(N57/2,0),IF($I59=$I58,ROUND(N58/2,0))))) ->  | O59: =IF(OR($H59="",$H59="no"),"",ROUND(M59+N59,0)) ->  | P59: =IF(OR($H59="",$H59="no"),"",ROUND(J59-M59,0)) ->  | Q59: =IF(OR($H59="",$H59="no"),"",ROUND(K59-N59,0)) ->  | R59: =IF(OR($H59="",$H59="no"),"",ROUND(P59+Q59,0)) ->  | S59: =IF(OR($H59="",$H59="no"),"",0) ->  | T59: =IF(OR($H59="",$H59="no"),"",0) ->  | U59: =IF(OR($H59="",$H59="no"),"",ROUND(S59+T59,0)) ->  | V59: =IF(OR($H59="",$H59="no"),"",ROUND(R59-U59,0)) -> 
A60: =IF(D60="","n","y") -> n | C60: 14 | I60: =IF(A60="n","","Jan-2025") ->  | K60: =IF(J60="","",ROUND(J60*$K$7,0)) ->  | L60: =IF(J60="","",ROUND(J60+K60,0)) ->  | M60: =IF(J60="","",J60) ->  | N60: =IF(M60="","",ROUND(M60*$N$7,0)) ->  | O60: =IF(M60="","",ROUND(M60+N60,0)) ->  | P60: =IF(J60="","",ROUND(J60-M60,0)) ->  | Q60: =IF(J60="","",ROUND(K60-N60,0)) ->  | R60: =IF(J60="","",ROUND(P60+Q60,0)) ->  | S60: =IF(J60="","",IF($H60="Before-2004",Q60,0)) ->  | T60: =IF(J60="","",ROUND(R60-S60,0)) ->  | U60: =IF(J60="","",ROUND(S60+T60,0)) ->  | V60: =IF(J60="","",ROUND(R60-U60,0)) -> 
I61: =IF(A60="n","","Feb-2025") ->  | J61: =IF($J60="","",$J60) ->  | K61: =IF(J61="","",ROUND(J61*$K$7,0)) ->  | L61: =IF(J61="","",ROUND(J61+K61,0)) ->  | M61: =IF(J61="","",J61) ->  | N61: =IF(M61="","",ROUND(M61*$N$7,0)) ->  | O61: =IF(M61="","",ROUND(M61+N61,0)) ->  | P61: =IF(J61="","",ROUND(J61-M61,0)) ->  | Q61: =IF(J61="","",ROUND(K61-N61,0)) ->  | R61: =IF(J61="","",ROUND(P61+Q61,0)) ->  | S61: =IF(J61="","",IF($H60="Before-2004",Q61,0)) ->  | T61: =IF(J61="","",ROUND(R61-S61,0)) ->  | U61: =IF(J61="","",ROUND(S61+T61,0)) ->  | V61: =IF(J61="","",ROUND(R61-U61,0)) -> 
I62: =IF(A60="n","","Mar-2025") ->  | J62: =IF($J60="","",$J60) ->  | K62: =IF(J62="","",ROUND(J62*$K$7,0)) ->  | L62: =IF(J62="","",ROUND(J62+K62,0)) ->  | M62: =IF(J62="","",J62) ->  | N62: =IF(M62="","",ROUND(M62*$N$7,0)) ->  | O62: =IF(M62="","",ROUND(M62+N62,0)) ->  | P62: =IF(J62="","",ROUND(J62-M62,0)) ->  | Q62: =IF(J62="","",ROUND(K62-N62,0)) ->  | R62: =IF(J62="","",ROUND(P62+Q62,0)) ->  | S62: =IF(J62="","",IF($H60="Before-2004",Q62,0)) ->  | T62: =IF(J62="","",ROUND(R62-S62,0)) ->  | U62: =IF(J62="","",ROUND(S62+T62,0)) ->  | V62: =IF(J62="","",ROUND(R62-U62,0)) -> 
G63: =IF(AND(A60="n",D60=""),"","Surrender Ar.→") ->  | H63: No | I63: Jan-2025 | J63: =IF(OR($H63="",$H63="no"),"",IF($I63=$I60,ROUND(J60/2,0),IF($I63=$I61,ROUND(J61/2,0),IF($I63=$I62,ROUND(J62/2,0))))) ->  | K63: =IF(OR($H63="",$H63="no"),"",IF($I63=$I60,ROUND(K60/2,0),IF($I63=$I61,ROUND(K61/2,0),IF($I63=$I62,ROUND(K62/2,0))))) ->  | L63: =IF(OR($H63="",$H63="no"),"",ROUND(J63+K63,0)) ->  | M63: =IF(OR($H63="",$H63="no"),"",IF($I63=$I60,ROUND(M60/2,0),IF($I63=$I61,ROUND(M61/2,0),IF($I63=$I62,ROUND(M62/2,0))))) ->  | N63: =IF(OR($H63="",$H63="no"),"",IF($I63=$I60,ROUND(N60/2,0),IF($I63=$I61,ROUND(N61/2,0),IF($I63=$I62,ROUND(N62/2,0))))) ->  | O63: =IF(OR($H63="",$H63="no"),"",ROUND(M63+N63,0)) ->  | P63: =IF(OR($H63="",$H63="no"),"",ROUND(J63-M63,0)) ->  | Q63: =IF(OR($H63="",$H63="no"),"",ROUND(K63-N63,0)) ->  | R63: =IF(OR($H63="",$H63="no"),"",ROUND(P63+Q63,0)) ->  | S63: =IF(OR($H63="",$H63="no"),"",0) ->  | T63: =IF(OR($H63="",$H63="no"),"",0) ->  | U63: =IF(OR($H63="",$H63="no"),"",ROUND(S63+T63,0)) ->  | V63: =IF(OR($H63="",$H63="no"),"",ROUND(R63-U63,0)) -> 
A64: =IF(D64="","n","y") -> n | C64: 15 | I64: =IF(A64="n","","Jan-2025") ->  | K64: =IF(J64="","",ROUND(J64*$K$7,0)) ->  | L64: =IF(J64="","",ROUND(J64+K64,0)) ->  | M64: =IF(J64="","",J64) ->  | N64: =IF(M64="","",ROUND(M64*$N$7,0)) ->  | O64: =IF(M64="","",ROUND(M64+N64,0)) ->  | P64: =IF(J64="","",ROUND(J64-M64,0)) ->  | Q64: =IF(J64="","",ROUND(K64-N64,0)) ->  | R64: =IF(J64="","",ROUND(P64+Q64,0)) ->  | S64: =IF(J64="","",IF($H64="Before-2004",Q64,0)) ->  | T64: =IF(J64="","",ROUND(R64-S64,0)) ->  | U64: =IF(J64="","",ROUND(S64+T64,0)) ->  | V64: =IF(J64="","",ROUND(R64-U64,0)) -> 
I65: =IF(A64="n","","Feb-2025") ->  | J65: =IF($J64="","",$J64) ->  | K65: =IF(J65="","",ROUND(J65*$K$7,0)) ->  | L65: =IF(J65="","",ROUND(J65+K65,0)) ->  | M65: =IF(J65="","",J65) ->  | N65: =IF(M65="","",ROUND(M65*$N$7,0)) ->  | O65: =IF(M65="","",ROUND(M65+N65,0)) ->  | P65: =IF(J65="","",ROUND(J65-M65,0)) ->  | Q65: =IF(J65="","",ROUND(K65-N65,0)) ->  | R65: =IF(J65="","",ROUND(P65+Q65,0)) ->  | S65: =IF(J65="","",IF($H64="Before-2004",Q65,0)) ->  | T65: =IF(J65="","",ROUND(R65-S65,0)) ->  | U65: =IF(J65="","",ROUND(S65+T65,0)) ->  | V65: =IF(J65="","",ROUND(R65-U65,0)) -> 
I66: =IF(A64="n","","Mar-2025") ->  | J66: =IF($J64="","",$J64) ->  | K66: =IF(J66="","",ROUND(J66*$K$7,0)) ->  | L66: =IF(J66="","",ROUND(J66+K66,0)) ->  | M66: =IF(J66="","",J66) ->  | N66: =IF(M66="","",ROUND(M66*$N$7,0)) ->  | O66: =IF(M66="","",ROUND(M66+N66,0)) ->  | P66: =IF(J66="","",ROUND(J66-M66,0)) ->  | Q66: =IF(J66="","",ROUND(K66-N66,0)) ->  | R66: =IF(J66="","",ROUND(P66+Q66,0)) ->  | S66: =IF(J66="","",IF($H64="Before-2004",Q66,0)) ->  | T66: =IF(J66="","",ROUND(R66-S66,0)) ->  | U66: =IF(J66="","",ROUND(S66+T66,0)) ->  | V66: =IF(J66="","",ROUND(R66-U66,0)) -> 
G67: =IF(AND(A64="n",D64=""),"","Surrender Ar.→") ->  | H67: No | I67: Jan-2025 | J67: =IF(OR($H67="",$H67="no"),"",IF($I67=$I64,ROUND(J64/2,0),IF($I67=$I65,ROUND(J65/2,0),IF($I67=$I66,ROUND(J66/2,0))))) ->  | K67: =IF(OR($H67="",$H67="no"),"",IF($I67=$I64,ROUND(K64/2,0),IF($I67=$I65,ROUND(K65/2,0),IF($I67=$I66,ROUND(K66/2,0))))) ->  | L67: =IF(OR($H67="",$H67="no"),"",ROUND(J67+K67,0)) ->  | M67: =IF(OR($H67="",$H67="no"),"",IF($I67=$I64,ROUND(M64/2,0),IF($I67=$I65,ROUND(M65/2,0),IF($I67=$I66,ROUND(M66/2,0))))) ->  | N67: =IF(OR($H67="",$H67="no"),"",IF($I67=$I64,ROUND(N64/2,0),IF($I67=$I65,ROUND(N65/2,0),IF($I67=$I66,ROUND(N66/2,0))))) ->  | O67: =IF(OR($H67="",$H67="no"),"",ROUND(M67+N67,0)) ->  | P67: =IF(OR($H67="",$H67="no"),"",ROUND(J67-M67,0)) ->  | Q67: =IF(OR($H67="",$H67="no"),"",ROUND(K67-N67,0)) ->  | R67: =IF(OR($H67="",$H67="no"),"",ROUND(P67+Q67,0)) ->  | S67: =IF(OR($H67="",$H67="no"),"",0) ->  | T67: =IF(OR($H67="",$H67="no"),"",0) ->  | U67: =IF(OR($H67="",$H67="no"),"",ROUND(S67+T67,0)) ->  | V67: =IF(OR($H67="",$H67="no"),"",ROUND(R67-U67,0)) -> 
A68: =IF(D68="","n","y") -> n | C68: 16 | I68: =IF(A68="n","","Jan-2025") ->  | K68: =IF(J68="","",ROUND(J68*$K$7,0)) ->  | L68: =IF(J68="","",ROUND(J68+K68,0)) ->  | M68: =IF(J68="","",J68) ->  | N68: =IF(M68="","",ROUND(M68*$N$7,0)) ->  | O68: =IF(M68="","",ROUND(M68+N68,0)) ->  | P68: =IF(J68="","",ROUND(J68-M68,0)) ->  | Q68: =IF(J68="","",ROUND(K68-N68,0)) ->  | R68: =IF(J68="","",ROUND(P68+Q68,0)) ->  | S68: =IF(J68="","",IF($H68="Before-2004",Q68,0)) ->  | T68: =IF(J68="","",ROUND(R68-S68,0)) ->  | U68: =IF(J68="","",ROUND(S68+T68,0)) ->  | V68: =IF(J68="","",ROUND(R68-U68,0)) -> 
I69: =IF(A68="n","","Feb-2025") ->  | J69: =IF($J68="","",$J68) ->  | K69: =IF(J69="","",ROUND(J69*$K$7,0)) ->  | L69: =IF(J69="","",ROUND(J69+K69,0)) ->  | M69: =IF(J69="","",J69) ->  | N69: =IF(M69="","",ROUND(M69*$N$7,0)) ->  | O69: =IF(M69="","",ROUND(M69+N69,0)) ->  | P69: =IF(J69="","",ROUND(J69-M69,0)) ->  | Q69: =IF(J69="","",ROUND(K69-N69,0)) ->  | R69: =IF(J69="","",ROUND(P69+Q69,0)) ->  | S69: =IF(J69="","",IF($H68="Before-2004",Q69,0)) ->  | T69: =IF(J69="","",ROUND(R69-S69,0)) ->  | U69: =IF(J69="","",ROUND(S69+T69,0)) ->  | V69: =IF(J69="","",ROUND(R69-U69,0)) -> 
I70: =IF(A68="n","","Mar-2025") ->  | J70: =IF($J68="","",$J68) ->  | K70: =IF(J70="","",ROUND(J70*$K$7,0)) ->  | L70: =IF(J70="","",ROUND(J70+K70,0)) ->  | M70: =IF(J70="","",J70) ->  | N70: =IF(M70="","",ROUND(M70*$N$7,0)) ->  | O70: =IF(M70="","",ROUND(M70+N70,0)) ->  | P70: =IF(J70="","",ROUND(J70-M70,0)) ->  | Q70: =IF(J70="","",ROUND(K70-N70,0)) ->  | R70: =IF(J70="","",ROUND(P70+Q70,0)) ->  | S70: =IF(J70="","",IF($H68="Before-2004",Q70,0)) ->  | T70: =IF(J70="","",ROUND(R70-S70,0)) ->  | U70: =IF(J70="","",ROUND(S70+T70,0)) ->  | V70: =IF(J70="","",ROUND(R70-U70,0)) -> 
G71: =IF(AND(A68="n",D68=""),"","Surrender Ar.→") ->  | H71: No | I71: Jan-2025 | J71: =IF(OR($H71="",$H71="no"),"",IF($I71=$I68,ROUND(J68/2,0),IF($I71=$I69,ROUND(J69/2,0),IF($I71=$I70,ROUND(J70/2,0))))) ->  | K71: =IF(OR($H71="",$H71="no"),"",IF($I71=$I68,ROUND(K68/2,0),IF($I71=$I69,ROUND(K69/2,0),IF($I71=$I70,ROUND(K70/2,0))))) ->  | L71: =IF(OR($H71="",$H71="no"),"",ROUND(J71+K71,0)) ->  | M71: =IF(OR($H71="",$H71="no"),"",IF($I71=$I68,ROUND(M68/2,0),IF($I71=$I69,ROUND(M69/2,0),IF($I71=$I70,ROUND(M70/2,0))))) ->  | N71: =IF(OR($H71="",$H71="no"),"",IF($I71=$I68,ROUND(N68/2,0),IF($I71=$I69,ROUND(N69/2,0),IF($I71=$I70,ROUND(N70/2,0))))) ->  | O71: =IF(OR($H71="",$H71="no"),"",ROUND(M71+N71,0)) ->  | P71: =IF(OR($H71="",$H71="no"),"",ROUND(J71-M71,0)) ->  | Q71: =IF(OR($H71="",$H71="no"),"",ROUND(K71-N71,0)) ->  | R71: =IF(OR($H71="",$H71="no"),"",ROUND(P71+Q71,0)) ->  | S71: =IF(OR($H71="",$H71="no"),"",0) ->  | T71: =IF(OR($H71="",$H71="no"),"",0) ->  | U71: =IF(OR($H71="",$H71="no"),"",ROUND(S71+T71,0)) ->  | V71: =IF(OR($H71="",$H71="no"),"",ROUND(R71-U71,0)) -> 
A72: =IF(D72="","n","y") -> n | C72: 17 | I72: =IF(A72="n","","Jan-2025") ->  | K72: =IF(J72="","",ROUND(J72*$K$7,0)) ->  | L72: =IF(J72="","",ROUND(J72+K72,0)) ->  | M72: =IF(J72="","",J72) ->  | N72: =IF(M72="","",ROUND(M72*$N$7,0)) ->  | O72: =IF(M72="","",ROUND(M72+N72,0)) ->  | P72: =IF(J72="","",ROUND(J72-M72,0)) ->  | Q72: =IF(J72="","",ROUND(K72-N72,0)) ->  | R72: =IF(J72="","",ROUND(P72+Q72,0)) ->  | S72: =IF(J72="","",IF($H72="Before-2004",Q72,0)) ->  | T72: =IF(J72="","",ROUND(R72-S72,0)) ->  | U72: =IF(J72="","",ROUND(S72+T72,0)) ->  | V72: =IF(J72="","",ROUND(R72-U72,0)) -> 
I73: =IF(A72="n","","Feb-2025") ->  | J73: =IF($J72="","",$J72) ->  | K73: =IF(J73="","",ROUND(J73*$K$7,0)) ->  | L73: =IF(J73="","",ROUND(J73+K73,0)) ->  | M73: =IF(J73="","",J73) ->  | N73: =IF(M73="","",ROUND(M73*$N$7,0)) ->  | O73: =IF(M73="","",ROUND(M73+N73,0)) ->  | P73: =IF(J73="","",ROUND(J73-M73,0)) ->  | Q73: =IF(J73="","",ROUND(K73-N73,0)) ->  | R73: =IF(J73="","",ROUND(P73+Q73,0)) ->  | S73: =IF(J73="","",IF($H72="Before-2004",Q73,0)) ->  | T73: =IF(J73="","",ROUND(R73-S73,0)) ->  | U73: =IF(J73="","",ROUND(S73+T73,0)) ->  | V73: =IF(J73="","",ROUND(R73-U73,0)) -> 
I74: =IF(A72="n","","Mar-2025") ->  | J74: =IF($J72="","",$J72) ->  | K74: =IF(J74="","",ROUND(J74*$K$7,0)) ->  | L74: =IF(J74="","",ROUND(J74+K74,0)) ->  | M74: =IF(J74="","",J74) ->  | N74: =IF(M74="","",ROUND(M74*$N$7,0)) ->  | O74: =IF(M74="","",ROUND(M74+N74,0)) ->  | P74: =IF(J74="","",ROUND(J74-M74,0)) ->  | Q74: =IF(J74="","",ROUND(K74-N74,0)) ->  | R74: =IF(J74="","",ROUND(P74+Q74,0)) ->  | S74: =IF(J74="","",IF($H72="Before-2004",Q74,0)) ->  | T74: =IF(J74="","",ROUND(R74-S74,0)) ->  | U74: =IF(J74="","",ROUND(S74+T74,0)) ->  | V74: =IF(J74="","",ROUND(R74-U74,0)) -> 
G75: =IF(AND(A72="n",D72=""),"","Surrender Ar.→") ->  | H75: No | I75: Jan-2025 | J75: =IF(OR($H75="",$H75="no"),"",IF($I75=$I72,ROUND(J72/2,0),IF($I75=$I73,ROUND(J73/2,0),IF($I75=$I74,ROUND(J74/2,0))))) ->  | K75: =IF(OR($H75="",$H75="no"),"",IF($I75=$I72,ROUND(K72/2,0),IF($I75=$I73,ROUND(K73/2,0),IF($I75=$I74,ROUND(K74/2,0))))) ->  | L75: =IF(OR($H75="",$H75="no"),"",ROUND(J75+K75,0)) ->  | M75: =IF(OR($H75="",$H75="no"),"",IF($I75=$I72,ROUND(M72/2,0),IF($I75=$I73,ROUND(M73/2,0),IF($I75=$I74,ROUND(M74/2,0))))) ->  | N75: =IF(OR($H75="",$H75="no"),"",IF($I75=$I72,ROUND(N72/2,0),IF($I75=$I73,ROUND(N73/2,0),IF($I75=$I74,ROUND(N74/2,0))))) ->  | O75: =IF(OR($H75="",$H75="no"),"",ROUND(M75+N75,0)) ->  | P75: =IF(OR($H75="",$H75="no"),"",ROUND(J75-M75,0)) ->  | Q75: =IF(OR($H75="",$H75="no"),"",ROUND(K75-N75,0)) ->  | R75: =IF(OR($H75="",$H75="no"),"",ROUND(P75+Q75,0)) ->  | S75: =IF(OR($H75="",$H75="no"),"",0) ->  | T75: =IF(OR($H75="",$H75="no"),"",0) ->  | U75: =IF(OR($H75="",$H75="no"),"",ROUND(S75+T75,0)) ->  | V75: =IF(OR($H75="",$H75="no"),"",ROUND(R75-U75,0)) -> 
A76: =IF(D76="","n","y") -> n | C76: 18 | I76: =IF(A76="n","","Jan-2025") ->  | K76: =IF(J76="","",ROUND(J76*$K$7,0)) ->  | L76: =IF(J76="","",ROUND(J76+K76,0)) ->  | M76: =IF(J76="","",J76) ->  | N76: =IF(M76="","",ROUND(M76*$N$7,0)) ->  | O76: =IF(M76="","",ROUND(M76+N76,0)) ->  | P76: =IF(J76="","",ROUND(J76-M76,0)) ->  | Q76: =IF(J76="","",ROUND(K76-N76,0)) ->  | R76: =IF(J76="","",ROUND(P76+Q76,0)) ->  | S76: =IF(J76="","",IF($H76="Before-2004",Q76,0)) ->  | T76: =IF(J76="","",ROUND(R76-S76,0)) ->  | U76: =IF(J76="","",ROUND(S76+T76,0)) ->  | V76: =IF(J76="","",ROUND(R76-U76,0)) -> 
I77: =IF(A76="n","","Feb-2025") ->  | J77: =IF($J76="","",$J76) ->  | K77: =IF(J77="","",ROUND(J77*$K$7,0)) ->  | L77: =IF(J77="","",ROUND(J77+K77,0)) ->  | M77: =IF(J77="","",J77) ->  | N77: =IF(M77="","",ROUND(M77*$N$7,0)) ->  | O77: =IF(M77="","",ROUND(M77+N77,0)) ->  | P77: =IF(J77="","",ROUND(J77-M77,0)) ->  | Q77: =IF(J77="","",ROUND(K77-N77,0)) ->  | R77: =IF(J77="","",ROUND(P77+Q77,0)) ->  | S77: =IF(J77="","",IF($H76="Before-2004",Q77,0)) ->  | T77: =IF(J77="","",ROUND(R77-S77,0)) ->  | U77: =IF(J77="","",ROUND(S77+T77,0)) ->  | V77: =IF(J77="","",ROUND(R77-U77,0)) -> 
I78: =IF(A76="n","","Mar-2025") ->  | J78: =IF($J76="","",$J76) ->  | K78: =IF(J78="","",ROUND(J78*$K$7,0)) ->  | L78: =IF(J78="","",ROUND(J78+K78,0)) ->  | M78: =IF(J78="","",J78) ->  | N78: =IF(M78="","",ROUND(M78*$N$7,0)) ->  | O78: =IF(M78="","",ROUND(M78+N78,0)) ->  | P78: =IF(J78="","",ROUND(J78-M78,0)) ->  | Q78: =IF(J78="","",ROUND(K78-N78,0)) ->  | R78: =IF(J78="","",ROUND(P78+Q78,0)) ->  | S78: =IF(J78="","",IF($H76="Before-2004",Q78,0)) ->  | T78: =IF(J78="","",ROUND(R78-S78,0)) ->  | U78: =IF(J78="","",ROUND(S78+T78,0)) ->  | V78: =IF(J78="","",ROUND(R78-U78,0)) -> 
G79: =IF(AND(A76="n",D76=""),"","Surrender Ar.→") ->  | H79: No | I79: Jan-2025 | J79: =IF(OR($H79="",$H79="no"),"",IF($I79=$I76,ROUND(J76/2,0),IF($I79=$I77,ROUND(J77/2,0),IF($I79=$I78,ROUND(J78/2,0))))) ->  | K79: =IF(OR($H79="",$H79="no"),"",IF($I79=$I76,ROUND(K76/2,0),IF($I79=$I77,ROUND(K77/2,0),IF($I79=$I78,ROUND(K78/2,0))))) ->  | L79: =IF(OR($H79="",$H79="no"),"",ROUND(J79+K79,0)) ->  | M79: =IF(OR($H79="",$H79="no"),"",IF($I79=$I76,ROUND(M76/2,0),IF($I79=$I77,ROUND(M77/2,0),IF($I79=$I78,ROUND(M78/2,0))))) ->  | N79: =IF(OR($H79="",$H79="no"),"",IF($I79=$I76,ROUND(N76/2,0),IF($I79=$I77,ROUND(N77/2,0),IF($I79=$I78,ROUND(N78/2,0))))) ->  | O79: =IF(OR($H79="",$H79="no"),"",ROUND(M79+N79,0)) ->  | P79: =IF(OR($H79="",$H79="no"),"",ROUND(J79-M79,0)) ->  | Q79: =IF(OR($H79="",$H79="no"),"",ROUND(K79-N79,0)) ->  | R79: =IF(OR($H79="",$H79="no"),"",ROUND(P79+Q79,0)) ->  | S79: =IF(OR($H79="",$H79="no"),"",0) ->  | T79: =IF(OR($H79="",$H79="no"),"",0) ->  | U79: =IF(OR($H79="",$H79="no"),"",ROUND(S79+T79,0)) ->  | V79: =IF(OR($H79="",$H79="no"),"",ROUND(R79-U79,0)) -> 
A80: =IF(D80="","n","y") -> n | C80: 19 | I80: =IF(A80="n","","Jan-2025") ->  | K80: =IF(J80="","",ROUND(J80*$K$7,0)) ->  | L80: =IF(J80="","",ROUND(J80+K80,0)) ->  | M80: =IF(J80="","",J80) ->  | N80: =IF(M80="","",ROUND(M80*$N$7,0)) ->  | O80: =IF(M80="","",ROUND(M80+N80,0)) ->  | P80: =IF(J80="","",ROUND(J80-M80,0)) ->  | Q80: =IF(J80="","",ROUND(K80-N80,0)) ->  | R80: =IF(J80="","",ROUND(P80+Q80,0)) ->  | S80: =IF(J80="","",IF($H80="Before-2004",Q80,0)) ->  | T80: =IF(J80="","",ROUND(R80-S80,0)) ->  | U80: =IF(J80="","",ROUND(S80+T80,0)) ->  | V80: =IF(J80="","",ROUND(R80-U80,0)) -> 
I81: =IF(A80="n","","Feb-2025") ->  | J81: =IF($J80="","",$J80) ->  | K81: =IF(J81="","",ROUND(J81*$K$7,0)) ->  | L81: =IF(J81="","",ROUND(J81+K81,0)) ->  | M81: =IF(J81="","",J81) ->  | N81: =IF(M81="","",ROUND(M81*$N$7,0)) ->  | O81: =IF(M81="","",ROUND(M81+N81,0)) ->  | P81: =IF(J81="","",ROUND(J81-M81,0)) ->  | Q81: =IF(J81="","",ROUND(K81-N81,0)) ->  | R81: =IF(J81="","",ROUND(P81+Q81,0)) ->  | S81: =IF(J81="","",IF($H80="Before-2004",Q81,0)) ->  | T81: =IF(J81="","",ROUND(R81-S81,0)) ->  | U81: =IF(J81="","",ROUND(S81+T81,0)) ->  | V81: =IF(J81="","",ROUND(R81-U81,0)) -> 
I82: =IF(A80="n","","Mar-2025") ->  | J82: =IF($J80="","",$J80) ->  | K82: =IF(J82="","",ROUND(J82*$K$7,0)) ->  | L82: =IF(J82="","",ROUND(J82+K82,0)) ->  | M82: =IF(J82="","",J82) ->  | N82: =IF(M82="","",ROUND(M82*$N$7,0)) ->  | O82: =IF(M82="","",ROUND(M82+N82,0)) ->  | P82: =IF(J82="","",ROUND(J82-M82,0)) ->  | Q82: =IF(J82="","",ROUND(K82-N82,0)) ->  | R82: =IF(J82="","",ROUND(P82+Q82,0)) ->  | S82: =IF(J82="","",IF($H80="Before-2004",Q82,0)) ->  | T82: =IF(J82="","",ROUND(R82-S82,0)) ->  | U82: =IF(J82="","",ROUND(S82+T82,0)) ->  | V82: =IF(J82="","",ROUND(R82-U82,0)) -> 
G83: =IF(AND(A80="n",D80=""),"","Surrender Ar.→") ->  | H83: No | I83: Jan-2025 | J83: =IF(OR($H83="",$H83="no"),"",IF($I83=$I80,ROUND(J80/2,0),IF($I83=$I81,ROUND(J81/2,0),IF($I83=$I82,ROUND(J82/2,0))))) ->  | K83: =IF(OR($H83="",$H83="no"),"",IF($I83=$I80,ROUND(K80/2,0),IF($I83=$I81,ROUND(K81/2,0),IF($I83=$I82,ROUND(K82/2,0))))) ->  | L83: =IF(OR($H83="",$H83="no"),"",ROUND(J83+K83,0)) ->  | M83: =IF(OR($H83="",$H83="no"),"",IF($I83=$I80,ROUND(M80/2,0),IF($I83=$I81,ROUND(M81/2,0),IF($I83=$I82,ROUND(M82/2,0))))) ->  | N83: =IF(OR($H83="",$H83="no"),"",IF($I83=$I80,ROUND(N80/2,0),IF($I83=$I81,ROUND(N81/2,0),IF($I83=$I82,ROUND(N82/2,0))))) ->  | O83: =IF(OR($H83="",$H83="no"),"",ROUND(M83+N83,0)) ->  | P83: =IF(OR($H83="",$H83="no"),"",ROUND(J83-M83,0)) ->  | Q83: =IF(OR($H83="",$H83="no"),"",ROUND(K83-N83,0)) ->  | R83: =IF(OR($H83="",$H83="no"),"",ROUND(P83+Q83,0)) ->  | S83: =IF(OR($H83="",$H83="no"),"",0) ->  | T83: =IF(OR($H83="",$H83="no"),"",0) ->  | U83: =IF(OR($H83="",$H83="no"),"",ROUND(S83+T83,0)) ->  | V83: =IF(OR($H83="",$H83="no"),"",ROUND(R83-U83,0)) -> 
A84: =IF(D84="","n","y") -> n | C84: 20 | I84: =IF(A84="n","","Jan-2025") ->  | K84: =IF(J84="","",ROUND(J84*$K$7,0)) ->  | L84: =IF(J84="","",ROUND(J84+K84,0)) ->  | M84: =IF(J84="","",J84) ->  | N84: =IF(M84="","",ROUND(M84*$N$7,0)) ->  | O84: =IF(M84="","",ROUND(M84+N84,0)) ->  | P84: =IF(J84="","",ROUND(J84-M84,0)) ->  | Q84: =IF(J84="","",ROUND(K84-N84,0)) ->  | R84: =IF(J84="","",ROUND(P84+Q84,0)) ->  | S84: =IF(J84="","",IF($H84="Before-2004",Q84,0)) ->  | T84: =IF(J84="","",ROUND(R84-S84,0)) ->  | U84: =IF(J84="","",ROUND(S84+T84,0)) ->  | V84: =IF(J84="","",ROUND(R84-U84,0)) -> 
I85: =IF(A84="n","","Feb-2025") ->  | J85: =IF($J84="","",$J84) ->  | K85: =IF(J85="","",ROUND(J85*$K$7,0)) ->  | L85: =IF(J85="","",ROUND(J85+K85,0)) ->  | M85: =IF(J85="","",J85) ->  | N85: =IF(M85="","",ROUND(M85*$N$7,0)) ->  | O85: =IF(M85="","",ROUND(M85+N85,0)) ->  | P85: =IF(J85="","",ROUND(J85-M85,0)) ->  | Q85: =IF(J85="","",ROUND(K85-N85,0)) ->  | R85: =IF(J85="","",ROUND(P85+Q85,0)) ->  | S85: =IF(J85="","",IF($H84="Before-2004",Q85,0)) ->  | T85: =IF(J85="","",ROUND(R85-S85,0)) ->  | U85: =IF(J85="","",ROUND(S85+T85,0)) ->  | V85: =IF(J85="","",ROUND(R85-U85,0)) -> 
I86: =IF(A84="n","","Mar-2025") ->  | J86: =IF($J84="","",$J84) ->  | K86: =IF(J86="","",ROUND(J86*$K$7,0)) ->  | L86: =IF(J86="","",ROUND(J86+K86,0)) ->  | M86: =IF(J86="","",J86) ->  | N86: =IF(M86="","",ROUND(M86*$N$7,0)) ->  | O86: =IF(M86="","",ROUND(M86+N86,0)) ->  | P86: =IF(J86="","",ROUND(J86-M86,0)) ->  | Q86: =IF(J86="","",ROUND(K86-N86,0)) ->  | R86: =IF(J86="","",ROUND(P86+Q86,0)) ->  | S86: =IF(J86="","",IF($H84="Before-2004",Q86,0)) ->  | T86: =IF(J86="","",ROUND(R86-S86,0)) ->  | U86: =IF(J86="","",ROUND(S86+T86,0)) ->  | V86: =IF(J86="","",ROUND(R86-U86,0)) -> 
G87: =IF(AND(A84="n",D84=""),"","Surrender Ar.→") ->  | H87: No | I87: Jan-2025 | J87: =IF(OR($H87="",$H87="no"),"",IF($I87=$I84,ROUND(J84/2,0),IF($I87=$I85,ROUND(J85/2,0),IF($I87=$I86,ROUND(J86/2,0))))) ->  | K87: =IF(OR($H87="",$H87="no"),"",IF($I87=$I84,ROUND(K84/2,0),IF($I87=$I85,ROUND(K85/2,0),IF($I87=$I86,ROUND(K86/2,0))))) ->  | L87: =IF(OR($H87="",$H87="no"),"",ROUND(J87+K87,0)) ->  | M87: =IF(OR($H87="",$H87="no"),"",IF($I87=$I84,ROUND(M84/2,0),IF($I87=$I85,ROUND(M85/2,0),IF($I87=$I86,ROUND(M86/2,0))))) ->  | N87: =IF(OR($H87="",$H87="no"),"",IF($I87=$I84,ROUND(N84/2,0),IF($I87=$I85,ROUND(N85/2,0),IF($I87=$I86,ROUND(N86/2,0))))) ->  | O87: =IF(OR($H87="",$H87="no"),"",ROUND(M87+N87,0)) ->  | P87: =IF(OR($H87="",$H87="no"),"",ROUND(J87-M87,0)) ->  | Q87: =IF(OR($H87="",$H87="no"),"",ROUND(K87-N87,0)) ->  | R87: =IF(OR($H87="",$H87="no"),"",ROUND(P87+Q87,0)) ->  | S87: =IF(OR($H87="",$H87="no"),"",0) ->  | T87: =IF(OR($H87="",$H87="no"),"",0) ->  | U87: =IF(OR($H87="",$H87="no"),"",ROUND(S87+T87,0)) ->  | V87: =IF(OR($H87="",$H87="no"),"",ROUND(R87-U87,0)) -> 
C88: Total | J88: =SUM(J8:J87) -> 311350 | K88: =SUM(K8:K87) -> 171243 | L88: =SUM(L8:L87) -> 482593 | M88: =SUM(M8:M87) -> 311350 | N88: =SUM(N8:N87) -> 165016 | O88: =SUM(O8:O87) -> 476366 | P88: =SUM(P8:P87) -> 0 | Q88: =SUM(Q8:Q87) -> 6227 | R88: =SUM(R8:R87) -> 6227 | S88: =SUM(S8:S87) -> 2874 | T88: =SUM(T8:T87) -> 2874 | U88: =SUM(U8:U87) -> 5748 | V88: =SUM(V8:V87) -> 479
C89: Total Allowances And Deuctions Summry | R89: Amount in words :-
C90: 1- | D90: Allowances (Difference) | J90: Basic | N90: =P88 -> 0 | R90: …………………………………………………………….. …………………………………………………………
C91: 2- | J91: D.A. | N91: =Q88 -> 6227
J92: Total Allowances | N92: =R88 -> 6227 | R92: हस्ताक्षर डीडीओ मय मुहर
C93: 1- | D93: Deductions | J93: GPF | N93: =S88 -> 2874
C94: 2- | J94: GPF-2004 | N94: =T88 -> 2874
J95: Total Deductions | N95: =U88 -> 5748
C96: NET AMOUNT TO BE PAY | N96: =ROUND(N92-N95,0) -> 479

Sheet Surender Arear
C2: GOVT. SR. SEC. SCHOOL RAIMALWADA, BAPINI (PHALODI)
C3: SURRENDER AREAR
C4: वित्त विभाग राजस्थान सरकार के आदेशांक-F.6(3) FD (Rules)/2017/ Jaipur, दिनांक-01-04-2025 के अनुसरण में स्थानीय कार्यालय के अधीनस्थ नियमित कार्मिकों का Jan-2025 से महंगाई भत्ता 53% से बढ़ाकर 55% किया जाने के क्रम में निम्न विवरणानुसार पूर्व में भुगतान किये जा चुके वित्तीय वर्ष 2024-25 के उपार्जित अवकाश के नकद भुगतान का अंतर एरियर निम्नानुसार गणना कर सम्बंधित खातों में आहरित करने कि स्वीकृति एतद द्वारा दी जाती है l
C5: S. N0. | D5: Employee Name | G5: Post | H5: Employee Basic Pay | I5: Surrender Month | J5: After Revise DA | M5: Before Revise DA | P5: Difference | S5: GPF/ GPF-2004 | T5: TOTAL DED. | U5: NET AMOUNT CASH PAYMENT (ARREAR) | V5: TV NUMBER | W5: TV DATE
J6: BASIC | K6: DA | L6: TOTAL | M6: BASIC | N6: DA | O6: TOTAL | P6: BASIC | Q6: DA | R6: TOTAL
K7: 55% | N7: 53%
A8: =IF(C8>=1,"y","n") -> y | C8: 1 | D8: A | G8: PEON | H8: 25500 | I8: 2025-01-01 | J8: =ROUND(H8/2,0) -> 12750 | K8: =ROUND(J8*$K$7,0) -> 7013 | L8: =ROUND(J8+K8,0) -> 19763 | M8: =J8 -> 12750 | N8: =ROUND(M8*$N$7,0) -> 6758 | O8: =ROUND(M8+N8,0) -> 19508 | P8: =ROUND(J8-M8,0) -> 0 | Q8: =ROUND(K8-N8,0) -> 255 | R8: =ROUND(P8+Q8,0) -> 255 | S8: 0 | T8: =S8 -> 0 | U8: =ROUND(R8-T8,0) -> 255
A9: =IF(C9>=1,"y","n") -> y | C9: 2 | D9: B | G9: TEACHER | H9: 67000 | I9: 2025-02-01 | J9: =ROUND(H9/2,0) -> 33500 | K9: =ROUND(J9*$K$7,0) -> 18425 | L9: =ROUND(J9+K9,0) -> 51925 | M9: =J9 -> 33500 | N9: =ROUND(M9*$N$7,0) -> 17755 | O9: =ROUND(M9+N9,0) -> 51255 | P9: =ROUND(J9-M9,0) -> 0 | Q9: =ROUND(K9-N9,0) -> 670 | R9: =ROUND(P9+Q9,0) -> 670 | S9: 0 | T9: =S9 -> 0 | U9: =ROUND(R9-T9,0) -> 670
A10: =IF(C10>=1,"y","n") -> n | J10: =ROUND(H10/2,0) -> 0 | K10: =ROUND(J10*$K$7,0) -> 0 | L10: =ROUND(J10+K10,0) -> 0 | M10: =J10 -> 0 | N10: =ROUND(M10*$N$7,0) -> 0 | O10: =ROUND(M10+N10,0) -> 0 | P10: =ROUND(J10-M10,0) -> 0 | Q10: =ROUND(K10-N10,0) -> 0 | R10: =ROUND(P10+Q10,0) -> 0 | S10: 0 | T10: 0 | U10: =ROUND(R10-T10,0) -> 0
A11: =IF(C11>=1,"y","n") -> n | J11: =ROUND(H11/2,0) -> 0 | K11: =ROUND(J11*$K$7,0) -> 0 | L11: =ROUND(J11+K11,0) -> 0 | M11: =J11 -> 0 | N11: =ROUND(M11*$N$7,0) -> 0 | O11: =ROUND(M11+N11,0) -> 0 | P11: =ROUND(J11-M11,0) -> 0 | Q11: =ROUND(K11-N11,0) -> 0 | R11: =ROUND(P11+Q11,0) -> 0 | S11: 0 | T11: 0 | U11: =ROUND(R11-T11,0) -> 0
J12: 0 | K12: =ROUND(J12*$K$7,0) -> 0 | L12: =ROUND(J12+K12,0) -> 0 | M12: =J12 -> 0 | N12: =ROUND(M12*$N$7,0) -> 0 | O12: =ROUND(M12+N12,0) -> 0 | P12: =ROUND(J12-M12,0) -> 0 | Q12: =ROUND(K12-N12,0) -> 0 | R12: =ROUND(P12+Q12,0) -> 0 | S12: 0 | T12: 0 | U12: =ROUND(R12-T12,0) -> 0
J13: 0 | K13: =ROUND(J13*$K$7,0) -> 0 | L13: =ROUND(J13+K13,0) -> 0 | M13: =J13 -> 0 | N13: =ROUND(M13*$N$7,0) -> 0 | O13: =ROUND(M13+N13,0) -> 0 | P13: =ROUND(J13-M13,0) -> 0 | Q13: =ROUND(K13-N13,0) -> 0 | R13: =ROUND(P13+Q13,0) -> 0 | S13: 0 | T13: 0 | U13: =ROUND(R13-T13,0) -> 0
J14: 0 | K14: =ROUND(J14*$K$7,0) -> 0 | L14: =ROUND(J14+K14,0) -> 0 | M14: =J14 -> 0 | N14: =ROUND(M14*$N$7,0) -> 0 | O14: =ROUND(M14+N14,0) -> 0 | P14: =ROUND(J14-M14,0) -> 0 | Q14: =ROUND(K14-N14,0) -> 0 | R14: =ROUND(P14+Q14,0) -> 0 | S14: 0 | T14: 0 | U14: =ROUND(R14-T14,0) -> 0
J15: 0 | K15: =ROUND(J15*$K$7,0) -> 0 | L15: =ROUND(J15+K15,0) -> 0 | M15: =J15 -> 0 | N15: =ROUND(M15*$N$7,0) -> 0 | O15: =ROUND(M15+N15,0) -> 0 | P15: =ROUND(J15-M15,0) -> 0 | Q15: =ROUND(K15-N15,0) -> 0 | R15: =ROUND(P15+Q15,0) -> 0 | S15: 0 | T15: 0 | U15: =ROUND(R15-T15,0) -> 0
J16: 0 | K16: =ROUND(J16*$K$7,0) -> 0 | L16: =ROUND(J16+K16,0) -> 0 | M16: =J16 -> 0 | N16: =ROUND(M16*$N$7,0) -> 0 | O16: =ROUND(M16+N16,0) -> 0 | P16: =ROUND(J16-M16,0) -> 0 | Q16: =ROUND(K16-N16,0) -> 0 | R16: =ROUND(P16+Q16,0) -> 0 | S16: 0 | T16: 0 | U16: =ROUND(R16-T16,0) -> 0
A17: =IF(C17>=1,"y","n") -> n | J17: 0 | K17: =ROUND(J17*$K$7,0) -> 0 | L17: =ROUND(J17+K17,0) -> 0 | M17: =J17 -> 0 | N17: =ROUND(M17*$N$7,0) -> 0 | O17: =ROUND(M17+N17,0) -> 0 | P17: =ROUND(J17-M17,0) -> 0 | Q17: =ROUND(K17-N17,0) -> 0 | R17: =ROUND(P17+Q17,0) -> 0 | S17: 0 | T17: 0 | U17: =ROUND(R17-T17,0) -> 0
C18: Total | J18: =SUM(J8:J10) -> 46250 | K18: =SUM(K8:K10) -> 25438 | L18: 71688 | M18: 46250 | N18: 24513 | O18: 70763 | P18: 0 | Q18: 925 | R18: 925 | S18: 0 | T18: 0 | U18: 925
C20: Total Allowances And Deuctions Summry
C21: 1- | D21: Allowances (Difference) | J21: Basic | N21: =P18 -> 0
C22: 2- | J22: D.A. | N22: =Q18 -> 925
J23: Total Allowances | N23: =R18 -> 925 | R23: हस्ताक्षर डीडीओ मय मुहर
C24: 1- | D24: Deductions | J24: GPF/GPF-2004 | N24: =S18 -> 0
J25: Total Deductions | N25: =T18 -> 0
C26: NET AMOUNT TO BE PAY | N26: =ROUND(N23-N25,0) -> 925

Sheet DA Arear For Leave Encashment
C2: GOVT. SR. SEC. SCHOOL RAIMALWADA, BAPINI (PHALODI)
C3: LEAVE ENCASHMENT DA ARREAR
C4: वित्त विभाग राजस्थान सरकार के आदेशांक-F.6(3) FD (Rules)/2017/ Jaipur, दिनांक-01-04-2025 के अनुसरण में स्थानीय कार्यालय के अधीनस्थ नियमित कार्मिकों का Jan-2025 से महंगाई भत्ता 53% से बढ़ाकर 55% किया जाने के क्रम में निम्न विवरणानुसार सेवानिवृत्ति पश्चात कार्मिक के खाते में बकाया उपार्जित अवकाश (Leave Encashment) के नकद भुगतान का अंतर एरियर निम्नानुसार गणना कर सम्बंधित खातों में आहरित करने कि स्वीकृति एतद द्वारा दी जाती है l
C5: S. N0. | D5: Employee Name | F5: Post | G5: Employee Basic Pay | H5: Ret. PL/LE Bill Month | I5: Balance PL For Leave Encashment Pay | J5: After Revise DA | M5: Before Revise DA | P5: Difference | S5: GPF/ GPF-2004 | T5: TOTAL DED. | U5: NET AMOUNT CASH PAYMENT (ARREAR) | V5: Main Bill's TV NUMBER | W5: Main Bill's TV DATE
J6: BASIC | K6: DA | L6: TOTAL | M6: BASIC | N6: DA | O6: TOTAL | P6: BASIC | Q6: DA | R6: TOTAL
K7: 55% | N7: 53%
A8: =IF(C8>=1,"y","n") -> y | C8: 1 | D8: A | F8: PEON | G8: 37900 | H8: 2024-08-01 | I8: 300 | J8: =ROUND((I8/30)*G8,0) -> 379000 | K8: =ROUND(J8*$K$7,0) -> 208450 | L8: =ROUND(J8+K8,0) -> 587450 | M8: =J8 -> 379000 | N8: =ROUND(M8*$N$7,0) -> 200870 | O8: =ROUND(M8+N8,0) -> 579870 | P8: =ROUND(J8-M8,0) -> 0 | Q8: =ROUND(K8-N8,0) -> 7580 | R8: =ROUND(P8+Q8,0) -> 7580 | S8: 0 | T8: =S8 -> 0 | U8: =ROUND(R8-T8,0) -> 7580
C9: Total | J9: =SUM(J8:J8) -> 379000 | K9: 208450 | L9: 587450 | M9: 379000 | N9: 200870 | O9: 579870 | P9: 0 | Q9: 7580 | R9: 7580 | S9: 0 | T9: 0 | U9: 7580
C10: dkfeZd Jh ---------- fnukad ------------------------- dks lsokfuo`r gks tkus ds dkj.k buds [kkrs esa vftZr mikftZr vodk'k ds ,ot esa fu;ekuqlkj Hkqxrku dh xbZ jkf'k esa egaxkbZ HkRrs dh o`f) i'pkr bldk vUrj dks udn Hkqxrku fd;k tk jgk gSA lacaf/kr dk;kZy; }kjk dkfeZd ds fy, tkjh fd;s x;s ih-ih-vks- dh la[;k --------------gSA
C11: Total Allowances And Deuctions Summry | R11: हस्ताक्षर डीडीओ मय मुहर
C12: 1- | D12: Allowances (Difference) | J12: Basic | N12: =P9 -> 0
C13: 2- | J13: D.A. | N13: =Q9 -> 7580
J14: Total Allowances | N14: =R9 -> 7580
C15: 1- | D15: Deductions | J15: GPF/GPF-2004 | N15: =S9 -> 0
J16: Total Deductions | N16: =T9 -> 0
C17: NET AMOUNT TO BE PAY | N17: =ROUND(N14-N16,0) -> 7580
